Body Name,Body,Service Division Label,Service Division Code,Organisational Unit,Expenditure Category,Expenditure Code,CIPFA detailed expediture type,CIPFA detailed expediture code,Narrative,Date,Transaction number,Net Amount,Capital and Revenue,Supplier Name,Supplier ID,,
Chorley Borough Council,http://statistics.data.gov.uk/id/local-authority/30UE,Business Support,1095,Commercial & Property,Fixtures & Fittings - Purchase,20027,Fixtures and Fittings,5010,Supply and fit 4 Blinds in the conference room at Primrose gardens,03/11/2021,0162134,309.00,Revenue,A B Blinds,17475,,
Chorley Borough Council,http://statistics.data.gov.uk/id/local-authority/30UE,Service Management & Support,1009,Customer & Digital,Vehicles and Plant Maintenance,30045,Direct Transport Costs,5016,"As per invoice 15602, 15618, 15622, 15636",03/11/2021,0160913,304.83,Revenue,AC Hydraulic & Pneumatic Services Ltd,22054,,
Chorley Borough Council,http://statistics.data.gov.uk/id/local-authority/30UE,Central Support Services,1009,Communities,Sports Development Initiatives,40186,Miscellaneous Expenses,5034,Contribution to Active Lancashire 2020/2021,24/11/2021,0162797,"1,500.00",Revenue,Active Lancashire,16348,,
Chorley Borough Council,http://statistics.data.gov.uk/id/local-authority/30UE,Service Management & Support,1009,Customer & Digital,Supplies-Grounds Maintenance,40025,"Equipment, Furniture & Materia",5023,As per Quotation 20220924 / 07.10.2021 from NAME REDACTED,03/11/2021,0161836,368.60,Revenue,Aebi Schmidt UK Ltd,17287,,
Chorley Borough Council,http://statistics.data.gov.uk/id/local-authority/30UE,Corporate Management,1008,Commercial & Property,Miscellaneous Expenses,40200,Miscellaneous Expenses,5034,Choose Chorley Business Recovery Events - Training Webinars x 6,17/11/2021,0160915,"1,500.00",Revenue,Alex McCann - Altrincham HQ,81286,,
Chorley Borough Council,http://statistics.data.gov.uk/id/local-authority/30UE,Central Support Services,1009,Customer & Digital,Bank Charges,40151,Miscellaneous Expenses,5034,add ac fee,24/11/2021,0162650,10.00,Revenue,Allpay Net Ltd,17242,,
Chorley Borough Council,http://statistics.data.gov.uk/id/local-authority/30UE,Central Support Services,1009,Customer & Digital,Bank Charges,40151,Miscellaneous Expenses,5034,post office,24/11/2021,0162650,640.32,Revenue,Allpay Net Ltd,17242,,
Chorley Borough Council,http://statistics.data.gov.uk/id/local-authority/30UE,Central Support Services,1009,Customer & Digital,Bank Charges,40151,Miscellaneous Expenses,5034,paypoint,24/11/2021,0162650,228.87,Revenue,Allpay Net Ltd,17242,,
Chorley Borough Council,http://statistics.data.gov.uk/id/local-authority/30UE,Central Support Services,1009,Customer & Digital,Bank Charges,40151,Miscellaneous Expenses,5034,webcon,24/11/2021,0162650,46.00,Revenue,Allpay Net Ltd,17242,,
Chorley Borough Council,http://statistics.data.gov.uk/id/local-authority/30UE,Central Support Services,1009,Communities,External Contractor,40198,Miscellaneous Expenses,5034,Pest Control External Contractor Costs,10/11/2021,0159728,"2,388.54",Revenue,ALPHA PEST CONTROL LIMITED,18208,,
Chorley Borough Council,http://statistics.data.gov.uk/id/local-authority/30UE,Central Support Services,1009,Communities,External Contractor,40198,Miscellaneous Expenses,5034,Pest Control External Contractor Costs,10/11/2021,0160742,465.15,Revenue,ALPHA PEST CONTROL LIMITED,18208,,
Chorley Borough Council,http://statistics.data.gov.uk/id/local-authority/30UE,Central Support Services,1009,Communities,External Contractor,40198,Miscellaneous Expenses,5034,Pest Control External Contractor Costs,10/11/2021,0161008,"1,507.74",Revenue,ALPHA PEST CONTROL LIMITED,18208,,
Chorley Borough Council,http://statistics.data.gov.uk/id/local-authority/30UE,Central Support Services,1009,Communities,External Contractor,40198,Miscellaneous Expenses,5034,Pest Control External Contractor Costs,10/11/2021,0162119,"2,488.13",Revenue,ALPHA PEST CONTROL LIMITED,18208,,
Chorley Borough Council,http://statistics.data.gov.uk/id/local-authority/30UE,Corporate Management,1008,Policy & Governance,Car Leasing Payment,14100,Direct Employee Expenses,5001,VIN REDACTED: NAME REDACTED - September,03/11/2021,0162186,355.50,Revenue,Alphabet (Uk) Fleet Management Ltd,16651,,
Chorley Borough Council,http://statistics.data.gov.uk/id/local-authority/30UE,Corporate Management,1008,Policy & Governance,Car Leasing Payment,14100,Direct Employee Expenses,5001,VAT,03/11/2021,0162186,31.50,Revenue,Alphabet (Uk) Fleet Management Ltd,16651,,
Chorley Borough Council,http://statistics.data.gov.uk/id/local-authority/30UE,Control Accounts,Control,Policy & Governance,Manual Control Account,00001,Balance Sheet,Balance,- VAT,03/11/2021,0162186,-31.50,Revenue,Alphabet (Uk) Fleet Management Ltd,16651,,
Chorley Borough Council,http://statistics.data.gov.uk/id/local-authority/30UE,Development Control,1091,Policy & Governance,Car Leasing Payment,14100,Direct Employee Expenses,5001,VIN REDACTED: NAME REDACTED - September,03/11/2021,0162186,242.70,Revenue,Alphabet (Uk) Fleet Management Ltd,16651,,
Chorley Borough Council,http://statistics.data.gov.uk/id/local-authority/30UE,Development Control,1091,Policy & Governance,Car Leasing Payment,14100,Direct Employee Expenses,5001,VAT,03/11/2021,0162186,20.55,Revenue,Alphabet (Uk) Fleet Management Ltd,16651,,
Chorley Borough Council,http://statistics.data.gov.uk/id/local-authority/30UE,Control Accounts,Control,Policy & Governance,Manual Control Account,00001,Balance Sheet,Balance,- VAT,03/11/2021,0162186,-20.55,Revenue,Alphabet (Uk) Fleet Management Ltd,16651,,
Chorley Borough Council,http://statistics.data.gov.uk/id/local-authority/30UE,Capital,Capital,Communities,Main Contractor,03007,Capital Expenditure,Capital,Installation of lighting at Astley park - main contractor,17/11/2021,0162434,"60,371.09",Capital,Altitude Services Ltd,77719,,
Chorley Borough Council,http://statistics.data.gov.uk/id/local-authority/30UE,Capital,Capital,Communities,Main Contractor,03007,Capital Expenditure,Capital,Installation of lighting at Astley park - main contractor,17/11/2021,0162457,"28,711.93",Capital,Altitude Services Ltd,77719,,
Chorley Borough Council,http://statistics.data.gov.uk/id/local-authority/30UE,Central Support Services,1009,Policy & Governance,Miscellaneous Expenses,40200,Miscellaneous Expenses,5034,"Santa's Grotto, 250x0-3 years, 400x3-5 years, 250x6-8 years, 50x9+ years, 10 rolls I've Seen Santa Stickers, 1000xa6 colouring",24/11/2021,0162753,"1,659.00",Revenue,Andersons Wholesale,78268,,
Chorley Borough Council,http://statistics.data.gov.uk/id/local-authority/30UE,Central Support Services,1009,Communities,Impounded Dogs Costs,40207,Miscellaneous Expenses,5034,Stray Dogs Kennelling Overnight Retainer - Sept 21,03/11/2021,0161484,320.00,Revenue,Animal Wardens Ltd,80965,,
Chorley Borough Council,http://statistics.data.gov.uk/id/local-authority/30UE,Central Support Services,1009,Communities,Impounded Dogs Costs,40207,Miscellaneous Expenses,5034,Stray Dogs Kennelling Retainer Oct 21,10/11/2021,0162388,320.00,Revenue,Animal Wardens Ltd,80965,,
Chorley Borough Council,http://statistics.data.gov.uk/id/local-authority/30UE,Central Support Services,1009,Policy & Governance,Car Leasing Payment,14100,Direct Employee Expenses,5001,VIN REDACTED: NAME REDACTED - 10.07.2021 - 31.08.2021,03/11/2021,0161415,388.74,Revenue,Arnold Clark Finance Ltd,20685,,
Chorley Borough Council,http://statistics.data.gov.uk/id/local-authority/30UE,Central Support Services,1009,Policy & Governance,Car Leasing Payment,14100,Direct Employee Expenses,5001,VAT,03/11/2021,0161415,35.40,Revenue,Arnold Clark Finance Ltd,20685,,
Chorley Borough Council,http://statistics.data.gov.uk/id/local-authority/30UE,Control Accounts,Control,Policy & Governance,Manual Control Account,00001,Balance Sheet,Balance,- VAT,03/11/2021,0161415,-35.40,Revenue,Arnold Clark Finance Ltd,20685,,
Chorley Borough Council,http://statistics.data.gov.uk/id/local-authority/30UE,Tourism,1039,Customer & Digital,Supplies-Grounds Maintenance,40025,"Equipment, Furniture & Materia",5023,Supply 14 x 3/4 ply boards,03/11/2021,0162156,536.67,Revenue,Asc Timber Supplies Ltd,16240,,
Chorley Borough Council,http://statistics.data.gov.uk/id/local-authority/30UE,Service Management & Support,1009,Customer & Digital,Vehicles and Plant Maintenance,30045,Direct Transport Costs,5016,"FL66 OZU, Tipper motor pump fitted, 5 litres Hydraulic oil top up",03/11/2021,0161605,511.83,Revenue,Autofit,78140,,
Chorley Borough Council,http://statistics.data.gov.uk/id/local-authority/30UE,Central Support Services,1009,Commercial & Property,Planned Maintenance,20006,Repairs Maintenance & Alts,5005,"Coach house works, Prepare and decorate internal entrance, staircase (1 week), Strip stair treads and re-varnish (3 days)",24/11/2021,0162760,"5,140.00",Revenue,Bagnalls,77004,,
Chorley Borough Council,http://statistics.data.gov.uk/id/local-authority/30UE,Central Support Services,1009,Commercial & Property,Planned Maintenance,20006,Repairs Maintenance & Alts,5005,"Astley Hall Works, Prepare and paint metal double gates 1 (2.5 days), Prepare and decorate gents toilets (2 days)",24/11/2021,0162761,"6,104.00",Revenue,Bagnalls,77004,,
Chorley Borough Council,http://statistics.data.gov.uk/id/local-authority/30UE,Control Accounts,Control,Policy & Governance,General Balances,00100,Balance Sheet,Balance,28 aug 21,23/11/2021,0162185,"9,674.79",Revenue,Barclaycard Commercial,59848,,
Chorley Borough Council,http://statistics.data.gov.uk/id/local-authority/30UE,Corporate Management,1008,Policy & Governance,Miscellaneous Expenses,40200,Miscellaneous Expenses,5034,Rock FM & Greatest Hits 6 weeks Radio Campaign - 3 weeks Chorley Flower Show & 3 weeks town centre offering promo,03/11/2021,0161881,"1,260.18",Revenue,Bauer Active Ltd,50574,,
Chorley Borough Council,http://statistics.data.gov.uk/id/local-authority/30UE,Corporate Management,1008,Policy & Governance,Miscellaneous Expenses,40200,Miscellaneous Expenses,5034,"Extension of Radio advert, Rock FM, promote Chorley town centre to encourage visitors now that businesses have reopened",03/11/2021,0161881,"1,358.66",Revenue,Bauer Active Ltd,50574,,
Chorley Borough Council,http://statistics.data.gov.uk/id/local-authority/30UE,Central Support Services,1009,Customer & Digital,Newsletter Production,40166,Miscellaneous Expenses,5034,"Production of 2022 Waste Collection Calendars. 25 Versions, Quantity = 57,800. As per Quote no. 176896",24/11/2021,0162201,"1,891.00",Revenue,BHW Print Group,77459,,
Chorley Borough Council,http://statistics.data.gov.uk/id/local-authority/30UE,Control Accounts,Control,Communities,Manual Control Account,00001,Balance Sheet,Balance,,10/11/2021,0162179,270.25,Revenue,Bishop Rawsthorne Church of England Academy Trust,83800,,
Chorley Borough Council,http://statistics.data.gov.uk/id/local-authority/30UE,Central Support Services,1009,Policy & Governance,External Contractor,40198,Miscellaneous Expenses,5034,Payroll Services Contract for 2021/22,03/11/2021,0160716,"1,079.02",Revenue,Blackpool Borough Council,16518,,
Chorley Borough Council,http://statistics.data.gov.uk/id/local-authority/30UE,Central Support Services,1009,Policy & Governance,External Contractor,40198,Miscellaneous Expenses,5034,Payroll Services Contract for 2021/22,03/11/2021,0161996,"6,888.99",Revenue,Blackpool Borough Council,16518,,
Chorley Borough Council,http://statistics.data.gov.uk/id/local-authority/30UE,Central Support Services,1009,Policy & Governance,External Contractor,40198,Miscellaneous Expenses,5034,Payroll Services Contract for 2021/22,03/11/2021,0162124,"1,193.35",Revenue,Blackpool Borough Council,16518,,
Chorley Borough Council,http://statistics.data.gov.uk/id/local-authority/30UE,Business Support,1095,Commercial & Property,Electricity,20013,Energy Costs,5006,29/9 to 28/10/21,24/11/2021,0162841,298.89,Revenue,British Gas Business,22242,,
Chorley Borough Council,http://statistics.data.gov.uk/id/local-authority/30UE,Central Support Services,1009,Customer & Digital,Publicity - Advertising,40157,Miscellaneous Expenses,5034,Preston and Central Lancashire 1/4 advert,03/11/2021,0161505,"1,388.18",Revenue,British Telecommunications,18431,,
Chorley Borough Council,http://statistics.data.gov.uk/id/local-authority/30UE,Central Support Services,1009,Customer & Digital,Telephones - Rentals,40083,Communication and Computing,5028,broadband,17/11/2021,0162462,"3,713.13",Revenue,British Telecommunications Plc,17131,,
Chorley Borough Council,http://statistics.data.gov.uk/id/local-authority/30UE,Central Support Services,1009,Policy & Governance,Exhibitions & Special Events,40158,Miscellaneous Expenses,5034,"Hire of 12 x Trime Ultra Silent ECO LED Tower Light 159.00 each 1908.00 Total, Delivery and Collection of Tower Lights",03/11/2021,0162218,"2,794.00",Revenue,Buddha Group,77025,,
Chorley Borough Council,http://statistics.data.gov.uk/id/local-authority/30UE,Capital,Capital,Commercial & Property,Main Contractor,03007,Capital Expenditure,Capital,Astley Hall Renovation / Conservation Project,24/11/2021,0162757,"24,393.20",Capital,Bullen Conservation Ltd,68424,,
Chorley Borough Council,http://statistics.data.gov.uk/id/local-authority/30UE,Service Management & Support,1009,Customer & Digital,Supplies-Grounds Maintenance,40025,"Equipment, Furniture & Materia",5023,"Period up to 31/03/2022, Bengal St Depot-Empty yard catch pits each month, interceptor every 3 months, Rowan Croft Pond",17/11/2021,0161002,390.00,Revenue,C J Lyon,16579,,
Chorley Borough Council,http://statistics.data.gov.uk/id/local-authority/30UE,Service Management & Support,1009,Customer & Digital,Supplies-Grounds Maintenance,40025,"Equipment, Furniture & Materia",5023,"Period up to 31/03/2022, Bengal St Depot-Empty yard catch pits each month, interceptor every 3 months, Rowan Croft Pond",17/11/2021,0161025,720.00,Revenue,C J Lyon,16579,,
Chorley Borough Council,http://statistics.data.gov.uk/id/local-authority/30UE,Service Management & Support,1009,Customer & Digital,Supplies-Grounds Maintenance,40025,"Equipment, Furniture & Materia",5023,"Period up to 31/03/2022, Bengal St Depot-Empty yard catch pits each month, interceptor every 3 months, Rowan Croft Pond",17/11/2021,0161173,390.00,Revenue,C J Lyon,16579,,
Chorley Borough Council,http://statistics.data.gov.uk/id/local-authority/30UE,Central Support Services,1009,Customer & Digital,Emergency Call Out System,40096,Communication and Computing,5028,Out of Hours call charges 20/21,17/11/2021,0162456,272.92,Revenue,CallCare Ltd,20257,,
Chorley Borough Council,http://statistics.data.gov.uk/id/local-authority/30UE,Central Support Services,1009,Customer & Digital,Miscellaneous Expenses,40200,Miscellaneous Expenses,5034,GB-505918-OKS,10/11/2021,0162102,897.66,Revenue,Canon (UK) Ltd,17492,,
Chorley Borough Council,http://statistics.data.gov.uk/id/local-authority/30UE,Central Support Services,1009,Customer & Digital,Professional Fees,14011,Direct Employee Expenses,5001,DWP Local Authority Data Share (LADS) Programme IT Costs (2021-055),10/11/2021,0162222,"2,910.72",Revenue,Capita Business Services Ltd,17151,,
Chorley Borough Council,http://statistics.data.gov.uk/id/local-authority/30UE,Central Support Services,1009,Customer & Digital,IT Software - Annual Licences,40101,Communication and Computing,5028,"Software maintenance for the period 01/04/2021 to 31/03/2022, Revenues and Benefits Solution, eCiC & eClaim Automation",17/11/2021,0162406,"58,130.00",Revenue,Capita Business Services Ltd,17151,,
Chorley Borough Council,http://statistics.data.gov.uk/id/local-authority/30UE,Building Control,1090,Customer & Digital,Agency Staff,13000,Direct Employee Expenses,5001,Agency fees for NAME REDACTED,10/11/2021,0162145,"1,664.00",Revenue,Carrington West Ltd,83124,,
Chorley Borough Council,http://statistics.data.gov.uk/id/local-authority/30UE,Building Control,1090,Customer & Digital,Agency Staff,13000,Direct Employee Expenses,5001,Agency fees for NAME REDACTED,24/11/2021,0162161,"1,794.00",Revenue,Carrington West Ltd,83124,,
Chorley Borough Council,http://statistics.data.gov.uk/id/local-authority/30UE,Building Control,1090,Customer & Digital,Agency Staff,13000,Direct Employee Expenses,5001,Agency fees for NAME REDACTED,10/11/2021,0162224,"1,820.00",Revenue,Carrington West Ltd,83124,,
Chorley Borough Council,http://statistics.data.gov.uk/id/local-authority/30UE,Building Control,1090,Customer & Digital,Agency Staff,13000,Direct Employee Expenses,5001,Agency fees for NAME REDACTED,24/11/2021,0162577,"1,274.00",Revenue,Carrington West Ltd,83124,,
Chorley Borough Council,http://statistics.data.gov.uk/id/local-authority/30UE,Building Control,1090,Customer & Digital,Agency Staff,13000,Direct Employee Expenses,5001,Agency fees for NAME REDACTED,24/11/2021,0162803,"1,846.00",Revenue,Carrington West Ltd,83124,,
Chorley Borough Council,http://statistics.data.gov.uk/id/local-authority/30UE,Central Support Services,1009,Policy & Governance,Agency Staff,13000,Direct Employee Expenses,5001,REDACTED,03/11/2021,0162087,"2,100.00",Revenue,Castlefield Recruitment Limited,80454,,
Chorley Borough Council,http://statistics.data.gov.uk/id/local-authority/30UE,Central Support Services,1009,Policy & Governance,Agency Staff,13000,Direct Employee Expenses,5001,REDACTED,03/11/2021,0162088,"1,650.00",Revenue,Castlefield Recruitment Limited,80454,,
Chorley Borough Council,http://statistics.data.gov.uk/id/local-authority/30UE,Central Support Services,1009,Policy & Governance,Agency Staff,13000,Direct Employee Expenses,5001,REDACTED,03/11/2021,0162173,"2,100.00",Revenue,Castlefield Recruitment Limited,80454,,
Chorley Borough Council,http://statistics.data.gov.uk/id/local-authority/30UE,Central Support Services,1009,Policy & Governance,Agency Staff,13000,Direct Employee Expenses,5001,REDACTED,03/11/2021,0162174,"1,470.00",Revenue,Castlefield Recruitment Limited,80454,,
Chorley Borough Council,http://statistics.data.gov.uk/id/local-authority/30UE,Central Support Services,1009,Policy & Governance,Agency Staff,13000,Direct Employee Expenses,5001,REDACTED,17/11/2021,0162465,"1,680.00",Revenue,Castlefield Recruitment Limited,80454,,
Chorley Borough Council,http://statistics.data.gov.uk/id/local-authority/30UE,Corporate Management,1008,Policy & Governance,Agency Staff,13000,Direct Employee Expenses,5001,REDACTED,24/11/2021,0162674,"4,320.83",Revenue,Castlefield Recruitment Limited,80454,,
Chorley Borough Council,http://statistics.data.gov.uk/id/local-authority/30UE,Corporate Management,1008,Commercial & Property,Miscellaneous Expenses,40200,Miscellaneous Expenses,5034,Covid spraying at sites across the council,03/11/2021,0161492,"3,230.00",Revenue,Castus Solutions Limited,78812,,
Chorley Borough Council,http://statistics.data.gov.uk/id/local-authority/30UE,Corporate Management,1008,Commercial & Property,Miscellaneous Expenses,40200,Miscellaneous Expenses,5034,Covid spraying at sites across the council,03/11/2021,0161919,"1,575.00",Revenue,Castus Solutions Limited,78812,,
Chorley Borough Council,http://statistics.data.gov.uk/id/local-authority/30UE,Corporate Management,1008,Commercial & Property,Miscellaneous Expenses,40200,Miscellaneous Expenses,5034,Covid spraying at sites across the council,03/11/2021,0161920,"7,585.00",Revenue,Castus Solutions Limited,78812,,
Chorley Borough Council,http://statistics.data.gov.uk/id/local-authority/30UE,Corporate Management,1008,Commercial & Property,Miscellaneous Expenses,40200,Miscellaneous Expenses,5034,Covid spraying at sites across the council,03/11/2021,0161921,"5,560.00",Revenue,Castus Solutions Limited,78812,,
Chorley Borough Council,http://statistics.data.gov.uk/id/local-authority/30UE,Central Support Services,1009,Commercial & Property,General Repairs - Reactive,20004,Repairs Maintenance & Alts,5005,"CC1670, Primrose Gardens, Chorley, PR7 1EE, ADDRESS REDACTED 1x Dorma Electromagnetic Fire Door Closer",03/11/2021,0161891,497.50,Revenue,CC Door Systems Ltd,81624,,
Chorley Borough Council,http://statistics.data.gov.uk/id/local-authority/30UE,Central Support Services,1009,Policy & Governance,Exhibitions & Special Events,40158,Miscellaneous Expenses,5034,Project the image of the poppy on two sides of Rivington Pike,10/11/2021,0162421,550.00,Revenue,CDS Events,81168,,
Chorley Borough Council,http://statistics.data.gov.uk/id/local-authority/30UE,Recognised Cap Grants & Conts,,Customer & Digital,Contributions Parish Councils,40144,Grants and Subscriptions,5031,cil rec 1st apr-30th sept21,03/11/2021,0161939,"3,843.21",Revenue,Charnock Richard Parish Cncl,16206,,
Chorley Borough Council,http://statistics.data.gov.uk/id/local-authority/30UE,Homelessness,1075,Communities,HR Approved Training Expenses,17001,Indirect Employee Expenses,5002,"Level 5 Diploma in Housing (Online) for candidate NAME REDACTED, including 12 month CIH Membership.  (Start: 4/10/2021)",03/11/2021,0162225,"2,700.00",Revenue,Chartered Institute Of Housing,16776,,
Chorley Borough Council,http://statistics.data.gov.uk/id/local-authority/30UE,Service Management & Support,1009,Customer & Digital,Supplies-Grounds Maintenance,40025,"Equipment, Furniture & Materia",5023,As per quotation Q18082,03/11/2021,0161995,384.82,Revenue,Cheshire Turf Machinery Ltd,76973,,
Chorley Borough Council,http://statistics.data.gov.uk/id/local-authority/30UE,Parking Services,1066,Commercial & Property,External Contractors,50008,Private Contractors,5042,"Processing 075, 076, 077, 079, 080, 085, 086, MIPERMIT FEES, CHARGE, ELECPAYBANKFEE, Processing 010, 011",03/11/2021,0161934,415.41,Revenue,Chipside Ltd,22063,,
Chorley Borough Council,http://statistics.data.gov.uk/id/local-authority/30UE,Business Support,1095,Commercial & Property,Grants To Other Organisations,40127,Grants and Subscriptions,5031,shop front grant,17/11/2021,0162466,"1,094.94",Revenue,CHLY Ltd,84012,,
Chorley Borough Council,http://statistics.data.gov.uk/id/local-authority/30UE,Democratic Represent and  Mgnt,1007,Policy & Governance,Mayoral Hospitality,40123,Expenses,5030,5 bows for the Charity Concert,17/11/2021,0162549,12.45,Revenue,Chorley BC Petty Cash,16301,,
Chorley Borough Council,http://statistics.data.gov.uk/id/local-authority/30UE,Democratic Represent and  Mgnt,1007,Policy & Governance,Mayoral Hospitality,40123,Expenses,5030,batteries for LED candles Charity Concer,17/11/2021,0162549,16.00,Revenue,Chorley BC Petty Cash,16301,,
Chorley Borough Council,http://statistics.data.gov.uk/id/local-authority/30UE,Economic Development,1096,Policy & Governance,Publicity - Advertising,40157,Miscellaneous Expenses,5034,Woodchats Voucher,17/11/2021,0162549,5.00,Revenue,Chorley BC Petty Cash,16301,,
Chorley Borough Council,http://statistics.data.gov.uk/id/local-authority/30UE,Corporate Management,1008,Policy & Governance,Corp Training Organisational Development,17006,Indirect Employee Expenses,5002,voucher for making it happen awards,17/11/2021,0162549,25.00,Revenue,Chorley BC Petty Cash,16301,,
Chorley Borough Council,http://statistics.data.gov.uk/id/local-authority/30UE,Central Support Services,1009,Policy & Governance,Cleaning Materials,40019,"Equipment, Furniture & Materia",5023,Dishwasher tablets,17/11/2021,0162549,9.99,Revenue,Chorley BC Petty Cash,16301,,
Chorley Borough Council,http://statistics.data.gov.uk/id/local-authority/30UE,Economic Development,1096,Policy & Governance,Publicity - Advertising,40157,Miscellaneous Expenses,5034,Woodchats voucher,17/11/2021,0162549,15.00,Revenue,Chorley BC Petty Cash,16301,,
Chorley Borough Council,http://statistics.data.gov.uk/id/local-authority/30UE,Central Support Services,1009,Policy & Governance,Computer Equipment-Purchase,40098,Communication and Computing,5028,Rymans - Verbatim Pinstripe 6,17/11/2021,0162549,41.62,Revenue,Chorley BC Petty Cash,16301,,
Chorley Borough Council,http://statistics.data.gov.uk/id/local-authority/30UE,Elections,1012,Policy & Governance,Tools & Equipment - Purchase,40003,"Equipment, Furniture & Materia",5023,Asda -food storers,17/11/2021,0162549,9.00,Revenue,Chorley BC Petty Cash,16301,,
Chorley Borough Council,http://statistics.data.gov.uk/id/local-authority/30UE,Elections,1012,Policy & Governance,Tools & Equipment - Purchase,40003,"Equipment, Furniture & Materia",5023,Asda - milk,17/11/2021,0162549,1.20,Revenue,Chorley BC Petty Cash,16301,,
Chorley Borough Council,http://statistics.data.gov.uk/id/local-authority/30UE,Elections,1012,Policy & Governance,Tools & Equipment - Purchase,40003,"Equipment, Furniture & Materia",5023,Asda - food storers,17/11/2021,0162549,10.00,Revenue,Chorley BC Petty Cash,16301,,
Chorley Borough Council,http://statistics.data.gov.uk/id/local-authority/30UE,Elections,1012,Policy & Governance,Tools & Equipment - Purchase,40003,"Equipment, Furniture & Materia",5023,Morrisons - tea bags,17/11/2021,0162549,3.00,Revenue,Chorley BC Petty Cash,16301,,
Chorley Borough Council,http://statistics.data.gov.uk/id/local-authority/30UE,Central Support Services,1009,Policy & Governance,Uniforms,40039,"Clothing, Uniforms and Laundry",5025,Asda - formal shirts,17/11/2021,0162549,12.00,Revenue,Chorley BC Petty Cash,16301,,
Chorley Borough Council,http://statistics.data.gov.uk/id/local-authority/30UE,Central Support Services,1009,Policy & Governance,Tools & Equipment - Purchase,40003,"Equipment, Furniture & Materia",5023,Timpson - cut keys,17/11/2021,0162549,10.75,Revenue,Chorley BC Petty Cash,16301,,
Chorley Borough Council,http://statistics.data.gov.uk/id/local-authority/30UE,Central Support Services,1009,Policy & Governance,Tools & Equipment - Purchase,40003,"Equipment, Furniture & Materia",5023,Wilcock &amp; Sons - lubricant spray,17/11/2021,0162549,2.49,Revenue,Chorley BC Petty Cash,16301,,
Chorley Borough Council,http://statistics.data.gov.uk/id/local-authority/30UE,Democratic Represent and  Mgnt,1007,Policy & Governance,Use Of Transport - Mayoral Car,30015,Transport Recharges,5017,Morrisons - car valet,17/11/2021,0162549,9.49,Revenue,Chorley BC Petty Cash,16301,,
Chorley Borough Council,http://statistics.data.gov.uk/id/local-authority/30UE,Central Support Services,1009,Policy & Governance,Tools & Equipment - Purchase,40003,"Equipment, Furniture & Materia",5023,Poundland - tape measure,17/11/2021,0162549,0.84,Revenue,Chorley BC Petty Cash,16301,,
Chorley Borough Council,http://statistics.data.gov.uk/id/local-authority/30UE,Central Support Services,1009,Policy & Governance,Tools & Equipment - Purchase,40003,"Equipment, Furniture & Materia",5023,Timpson - cut keys,17/11/2021,0162549,14.00,Revenue,Chorley BC Petty Cash,16301,,
Chorley Borough Council,http://statistics.data.gov.uk/id/local-authority/30UE,Central Support Services,1009,Policy & Governance,Tools & Equipment - Purchase,40003,"Equipment, Furniture & Materia",5023,Timpson - keys for Union st,17/11/2021,0162549,10.50,Revenue,Chorley BC Petty Cash,16301,,
Chorley Borough Council,http://statistics.data.gov.uk/id/local-authority/30UE,Central Support Services,1009,Policy & Governance,Uniforms,40039,"Clothing, Uniforms and Laundry",5025,Asda - uniform,17/11/2021,0162549,19.50,Revenue,Chorley BC Petty Cash,16301,,
Chorley Borough Council,http://statistics.data.gov.uk/id/local-authority/30UE,Central Support Services,1009,Policy & Governance,Tools & Equipment - Purchase,40003,"Equipment, Furniture & Materia",5023,Screwfix - grease can,17/11/2021,0162549,9.15,Revenue,Chorley BC Petty Cash,16301,,
Chorley Borough Council,http://statistics.data.gov.uk/id/local-authority/30UE,Central Support Services,1009,Policy & Governance,Refreshments,40036,Catering,5024,Booths - milk and sugar for Armed Forces Day Ceremony,17/11/2021,0162549,2.10,Revenue,Chorley BC Petty Cash,16301,,
Chorley Borough Council,http://statistics.data.gov.uk/id/local-authority/30UE,Central Support Services,1009,Policy & Governance,Tools & Equipment - Purchase,40003,"Equipment, Furniture & Materia",5023,Asda - coasters for Council chamber,17/11/2021,0162549,40.00,Revenue,Chorley BC Petty Cash,16301,,
Chorley Borough Council,http://statistics.data.gov.uk/id/local-authority/30UE,Central Support Services,1009,Policy & Governance,Tools & Equipment - Purchase,40003,"Equipment, Furniture & Materia",5023,Screwfix - cable ties,17/11/2021,0162549,11.71,Revenue,Chorley BC Petty Cash,16301,,
Chorley Borough Council,http://statistics.data.gov.uk/id/local-authority/30UE,Central Support Services,1009,Policy & Governance,Tools & Equipment - Purchase,40003,"Equipment, Furniture & Materia",5023,B&M - coasters,17/11/2021,0162549,29.90,Revenue,Chorley BC Petty Cash,16301,,
Chorley Borough Council,http://statistics.data.gov.uk/id/local-authority/30UE,Central Support Services,1009,Policy & Governance,Tools & Equipment - Purchase,40003,"Equipment, Furniture & Materia",5023,B&M - coasters,17/11/2021,0162549,14.95,Revenue,Chorley BC Petty Cash,16301,,
Chorley Borough Council,http://statistics.data.gov.uk/id/local-authority/30UE,Central Support Services,1009,Policy & Governance,Postages,40082,Communication and Computing,5028,Post Office,17/11/2021,0162549,2.06,Revenue,Chorley BC Petty Cash,16301,,
Chorley Borough Council,http://statistics.data.gov.uk/id/local-authority/30UE,Democratic Represent and  Mgnt,1007,Policy & Governance,Use Of Transport - Mayoral Car,30015,Transport Recharges,5017,A6 Car wash,17/11/2021,0162549,4.50,Revenue,Chorley BC Petty Cash,16301,,
Chorley Borough Council,http://statistics.data.gov.uk/id/local-authority/30UE,Democratic Represent and  Mgnt,1007,Policy & Governance,Use Of Transport - Mayoral Car,30015,Transport Recharges,5017,IMO Car Wash,17/11/2021,0162549,6.00,Revenue,Chorley BC Petty Cash,16301,,
Chorley Borough Council,http://statistics.data.gov.uk/id/local-authority/30UE,Central Support Services,1009,Policy & Governance,Tools & Equipment - Purchase,40003,"Equipment, Furniture & Materia",5023,Key copied for room in cellar,17/11/2021,0162549,7.25,Revenue,Chorley BC Petty Cash,16301,,
Chorley Borough Council,http://statistics.data.gov.uk/id/local-authority/30UE,Central Support Services,1009,Policy & Governance,Uniforms,40039,"Clothing, Uniforms and Laundry",5025,Trousers,17/11/2021,0162549,29.99,Revenue,Chorley BC Petty Cash,16301,,
Chorley Borough Council,http://statistics.data.gov.uk/id/local-authority/30UE,Central Support Services,1009,Policy & Governance,Uniforms,40039,"Clothing, Uniforms and Laundry",5025,Trousers,17/11/2021,0162549,34.98,Revenue,Chorley BC Petty Cash,16301,,
Chorley Borough Council,http://statistics.data.gov.uk/id/local-authority/30UE,Central Support Services,1009,Policy & Governance,Tools & Equipment - Purchase,40003,"Equipment, Furniture & Materia",5023,B&Q - FFP3 Masks for Lancastrian,17/11/2021,0162549,40.92,Revenue,Chorley BC Petty Cash,16301,,
Chorley Borough Council,http://statistics.data.gov.uk/id/local-authority/30UE,Central Support Services,1009,Policy & Governance,Uniforms,40039,"Clothing, Uniforms and Laundry",5025,Fashion World - 2 x white work shirts,17/11/2021,0162549,27.20,Revenue,Chorley BC Petty Cash,16301,,
Chorley Borough Council,http://statistics.data.gov.uk/id/local-authority/30UE,Central Support Services,1009,Policy & Governance,Mayoral Hospitality,40123,Expenses,5030,Tealight Candles LED,17/11/2021,0162549,19.93,Revenue,Chorley BC Petty Cash,16301,,
Chorley Borough Council,http://statistics.data.gov.uk/id/local-authority/30UE,Central Support Services,1009,Policy & Governance,Postages,40082,Communication and Computing,5028,Post Office,17/11/2021,0162549,6.75,Revenue,Chorley BC Petty Cash,16301,,
Chorley Borough Council,http://statistics.data.gov.uk/id/local-authority/30UE,Central Support Services,1009,Policy & Governance,Miscellaneous Expenses,40200,Miscellaneous Expenses,5034,Post Office,17/11/2021,0162549,7.65,Revenue,Chorley BC Petty Cash,16301,,
Chorley Borough Council,http://statistics.data.gov.uk/id/local-authority/30UE,Central Support Services,1009,Policy & Governance,Service Fees,40056,Services,5027,Diary 2022 - Card Factory,17/11/2021,0162549,1.30,Revenue,Chorley BC Petty Cash,16301,,
Chorley Borough Council,http://statistics.data.gov.uk/id/local-authority/30UE,Corporate Management,1008,Communities,External Contractor,40198,Miscellaneous Expenses,5034,Youth Hub start up costs,10/11/2021,0162371,"3,730.50",Revenue,Chorley Youth Zone,77339,,
Chorley Borough Council,http://statistics.data.gov.uk/id/local-authority/30UE,Corporate Management,1008,Communities,External Contractor,40198,Miscellaneous Expenses,5034,Youth Hub Start-up Costs - Invoice 1,10/11/2021,0162441,"2,487.00",Revenue,Chorley Youth Zone,77339,,
Chorley Borough Council,http://statistics.data.gov.uk/id/local-authority/30UE,Service Management & Support,1009,Customer & Digital,Grounds Maintenance Contractor,20043,Grounds Maintenance Costs,5013,Supply a MEWP and 2 men to take down lamp post baskets at Adlington & Coppull,03/11/2021,0162080,900.00,Revenue,City Illuminations Ltd,77388,,
Chorley Borough Council,http://statistics.data.gov.uk/id/local-authority/30UE,Central Support Services,1009,Commercial & Property,General Repairs - Reactive,20004,Repairs Maintenance & Alts,5005,Town Hall - Blanket order for reactive repairs,17/11/2021,0161521,354.20,Revenue,Classic Lifts Limited,20897,,
Chorley Borough Council,http://statistics.data.gov.uk/id/local-authority/30UE,Central Support Services,1009,Commercial & Property,General Repairs - Reactive,20004,Repairs Maintenance & Alts,5005,Town Hall - Blanket order for reactive repairs,24/11/2021,0161523,780.45,Revenue,Classic Lifts Limited,20897,,
Chorley Borough Council,http://statistics.data.gov.uk/id/local-authority/30UE,Recognised Cap Grants & Conts,,Customer & Digital,Contributions Parish Councils,40144,Grants and Subscriptions,5031,1st apr to 30th sept21,03/11/2021,0161938,"10,864.99",Revenue,Clayton-Le-Woods Parish Coun.,17024,,
Chorley Borough Council,http://statistics.data.gov.uk/id/local-authority/30UE,Elections,1012,Policy & Governance,Rent/Hire Of Premises,20017,Premises Rents,5007,room hire at the Talbot Inn for polling station on 6 May 2021,03/11/2021,0162227,275.00,Revenue,NAME REDACTED,83831,,
Chorley Borough Council,http://statistics.data.gov.uk/id/local-authority/30UE,Recognised Cap Grants & Conts,,Customer & Digital,Contributions Parish Councils,40144,Grants and Subscriptions,5031,CIL 1st apr-30th sept,03/11/2021,0161937,"7,546.70",Revenue,Coppull Parish Council,17025,,
Chorley Borough Council,http://statistics.data.gov.uk/id/local-authority/30UE,Community Development,1097,Commercial & Property,General Repairs - Reactive,20004,Repairs Maintenance & Alts,5005,35-39 Market St (CAB / MP) - reactive repair works,03/11/2021,0159943,840.00,Revenue,Corlett Electrical Eng Co Ltd,16271,,
Chorley Borough Council,http://statistics.data.gov.uk/id/local-authority/30UE,Central Support Services,1009,Commercial & Property,General Repairs - Reactive,20004,Repairs Maintenance & Alts,5005,Community Centres - reactive repair works,10/11/2021,0160027,361.90,Revenue,Corlett Electrical Eng Co Ltd,16271,,
Chorley Borough Council,http://statistics.data.gov.uk/id/local-authority/30UE,Central Support Services,1009,Commercial & Property,General Repairs - Reactive,20004,Repairs Maintenance & Alts,5005,Primrose Gardens - reactive repair works,17/11/2021,0160044,570.58,Revenue,Corlett Electrical Eng Co Ltd,16271,,
Chorley Borough Council,http://statistics.data.gov.uk/id/local-authority/30UE,Central Support Services,1009,Commercial & Property,General Repairs - Reactive,20004,Repairs Maintenance & Alts,5005,Town Hall - reactive repair works,17/11/2021,0160047,328.89,Revenue,Corlett Electrical Eng Co Ltd,16271,,
Chorley Borough Council,http://statistics.data.gov.uk/id/local-authority/30UE,Recreation & Sport,1037,Commercial & Property,Planned Maintenance,20006,Repairs Maintenance & Alts,5005,"aslc, inv66810, quarterly visual electrical inspection",03/11/2021,0160781,378.00,Revenue,Corlett Electrical Eng Co Ltd,16271,,
Chorley Borough Council,http://statistics.data.gov.uk/id/local-authority/30UE,Recreation & Sport,1037,Commercial & Property,Planned Maintenance,20006,Repairs Maintenance & Alts,5005,"bb, inv66811, carried out quarterly visual electrical inspection",03/11/2021,0160980,252.00,Revenue,Corlett Electrical Eng Co Ltd,16271,,
Chorley Borough Council,http://statistics.data.gov.uk/id/local-authority/30UE,Central Support Services,1009,Commercial & Property,General Repairs - Reactive,20004,Repairs Maintenance & Alts,5005,Union St - reactive repair works,17/11/2021,0161927,315.50,Revenue,Corlett Electrical Eng Co Ltd,16271,,
Chorley Borough Council,http://statistics.data.gov.uk/id/local-authority/30UE,Capital,Capital,Commercial & Property,Main Contractor,03007,Capital Expenditure,Capital,"ADDRESS REDACTED, Test and Inspection",03/11/2021,0162006,158.00,Capital,Corlett Electrical Eng Co Ltd,16271,,
Chorley Borough Council,http://statistics.data.gov.uk/id/local-authority/30UE,Capital,Capital,Commercial & Property,Main Contractor,03007,Capital Expenditure,Capital,"ADDRESS REDACTED, Test and Inspection",03/11/2021,0162006,158.00,Capital,Corlett Electrical Eng Co Ltd,16271,,
Chorley Borough Council,http://statistics.data.gov.uk/id/local-authority/30UE,Capital,Capital,Commercial & Property,Main Contractor,03007,Capital Expenditure,Capital,"ADDRESS REDACTED, Test and Inspection",03/11/2021,0162006,158.00,Capital,Corlett Electrical Eng Co Ltd,16271,,
Chorley Borough Council,http://statistics.data.gov.uk/id/local-authority/30UE,Capital,Capital,Commercial & Property,Main Contractor,03007,Capital Expenditure,Capital,"ADDRESS REDACTED, Test and Inspection",03/11/2021,0162006,158.00,Capital,Corlett Electrical Eng Co Ltd,16271,,
Chorley Borough Council,http://statistics.data.gov.uk/id/local-authority/30UE,Capital,Capital,Commercial & Property,Main Contractor,03007,Capital Expenditure,Capital,"ADDRESS REDACTED, Test and Inspection",03/11/2021,0162006,158.00,Capital,Corlett Electrical Eng Co Ltd,16271,,
Chorley Borough Council,http://statistics.data.gov.uk/id/local-authority/30UE,Capital,Capital,Commercial & Property,Main Contractor,03007,Capital Expenditure,Capital,"ADDRESS REDACTED, Test and Inspection",03/11/2021,0162006,158.00,Capital,Corlett Electrical Eng Co Ltd,16271,,
Chorley Borough Council,http://statistics.data.gov.uk/id/local-authority/30UE,Capital,Capital,Commercial & Property,Main Contractor,03007,Capital Expenditure,Capital,ADDRESS REDACTED works ready for letting,03/11/2021,0162013,53.44,Capital,Corlett Electrical Eng Co Ltd,16271,,
Chorley Borough Council,http://statistics.data.gov.uk/id/local-authority/30UE,Capital,Capital,Commercial & Property,Main Contractor,03007,Capital Expenditure,Capital,"ADDRESS REDACTED, Test and Inspection and subsequent remedials",03/11/2021,0162013,820.42,Capital,Corlett Electrical Eng Co Ltd,16271,,
Chorley Borough Council,http://statistics.data.gov.uk/id/local-authority/30UE,Capital,Capital,Commercial & Property,Main Contractor,03007,Capital Expenditure,Capital,"ADDRESS REDACTED, Test and Inspection and subsequent remedials",03/11/2021,0162013,688.78,Capital,Corlett Electrical Eng Co Ltd,16271,,
Chorley Borough Council,http://statistics.data.gov.uk/id/local-authority/30UE,Capital,Capital,Commercial & Property,Main Contractor,03007,Capital Expenditure,Capital,"ADDRESS REDACTED, Test and inspection remedials",03/11/2021,0162013,566.34,Capital,Corlett Electrical Eng Co Ltd,16271,,
Chorley Borough Council,http://statistics.data.gov.uk/id/local-authority/30UE,Capital,Capital,Commercial & Property,Main Contractor,03007,Capital Expenditure,Capital,"ADDRESS REDACTED, Test and inspection remedials",03/11/2021,0162013,518.55,Capital,Corlett Electrical Eng Co Ltd,16271,,
Chorley Borough Council,http://statistics.data.gov.uk/id/local-authority/30UE,Central Support Services,1009,Commercial & Property,General Repairs - Reactive,20004,Repairs Maintenance & Alts,5005,Astley Hall and Buildings - reactive repair works,10/11/2021,0162372,260.27,Revenue,Corlett Electrical Eng Co Ltd,16271,,
Chorley Borough Council,http://statistics.data.gov.uk/id/local-authority/30UE,Central Support Services,1009,Commercial & Property,General Repairs - Reactive,20004,Repairs Maintenance & Alts,5005,Astley Hall and Buildings - reactive repair works,10/11/2021,0162373,255.99,Revenue,Corlett Electrical Eng Co Ltd,16271,,
Chorley Borough Council,http://statistics.data.gov.uk/id/local-authority/30UE,Business Support,1095,Commercial & Property,General Repairs - Reactive,20004,Repairs Maintenance & Alts,5005,Strawberry Fields - reactive repair works,10/11/2021,0162383,364.79,Revenue,Corlett Electrical Eng Co Ltd,16271,,
Chorley Borough Council,http://statistics.data.gov.uk/id/local-authority/30UE,Recreation & Sport,1037,Commercial & Property,Gas,20014,Energy Costs,5006,sept-oct21,24/11/2021,0162659,"1,312.96",Revenue,Corona Energy Retail 2 Ltd,67249,,
Chorley Borough Council,http://statistics.data.gov.uk/id/local-authority/30UE,Recreation & Sport,1037,Commercial & Property,Gas,20014,Energy Costs,5006,sept-oct21,24/11/2021,0162660,414.35,Revenue,Corona Energy Retail 2 Ltd,67249,,
Chorley Borough Council,http://statistics.data.gov.uk/id/local-authority/30UE,Business Support,1095,Commercial & Property,Gas,20014,Energy Costs,5006,sept-oct21,24/11/2021,0162663,"1,118.93",Revenue,Corona Energy Retail 2 Ltd,67249,,
Chorley Borough Council,http://statistics.data.gov.uk/id/local-authority/30UE,Recreation & Sport,1037,Commercial & Property,Gas,20014,Energy Costs,5006,sept-oct20,24/11/2021,0162666,"4,404.04",Revenue,Corona Energy Retail 2 Ltd,67249,,
Chorley Borough Council,http://statistics.data.gov.uk/id/local-authority/30UE,Recognised Cap Grants & Conts,,Customer & Digital,Contributions Parish Councils,40144,Grants and Subscriptions,5031,CIL REC2021,03/11/2021,0161936,"1,521.91",Revenue,Croston Parish Council,17026,,
Chorley Borough Council,http://statistics.data.gov.uk/id/local-authority/30UE,Corporate Management,1008,Policy & Governance,Miscellaneous Expenses,40200,Miscellaneous Expenses,5034,Hire of 8 portable hand wash stations from 20th Sept to 17th Oct 2021. Invoice no. 3292.,03/11/2021,0162162,"1,440.00",Revenue,Cyril Unsworth Ltd,78887,,
Chorley Borough Council,http://statistics.data.gov.uk/id/local-authority/30UE,Capital,Capital,Communities,Grants,03002,Capital Expenditure,Capital,ADDRESS REDACTED,03/11/2021,0162326,"4,549.75",Capital,D J Bathing,78482,,
Chorley Borough Council,http://statistics.data.gov.uk/id/local-authority/30UE,Recreation & Sport,1037,Customer & Digital,Computer Equipment-Purchase,40098,Communication and Computing,5028,"Legend Club - Leisure Centre Management, 3 year contract period, Year One total 38,739.00",10/11/2021,0159621,"1,580.00",Revenue,Debit Finance Collections Plc T/A Legend Software,80920,,
Chorley Borough Council,http://statistics.data.gov.uk/id/local-authority/30UE,Recreation & Sport,1037,Customer & Digital,Computer Equipment-Purchase,40098,Communication and Computing,5028,"Legend Club - Leisure Centre Management, 3 year contract period, Year One total 38,739.00",10/11/2021,0160409,"1,580.00",Revenue,Debit Finance Collections Plc T/A Legend Software,80920,,
Chorley Borough Council,http://statistics.data.gov.uk/id/local-authority/30UE,Recreation & Sport,1037,Customer & Digital,Computer Equipment-Purchase,40098,Communication and Computing,5028,"Legend Club - Leisure Centre Management, 3 year contract period, Year One total 38,739.00",10/11/2021,0161488,"1,580.00",Revenue,Debit Finance Collections Plc T/A Legend Software,80920,,
Chorley Borough Council,http://statistics.data.gov.uk/id/local-authority/30UE,Recreation & Sport,1037,Customer & Digital,Computer Equipment-Purchase,40098,Communication and Computing,5028,"Legend Club - Leisure Centre Management, 3 year contract period, Year One total 38,739.00",10/11/2021,0162044,955.30,Revenue,Debit Finance Collections Plc T/A Legend Software,80920,,
Chorley Borough Council,http://statistics.data.gov.uk/id/local-authority/30UE,Recreation & Sport,1037,Customer & Digital,Computer Equipment-Purchase,40098,Communication and Computing,5028,"Legend Club - Leisure Centre Management, 3 year contract period, Year One total 38,739.00",10/11/2021,0162351,677.19,Revenue,Debit Finance Collections Plc T/A Legend Software,80920,,
Chorley Borough Council,http://statistics.data.gov.uk/id/local-authority/30UE,Control Accounts,Control,Policy & Governance,General Balances,00100,Balance Sheet,Balance,Child Maintenance Attachment of Earnings,24/11/2021,0162770,252.08,Revenue,Department for Work and Pensions (A Wilson),83955,,
Chorley Borough Council,http://statistics.data.gov.uk/id/local-authority/30UE,Corporate Management,1008,Policy & Governance,Refunds,40220,Miscellaneous Expenses,5034,"Local Restrictions Support Grant, Closed Business Lockdown Payment 2021",10/11/2021,0161959,"2,567,608.07",Revenue,Dept for Business Energy & Ind. Strategy (BEIS),82937,,
Chorley Borough Council,http://statistics.data.gov.uk/id/local-authority/30UE,Open Spaces,1038,Customer & Digital,Grounds Maintenance Contractor,20043,Grounds Maintenance Costs,5013,1 Days work at Yarrow valley for the Big digger doing silt trap and path work,17/11/2021,0162450,300.00,Revenue,Derek R Smith,21092,,
Chorley Borough Council,http://statistics.data.gov.uk/id/local-authority/30UE,Corporate Management,1008,Policy & Governance,Training Course Fees,17010,Indirect Employee Expenses,5002,"Level 3 First Aid at Work for 12 students on 6th October, for 9 students on 8th October",10/11/2021,0162288,"1,575.00",Revenue,DGF First Aid Training,72087,,
Chorley Borough Council,http://statistics.data.gov.uk/id/local-authority/30UE,Service Management & Support,1009,Customer & Digital,Supplies-Grounds Maintenance,40025,"Equipment, Furniture & Materia",5023,"As per document number 052919, Order ref 229947",17/11/2021,0162574,416.30,Revenue,Dick Leigh,17138,,
Chorley Borough Council,http://statistics.data.gov.uk/id/local-authority/30UE,Central Support Services,1009,Communities,Training Course Fees,17010,Indirect Employee Expenses,5002,PCI Accredited Training for Social Prescribing Link Worker Team. For 8 people a discount of 10% has been applied.,10/11/2021,0162330,"2,138.40",Revenue,DNA Insight Ltd,83774,,
Chorley Borough Council,http://statistics.data.gov.uk/id/local-authority/30UE,Culture & Heritage,1036,Policy & Governance,Souvenirs,40033,"Equipment, Furniture & Materia",5023,"Books for Astley Hall gift shop: Leonora Carrington, Mr William Shakespeare Plays, DK Tudor Eyewitness, Adult Jigsaw",24/11/2021,0162789,469.25,Revenue,Ebb and Flo Bookshop,67239,,
Chorley Borough Council,http://statistics.data.gov.uk/id/local-authority/30UE,Capital,Capital,Commercial & Property,Main Contractor,03007,Capital Expenditure,Capital,by power outage on 12/10/2021,03/11/2021,0162068,250.00,Capital,Eden of Chorley Ltd,16788,,
Chorley Borough Council,http://statistics.data.gov.uk/id/local-authority/30UE,Capital,Capital,Commercial & Property,Main Contractor,03007,Capital Expenditure,Capital,ADDRESS REDACTED Driveway replacement,24/11/2021,0162745,"3,750.00",Capital,EFT Construction,78195,,
Chorley Borough Council,http://statistics.data.gov.uk/id/local-authority/30UE,Business Support,1095,Commercial & Property,Internet Charges,40104,Communication and Computing,5028,"All regular, monthly invoices to cover Operate Growth, Connect Growth and Public IP & Call Charges for financial year 2021-22",03/11/2021,0161452,266.11,Revenue,Essensys Ltd,77836,,
Chorley Borough Council,http://statistics.data.gov.uk/id/local-authority/30UE,Business Support,1095,Commercial & Property,Internet Charges,40104,Communication and Computing,5028,"All regular, monthly invoices to cover Operate Growth, Connect Growth and Public IP & Call Charges for financial year 2021-22",03/11/2021,0161455,"3,810.00",Revenue,Essensys Ltd,77836,,
Chorley Borough Council,http://statistics.data.gov.uk/id/local-authority/30UE,Business Support,1095,Commercial & Property,Internet Charges,40104,Communication and Computing,5028,"All regular, monthly invoices to cover Operate Growth, Connect Growth and Public IP & Call Charges for financial year 2021-22",03/11/2021,0162275,254.19,Revenue,Essensys Ltd,77836,,
Chorley Borough Council,http://statistics.data.gov.uk/id/local-authority/30UE,Business Support,1095,Commercial & Property,Internet Charges,40104,Communication and Computing,5028,"All regular, monthly invoices to cover Operate Growth, Connect Growth and Public IP & Call Charges for financial year 2021-22",10/11/2021,0162334,"3,810.00",Revenue,Essensys Ltd,77836,,
Chorley Borough Council,http://statistics.data.gov.uk/id/local-authority/30UE,Central Support Services,1009,Communities,Planned Maintenance,20006,Repairs Maintenance & Alts,5005,"Chorley Town Hall Test and Inspection, Eyebolt BS EN, Cable System - Mild steel anchor post to concrete, Ladder, Lanyard",03/11/2021,0161525,440.00,Revenue,Eurosafe Solutions Limited,66302,,
Chorley Borough Council,http://statistics.data.gov.uk/id/local-authority/30UE,Recreation & Sport,1037,Commercial & Property,Planned Maintenance,20006,Repairs Maintenance & Alts,5005,"Fall arrest system inspection, All Seasons Leisure Centre",03/11/2021,0161528,460.00,Revenue,Eurosafe Solutions Limited,66302,,
Chorley Borough Council,http://statistics.data.gov.uk/id/local-authority/30UE,Central Support Services,1009,Commercial & Property,Planned Maintenance,20006,Repairs Maintenance & Alts,5005,"Quotation Ref No: ERQ035833/1, Re: 2021 Repairs - Chorley Town Hall, an safe equipment remedials",24/11/2021,0162758,442.00,Revenue,Eurosafe Solutions Limited,66302,,
Chorley Borough Council,http://statistics.data.gov.uk/id/local-authority/30UE,Service Management & Support,1009,Customer & Digital,Supplies-Grounds Maintenance,40025,"Equipment, Furniture & Materia",5023,Supply 15 hanging baskets (Spring),17/11/2021,0162438,375.00,Revenue,Everglades Nurseries Ltd,20202,,
Chorley Borough Council,http://statistics.data.gov.uk/id/local-authority/30UE,Capital,Capital,Communities,Main Contractor,03007,Capital Expenditure,Capital,Trees for the Tree Giveaway 30th Oct 2021. see quote. Delivery to Ackhurst Lodge Car Park 8am on 30th Oct,24/11/2021,0162624,"3,377.70",Capital,Everglades Nurseries Ltd,20202,,
Chorley Borough Council,http://statistics.data.gov.uk/id/local-authority/30UE,Central Support Services,1009,Customer & Digital,Tools & Equipment - Maintenance,40005,"Equipment, Furniture & Materia",5023,"Chorley Council Trade waste - Fixed 14 trade waste, Used 13 wheels, 2 scrap. 14 x 75 each = 1050.00",17/11/2021,0162534,"1,050.00",Revenue,Fairport Containers Ltd,17735,,
Chorley Borough Council,http://statistics.data.gov.uk/id/local-authority/30UE,Central Support Services,1009,Customer & Digital,Unitary Payment(S),50009,Private Contractors,5042,Provision of waste and recycling collection services 2021-2022,17/11/2021,0162253,"186,930.72",Revenue,FCC Environment Services (UK) Limited,77903,,
Chorley Borough Council,http://statistics.data.gov.uk/id/local-authority/30UE,Central Support Services,1009,Communities,ICT Software Implementation,40114,Communication and Computing,5028,"Cap2 - Migration (per day) 5 x 995.00, Cap2 Integration Fee 2 x 750.00, CoursePro Setup 4 x 370.00, South Ribble Installation",10/11/2021,0162377,"7,955.00",Revenue,Fitronics Ltd T/A Cap2 Solutions,80937,,
Chorley Borough Council,http://statistics.data.gov.uk/id/local-authority/30UE,Central Support Services,1009,Communities,IT Software - Annual Licences,40101,Communication and Computing,5028,"CoursePro 1 x  2,677.56, CoursePro 1 x 2,677.56, CoursePro 1 x 2,677.56, CoursePro 1 x 2,592.00, May 2021 - April 2022",17/11/2021,0162378,"10,624.68",Revenue,Fitronics Ltd T/A Cap2 Solutions,80937,,
Chorley Borough Council,http://statistics.data.gov.uk/id/local-authority/30UE,Parking Services,1066,Commercial & Property,Fixtures & Fittings - Purchase,20027,Fixtures and Fittings,5010,"As per quote, Please supply, install and commission, Cleveland Street Car Park site (Short Stay), Solar Powered Strada EVO3",17/11/2021,0162580,"3,266.00",Revenue,Flow Bird Smart City UK Ltd,16279,,
Chorley Borough Council,http://statistics.data.gov.uk/id/local-authority/30UE,Central Support Services,1009,Commercial & Property,Planned Maintenance,20006,Repairs Maintenance & Alts,5005,"All Seasons, Hyproliser Monthly Rental Fee, 420.14 pm",03/11/2021,0162052,420.14,Revenue,Gaffey Technical Services Ltd,18844,,
Chorley Borough Council,http://statistics.data.gov.uk/id/local-authority/30UE,Capital,Capital,Commercial & Property,Main Contractor,03007,Capital Expenditure,Capital,Heritage Consultant for Astley Hall Renovation works,24/11/2021,0162744,"5,175.00",Capital,Geoff W Maybank,64389,,
Chorley Borough Council,http://statistics.data.gov.uk/id/local-authority/30UE,Capital,Capital,Commercial & Property,Other Capital Related Fees,03024,Capital Expenditure,Capital,"I2021/19/000038, To providing a Market Appraisal of the freehold interest at Logistics House, Revolution Park, Chorley, PR6 7AJ",10/11/2021,0162407,"3,500.00",Capital,Gerald Eve LLP,76219,,
Chorley Borough Council,http://statistics.data.gov.uk/id/local-authority/30UE,Capital,Capital,Commercial & Property,Other Capital Related Fees,03024,Capital Expenditure,Capital,Covered Market Improvement works - Toilet fit out as per schedule of works,17/11/2021,0162133,"71,001.28",Capital,GK Construction & Project Management Ltd,82901,,
Chorley Borough Council,http://statistics.data.gov.uk/id/local-authority/30UE,Business Support,1095,Commercial & Property,Grants To Other Organisations,40127,Grants and Subscriptions,5031,227 eaves lane,24/11/2021,0162633,"4,961.00",Revenue,GKL Makeup Studio,83971,,
Chorley Borough Council,http://statistics.data.gov.uk/id/local-authority/30UE,Service Management & Support,1009,Customer & Digital,Hire Of Vehicles and Plant,30028,Contrct Hire & Operating Lease,5018,3 Year Contract hire 1x Schmidt Swingo 200+ as per ITT including servicing and Maintenance,03/11/2021,0161199,"2,019.85",Revenue,Go Plant Fleet Services Ltd,80857,,
Chorley Borough Council,http://statistics.data.gov.uk/id/local-authority/30UE,Service Management & Support,1009,Customer & Digital,Hire Of Vehicles and Plant,30028,Contrct Hire & Operating Lease,5018,3 Year Contract hire 1x Schmidt Swingo 200+ as per ITT including servicing and Maintenance,03/11/2021,0161200,"2,019.85",Revenue,Go Plant Fleet Services Ltd,80857,,
Chorley Borough Council,http://statistics.data.gov.uk/id/local-authority/30UE,Service Management & Support,1009,Customer & Digital,Hire Of Vehicles and Plant,30028,Contrct Hire & Operating Lease,5018,3 Year Contract hire 1x Johnston CN101 as per ITT including servicing and Maintenance,03/11/2021,0161981,"1,762.23",Revenue,Go Plant Fleet Services Ltd,80857,,
Chorley Borough Council,http://statistics.data.gov.uk/id/local-authority/30UE,Service Management & Support,1009,Customer & Digital,Hire Of Vehicles and Plant,30028,Contrct Hire & Operating Lease,5018,3 Year Contract hire 1x Johnston CN101 as per ITT including servicing and Maintenance,10/11/2021,0162260,"1,762.23",Revenue,Go Plant Fleet Services Ltd,80857,,
Chorley Borough Council,http://statistics.data.gov.uk/id/local-authority/30UE,Service Management & Support,1009,Customer & Digital,Hire Of Vehicles and Plant,30028,Contrct Hire & Operating Lease,5018,3 Year Contract hire 1x Schmidt Swingo 200+ as per ITT including servicing and Maintenance,10/11/2021,0162322,"2,019.85",Revenue,Go Plant Fleet Services Ltd,80857,,
Chorley Borough Council,http://statistics.data.gov.uk/id/local-authority/30UE,Service Management & Support,1009,Customer & Digital,Hire Of Vehicles and Plant,30028,Contrct Hire & Operating Lease,5018,3 Year Contract Hire Chassis mounted sweeper as per ITT. Including servicing and Maintenance. to be paid monthly in arrears,10/11/2021,0162323,"2,772.31",Revenue,Go Plant Fleet Services Ltd,80857,,
Chorley Borough Council,http://statistics.data.gov.uk/id/local-authority/30UE,Service Management & Support,1009,Customer & Digital,Hire Of Vehicles and Plant,30028,Contrct Hire & Operating Lease,5018,3 Year Contract hire 1x Schmidt Swingo 200+ as per ITT including servicing and Maintenance,10/11/2021,0162324,"2,019.85",Revenue,Go Plant Fleet Services Ltd,80857,,
Chorley Borough Council,http://statistics.data.gov.uk/id/local-authority/30UE,Capital,Capital,Commercial & Property,Main Contractor,03007,Capital Expenditure,Capital,NAME REDACTED - Sept 21 Timecard - Buzz Bingo / FHSF,03/11/2021,0162033,"1,300.00",Capital,Gosling Consulting Limited,78380,,
Chorley Borough Council,http://statistics.data.gov.uk/id/local-authority/30UE,Capital,Capital,Commercial & Property,Main Contractor,03007,Capital Expenditure,Capital,"Oct 21 Timecard (Town Centre-Buzz Bingo) Jack English Setting out 283.30, Brick cores for lighting supplies 480",24/11/2021,0162724,"2,550.80",Capital,Gosling Consulting Limited,78380,,
Chorley Borough Council,http://statistics.data.gov.uk/id/local-authority/30UE,Central Support Services,1009,Commercial & Property,Professional Fees,40063,Services,5027,Oct 21 Timecard (Tatton),24/11/2021,0162725,650.00,Revenue,Gosling Consulting Limited,78380,,
Chorley Borough Council,http://statistics.data.gov.uk/id/local-authority/30UE,Central Support Services,1009,Commercial & Property,Professional Fees,40063,Services,5027,October 21 - Timecard (Alker),24/11/2021,0162726,731.25,Revenue,Gosling Consulting Limited,78380,,
Chorley Borough Council,http://statistics.data.gov.uk/id/local-authority/30UE,Central Support Services,1009,Customer & Digital,Vandalism Repairs,20005,Repairs Maintenance & Alts,5005,Graffiti Removal Contract June 2021 ongoing,10/11/2021,0162279,820.00,Revenue,Graffiti Away Ltd,78340,,
Chorley Borough Council,http://statistics.data.gov.uk/id/local-authority/30UE,Central Support Services,1009,Customer & Digital,Vandalism Repairs,20005,Repairs Maintenance & Alts,5005,Graffiti Removal Contract June 2021 ongoing,17/11/2021,0162581,570.00,Revenue,Graffiti Away Ltd,78340,,
Chorley Borough Council,http://statistics.data.gov.uk/id/local-authority/30UE,Central Support Services,1009,Commercial & Property,Furniture - Purchase,40012,"Equipment, Furniture & Materia",5023,"Please provide items as per quote, x5 Envirotable wht/slvr, Furniture, Silver frame, Delivery possible October/November",03/11/2021,0161466,702.00,Revenue,Grafton Projects Limited,76545,,
Chorley Borough Council,http://statistics.data.gov.uk/id/local-authority/30UE,Business Support,1095,Commercial & Property,Cleaning Materials,40019,"Equipment, Furniture & Materia",5023,27 x silicone toilet brush with holder @ 9.99 per your emailed quote 04/10/21,10/11/2021,0162077,269.73,Revenue,Grafton Projects Limited,76545,,
Chorley Borough Council,http://statistics.data.gov.uk/id/local-authority/30UE,Central Support Services,1009,Commercial & Property,Furniture - Purchase,40012,"Equipment, Furniture & Materia",5023,"Please provide items as per quote, x5 Envirotable wht/slvr, Furniture, Silver frame, Delivery possible October/November",17/11/2021,0162305,625.00,Revenue,Grafton Projects Limited,76545,,
Chorley Borough Council,http://statistics.data.gov.uk/id/local-authority/30UE,Central Support Services,1009,Policy & Governance,External Audit,40064,Services,5027,Housing Benefit Audit 2020/21,03/11/2021,0162160,"9,461.50",Revenue,Grant Thornton UK LLP,57322,,
Chorley Borough Council,http://statistics.data.gov.uk/id/local-authority/30UE,Corporate Management,1008,Commercial & Property,Publicity - Advertising,40157,Miscellaneous Expenses,5034,"Social media for Market Walk SHopping Centre Chorley. July 2021 - March 2022 @500 Per month, Total 9 months 4500",03/11/2021,0162276,500.00,Revenue,Gravity,77837,,
Chorley Borough Council,http://statistics.data.gov.uk/id/local-authority/30UE,Central Support Services,1009,Policy & Governance,Publicity - Advertising,40157,Miscellaneous Expenses,5034,"Advert in Friends of Leyland Magazine, August edition",03/11/2021,0162285,400.00,Revenue,Green Man Marketing,73050,,
Chorley Borough Council,http://statistics.data.gov.uk/id/local-authority/30UE,Central Support Services,1009,Policy & Governance,Publicity - Advertising,40157,Miscellaneous Expenses,5034,Part 2 of invoice for 2 x half pages in Friends of Buckshaw Magazine,24/11/2021,0162787,625.00,Revenue,Green Man Marketing,73050,,
Chorley Borough Council,http://statistics.data.gov.uk/id/local-authority/30UE,Business Support,1095,Commercial & Property,Promotional Expenses,40159,Miscellaneous Expenses,5034,"Per your quotation 24387-1, LG4E1 chair, plastic frame Black/Purple Shell, Black/Grey Shell, Twin Pedestal Dining Table Light",03/11/2021,0162262,735.30,Revenue,Gresham Office Furniture Ltd,78114,,
Chorley Borough Council,http://statistics.data.gov.uk/id/local-authority/30UE,Corporate Management,1008,Policy & Governance,Miscellaneous Expenses,40200,Miscellaneous Expenses,5034,Hire of 8 mobile hand wash sinks from 1st to 31 October 2021. Contract 025175,24/11/2021,0162297,"1,440.00",Revenue,Hallmark Catering,78575,,
Chorley Borough Council,http://statistics.data.gov.uk/id/local-authority/30UE,Service Management & Support,1009,Customer & Digital,Supplies-Grounds Maintenance,40025,"Equipment, Furniture & Materia",5023,"As per invoice 27626, Power wash service for Chorley Council",03/11/2021,0162054,277.21,Revenue,Hanson Cleaning Equipment Ltd,17297,,
Chorley Borough Council,http://statistics.data.gov.uk/id/local-authority/30UE,Recognised Cap Grants & Conts,,Customer & Digital,Contributions Parish Councils,40144,Grants and Subscriptions,5031,cil rec 2021,03/11/2021,0161944,"5,125.73",Revenue,Heath Charnock Parish Council,16208,,
Chorley Borough Council,http://statistics.data.gov.uk/id/local-authority/30UE,Central Support Services,1009,Commercial & Property,General Repairs - Reactive,20004,Repairs Maintenance & Alts,5005,GRANT,24/11/2021,0162640,500.00,Revenue,Heskin Parish Council,17029,,
Chorley Borough Council,http://statistics.data.gov.uk/id/local-authority/30UE,Service Management & Support,1009,Policy & Governance,Car Leasing Payment,14100,Direct Employee Expenses,5001,VIN REDACTED: NAME REDACTED - Annual,03/11/2021,0162189,"3,821.14",Revenue,Hitachi Capital Vehicle Solutions,80629,,
Chorley Borough Council,http://statistics.data.gov.uk/id/local-authority/30UE,Service Management & Support,1009,Policy & Governance,Car Leasing Payment,14100,Direct Employee Expenses,5001,VAT,03/11/2021,0162189,357.87,Revenue,Hitachi Capital Vehicle Solutions,80629,,
Chorley Borough Council,http://statistics.data.gov.uk/id/local-authority/30UE,Control Accounts,Control,Policy & Governance,Manual Control Account,00001,Balance Sheet,Balance,- VAT,03/11/2021,0162189,-357.87,Revenue,Hitachi Capital Vehicle Solutions,80629,,
Chorley Borough Council,http://statistics.data.gov.uk/id/local-authority/30UE,Elections,1012,Policy & Governance,Tools & Equipment - Purchase,40003,"Equipment, Furniture & Materia",5023,"Price Quotation: PQ21005715, TOTAL GBP 600.72",10/11/2021,0161511,500.60,Revenue,HoF Display Solutions,49100,,
Chorley Borough Council,http://statistics.data.gov.uk/id/local-authority/30UE,Central Support Services,1009,Communities,Miscellaneous Expenses,40200,Miscellaneous Expenses,5034,Work completed at Hoghton War Memorial to remedy previous issue,24/11/2021,0162632,580.00,Revenue,Hoghton Parish Council,16188,,
Chorley Borough Council,http://statistics.data.gov.uk/id/local-authority/30UE,Corporate Management,1008,Policy & Governance,Other Fees,40212,Miscellaneous Expenses,5034,Subsidy for the provision of a meals on wheels service in Chorley up to 10/10/21,10/11/2021,0162348,"1,602.62",Revenue,I Care GB Ltd,77247,,
Chorley Borough Council,http://statistics.data.gov.uk/id/local-authority/30UE,Corporate Management,1008,Policy & Governance,Other Fees,40212,Miscellaneous Expenses,5034,Subsidy for the provision of a meals on wheels service in Chorley up to 10/10/21,24/11/2021,0162394,725.51,Revenue,I Care GB Ltd,77247,,
Chorley Borough Council,http://statistics.data.gov.uk/id/local-authority/30UE,Corporate Management,1008,Policy & Governance,Other Fees,40212,Miscellaneous Expenses,5034,Subsidy for the provision of a meals on wheels service in Chorley up to 7 November 2021,24/11/2021,0162535,"2,249.56",Revenue,I Care GB Ltd,77247,,
Chorley Borough Council,http://statistics.data.gov.uk/id/local-authority/30UE,Central Support Services,1009,Policy & Governance,Miscellaneous Expenses,40200,Miscellaneous Expenses,5034,Iken Annual Licence Fee for 12 Months to 30th September 2022,17/11/2021,0162287,"3,013.08",Revenue,Iken Business Limited,22068,,
Chorley Borough Council,http://statistics.data.gov.uk/id/local-authority/30UE,Capital,Capital,Commercial & Property,Main Contractor,03007,Capital Expenditure,Capital,"Removal of the ceiling in the main auditoria to the former Buzz Bingo building, including all licensed/notifiable asbestos material",10/11/2021,0162317,"43,436.30",Capital,Inglenorth (Contracting) Limited,81123,,
Chorley Borough Council,http://statistics.data.gov.uk/id/local-authority/30UE,Control Accounts,Control,Commercial & Property,Manual Control Account,00001,Balance Sheet,Balance,vat only,10/11/2021,0162317,"8,687.26",Revenue,Inglenorth (Contracting) Limited,81123,,
Chorley Borough Council,http://statistics.data.gov.uk/id/local-authority/30UE,Control Accounts,Control,Commercial & Property,Manual Control Account,00001,Balance Sheet,Balance,-vat only,10/11/2021,0162317,"-8,687.26",Revenue,Inglenorth (Contracting) Limited,81123,,
Chorley Borough Council,http://statistics.data.gov.uk/id/local-authority/30UE,Control Accounts,Control,System,Manual Control Account,00001,Balance Sheet,Balance,,17/11/2021,0161963,"1,118.02",Revenue,Inland Revenue,17445,,
Chorley Borough Council,http://statistics.data.gov.uk/id/local-authority/30UE,Control Accounts,Control,System,Manual Control Account,00001,Balance Sheet,Balance,,17/11/2021,0162347,"2,334.00",Revenue,Inland Revenue,17445,,
Chorley Borough Council,http://statistics.data.gov.uk/id/local-authority/30UE,Regulatory Services,1048,Customer & Digital,Training Course Fees,17010,Indirect Employee Expenses,5002,National Training Conference 3 days 3 nights for NAME REDACTED 17th - 19th November 2021 760.75,24/11/2021,0162645,760.75,Revenue,Institute Of Licensing,16987,,
Chorley Borough Council,http://statistics.data.gov.uk/id/local-authority/30UE,Capital,Capital,Commercial & Property,Other Capital Related Fees,03024,Capital Expenditure,Capital,"Survey, manufacture & install @ Chorley Market, Bobcat� full-cassette sunblind awning, Hardware powder-coated Anthracite Grey",24/11/2021,0162779,"1,343.00",Capital,James Robertshaw & Sons (1954) Ltd,81520,,
Chorley Borough Council,http://statistics.data.gov.uk/id/local-authority/30UE,Capital,Capital,Commercial & Property,Other Capital Related Fees,03024,Capital Expenditure,Capital,Extra over-cost: Signage to valance: 100.00 + VAT,24/11/2021,0162779,100.00,Capital,James Robertshaw & Sons (1954) Ltd,81520,,
Chorley Borough Council,http://statistics.data.gov.uk/id/local-authority/30UE,Service Management & Support,1009,Customer & Digital,Vehicles and Plant Operating Lease,30029,Contrct Hire & Operating Lease,5018,6 mths lease extension - PN15 YWB Nissan Van 3/8/21-2/2/22,10/11/2021,0162254,626.57,Revenue,Jcb Finance Ltd,17684,,
Chorley Borough Council,http://statistics.data.gov.uk/id/local-authority/30UE,Service Management & Support,1009,Customer & Digital,Vehicles and Plant Operating Lease,30029,Contrct Hire & Operating Lease,5018,6 mths lease extension - PO15 VHD Nissan Van 3/8/21-2/2/22,10/11/2021,0162254,626.57,Revenue,Jcb Finance Ltd,17684,,
Chorley Borough Council,http://statistics.data.gov.uk/id/local-authority/30UE,Service Management & Support,1009,Customer & Digital,Vehicles and Plant Operating Lease,30029,Contrct Hire & Operating Lease,5018,6 mths lease extension - PO15 VHE Nissan Van 3/8/21-2/2/22,10/11/2021,0162254,626.57,Revenue,Jcb Finance Ltd,17684,,
Chorley Borough Council,http://statistics.data.gov.uk/id/local-authority/30UE,Service Management & Support,1009,Customer & Digital,Vehicles and Plant Operating Lease,30029,Contrct Hire & Operating Lease,5018,6 mths lease extension - PO15 VFZ Nissan Van 3/8/21-2/2/22,10/11/2021,0162254,626.57,Revenue,Jcb Finance Ltd,17684,,
Chorley Borough Council,http://statistics.data.gov.uk/id/local-authority/30UE,Service Management & Support,1009,Customer & Digital,Vehicles and Plant Operating Lease,30029,Contrct Hire & Operating Lease,5018,6 mths lease extension - PO15 VHF Nissan Van 3/8/21-2/2/22,10/11/2021,0162254,626.57,Revenue,Jcb Finance Ltd,17684,,
Chorley Borough Council,http://statistics.data.gov.uk/id/local-authority/30UE,Service Management & Support,1009,Policy & Governance,Vehicles and Plant Operating Lease,30029,Contrct Hire & Operating Lease,5018,Rental of John Deere Tractor PJ63 VCW 26/08/21 to 25/08/20222,03/11/2021,0162346,"2,795.36",Revenue,Jcb Finance Ltd,17684,,
Chorley Borough Council,http://statistics.data.gov.uk/id/local-authority/30UE,Service Management & Support,1009,Policy & Governance,Vehicles and Plant Operating Lease,30029,Contrct Hire & Operating Lease,5018,Rental of Kubota Tractor with Loader PO14 BFX 26/08/21 to 25/08/2022,03/11/2021,0162346,"3,791.49",Revenue,Jcb Finance Ltd,17684,,
Chorley Borough Council,http://statistics.data.gov.uk/id/local-authority/30UE,Business Support,1095,Commercial & Property,Tools & Equipment - Purchase,40003,"Equipment, Furniture & Materia",5023,Washing machine and tumble dryer servicing for 12 months,24/11/2021,0160871,317.22,Revenue,JLA Total Care LTD,78420,,
Chorley Borough Council,http://statistics.data.gov.uk/id/local-authority/30UE,Business Support,1095,Commercial & Property,Tools & Equipment - Purchase,40003,"Equipment, Furniture & Materia",5023,Washing machine and tumble dryer servicing for 12 months,24/11/2021,0162814,317.22,Revenue,JLA Total Care LTD,78420,,
Chorley Borough Council,http://statistics.data.gov.uk/id/local-authority/30UE,Central Support Services,1009,Commercial & Property,Main Contractor,03007,Capital Expenditure,Capital,Alker Lane Design & Build Contract,24/11/2021,0162536,"664,437.78",Revenue,John Turner Construction Group Limited,82376,,
Chorley Borough Council,http://statistics.data.gov.uk/id/local-authority/30UE,Development Control,1091,Customer & Digital,Statutory Notices,40160,Miscellaneous Expenses,5034,Planning Public Notices to appear in the Chorley Guardian April 2021 to March 2022,24/11/2021,0162401,365.04,Revenue,JPI Media - Johnston Publishing Ltd,20072,,
Chorley Borough Council,http://statistics.data.gov.uk/id/local-authority/30UE,Capital,Capital,Communities,Consultants Fees,03025,Capital Expenditure,Capital,Ecology Survey at King George V Playing Fields,17/11/2021,0162513,275.00,Capital,JYM Partnership LLP,18179,,
Chorley Borough Council,http://statistics.data.gov.uk/id/local-authority/30UE,Capital,Capital,Communities,Main Contractor,03007,Capital Expenditure,Capital,"Technical Design information at stage 4, Architectural and Structural changes, design to reflect the reduction of footprint",17/11/2021,0162514,"21,900.00",Capital,JYM Partnership LLP,18179,,
Chorley Borough Council,http://statistics.data.gov.uk/id/local-authority/30UE,Recreation & Sport,1037,Commercial & Property,Planned Maintenance,20006,Repairs Maintenance & Alts,5005,"Buttermere Community Centre, Supply and install: LED Downlights, LED 3 Hr Combined Emergency Downlights",24/11/2021,0162755,"4,908.44",Revenue,KDE Limited,78418,,
Chorley Borough Council,http://statistics.data.gov.uk/id/local-authority/30UE,Parking Services,1066,Commercial & Property,Uniforms,40039,"Clothing, Uniforms and Laundry",5025,"Supply for NAME REDACTED: 1 x AMBASSADOR JACKET RED/BLACK, Left breast embroidered with Chorley Council, Size M",03/11/2021,0162261,286.45,Revenue,Keltic Clothing,21988,,
Chorley Borough Council,http://statistics.data.gov.uk/id/local-authority/30UE,Central Support Services,1009,Policy & Governance,Legal Fees,40171,Miscellaneous Expenses,5034,Settlement agreement for NAME REDACTED,10/11/2021,0162021,350.00,Revenue,Kevills Solicitors,18532,,
Chorley Borough Council,http://statistics.data.gov.uk/id/local-authority/30UE,Homelessness,1075,Communities,External Contractor,40198,Miscellaneous Expenses,5034,"Provision of young people's housing drop in and mediation service (9 hours weekly: Monday, Wednesday & Friday afternoons)",17/11/2021,0162468,"3,750.00",Revenue,Key,61252,,
Chorley Borough Council,http://statistics.data.gov.uk/id/local-authority/30UE,Service Management & Support,1009,Customer & Digital,Tools & Equipment - Maintenance,40005,"Equipment, Furniture & Materia",5023,"Quantity x 2- Size 12, x3- Size 10, x3- Size 9, x3- Size 8, x1- Size 6, x1-Size 7, Goliath SDR10CSI Black Safety Boot",03/11/2021,0161890,547.69,Revenue,Key Engineering & Hygene Supplies,51615,,
Chorley Borough Council,http://statistics.data.gov.uk/id/local-authority/30UE,Service Management & Support,1009,Customer & Digital,Supplies-Grounds Maintenance,40025,"Equipment, Furniture & Materia",5023,Supply a pedestrian Hollow Tine aerator. Deliver to Bengal St depot,17/11/2021,0162507,285.60,Revenue,KH Hire Ltd,78531,,
Chorley Borough Council,http://statistics.data.gov.uk/id/local-authority/30UE,Central Support Services,1009,Communities,Pest Control,20039,Cleaning and Domestic Supplies,5012,20 x tubs of the Ratimor Brodifacoum Blocks 37 each,24/11/2021,0162604,740.00,Revenue,Killgerm Chemicals Ltd,16879,,
Chorley Borough Council,http://statistics.data.gov.uk/id/local-authority/30UE,Control Accounts,Control,Policy & Governance,General Balances,00100,Balance Sheet,Balance,Monthly Deductions from Expenses,24/11/2021,0162768,"1,225.38",Revenue,Labour Councillors Association,17577,,
Chorley Borough Council,http://statistics.data.gov.uk/id/local-authority/30UE,Precepts and Collection Fund,Precepts,Policy & Governance,LCC Precept,02009,Precepts & Collection Fund,Precept,LCC C-Tax precepts,23/11/2021,0161337,"5,460,622.00",Revenue,Lancashire County Council,18386,,
Chorley Borough Council,http://statistics.data.gov.uk/id/local-authority/30UE,Collection Fund Revenue Accoun,,Policy & Governance,NNDR County Share,02036,Precepts & Collection Fund,Precept,LCC B-Rattes,23/11/2021,0161337,"137,018.00",Revenue,Lancashire County Council,18386,,
Chorley Borough Council,http://statistics.data.gov.uk/id/local-authority/30UE,Precepts and Collection Fund,Precepts,Policy & Governance,LCC Precept,02009,Precepts & Collection Fund,Precept,LCC CTax precepts,23/11/2021,0161338,"5,460,622.00",Revenue,Lancashire County Council,18386,,
Chorley Borough Council,http://statistics.data.gov.uk/id/local-authority/30UE,Collection Fund Revenue Accoun,,Policy & Governance,NNDR County Share,02036,Precepts & Collection Fund,Precept,LCC BRates precepts,23/11/2021,0161338,"137,018.00",Revenue,Lancashire County Council,18386,,
Chorley Borough Council,http://statistics.data.gov.uk/id/local-authority/30UE,Precepts and Collection Fund,Precepts,Policy & Governance,LCC Precept,02009,Precepts & Collection Fund,Precept,LCC Council Tax Precept,23/11/2021,0162066,"5,460,622.00",Revenue,Lancashire County Council,18386,,
Chorley Borough Council,http://statistics.data.gov.uk/id/local-authority/30UE,Collection Fund Revenue Accoun,,Policy & Governance,NNDR County Share,02036,Precepts & Collection Fund,Precept,LCC Business Rates Precept,23/11/2021,0162066,"137,018.00",Revenue,Lancashire County Council,18386,,
Chorley Borough Council,http://statistics.data.gov.uk/id/local-authority/30UE,Capital,Capital,Communities,Grants,03002,Capital Expenditure,Capital,ADDRESS REDACTED,03/11/2021,0162241,"1,393.00",Capital,Lancashire County Council,17758,,
Chorley Borough Council,http://statistics.data.gov.uk/id/local-authority/30UE,Capital,Capital,Commercial & Property,Main Contractor,03007,Capital Expenditure,Capital,"Carry out ducting & chamber works, Brunswick Street, Chorley, NAME REDACTED, Establish continuous duct, install draw rope",17/11/2021,0162525,"10,236.78",Capital,Lancashire County Council,20027,,
Chorley Borough Council,http://statistics.data.gov.uk/id/local-authority/30UE,Central Support Services,1009,Policy & Governance,Exhibitions & Special Events,40158,Miscellaneous Expenses,5034,Road Closure Order for Chorley 10K,24/11/2021,0162584,"1,102.41",Revenue,Lancashire County Council,20027,,
Chorley Borough Council,http://statistics.data.gov.uk/id/local-authority/30UE,Capital,Capital,Communities,Grants,03002,Capital Expenditure,Capital,ADDRESS REDACTED,24/11/2021,0162639,"6,801.00",Capital,Lancashire County Council,17758,,
Chorley Borough Council,http://statistics.data.gov.uk/id/local-authority/30UE,Tourism,1039,Customer & Digital,Supplies-Grounds Maintenance,40025,"Equipment, Furniture & Materia",5023,Supply 23 x Temporary traffic signs 1050 x 750 -n 3mm aluminium panel,03/11/2021,0161922,"2,300.00",Revenue,Lancashire County Council Highways,18845,,
Chorley Borough Council,http://statistics.data.gov.uk/id/local-authority/30UE,Capital,Capital,Commercial & Property,Other Expenses,03030,Capital Expenditure,Capital,Section 278 Agreement - Initial 50% Contribution Towards Legal Fees,17/11/2021,0162573,750.00,Capital,Lancashire County Council Highways,18845,,
Chorley Borough Council,http://statistics.data.gov.uk/id/local-authority/30UE,Recreation & Sport,1037,Commercial & Property,Planned Maintenance,20006,Repairs Maintenance & Alts,5005,"aslc, inv019279, boiler service remedials",03/11/2021,0160969,"2,202.06",Revenue,Lancashire Gas Services Ltd,78192,,
Chorley Borough Council,http://statistics.data.gov.uk/id/local-authority/30UE,Recreation & Sport,1037,Commercial & Property,General Repairs - Reactive,20004,Repairs Maintenance & Alts,5005,"cglc, inv019418, isolate water to basins and replace taps",03/11/2021,0161021,943.50,Revenue,Lancashire Gas Services Ltd,78192,,
Chorley Borough Council,http://statistics.data.gov.uk/id/local-authority/30UE,Recreation & Sport,1037,Commercial & Property,General Repairs - Reactive,20004,Repairs Maintenance & Alts,5005,"cglc, inv019414, replacement pump",03/11/2021,0161022,515.20,Revenue,Lancashire Gas Services Ltd,78192,,
Chorley Borough Council,http://statistics.data.gov.uk/id/local-authority/30UE,Recreation & Sport,1037,Commercial & Property,Planned Maintenance,20006,Repairs Maintenance & Alts,5005,"aslc, inv019298, service to 9 boilers and 2 water heaters",03/11/2021,0161023,438.00,Revenue,Lancashire Gas Services Ltd,78192,,
Chorley Borough Council,http://statistics.data.gov.uk/id/local-authority/30UE,Recreation & Sport,1037,Commercial & Property,Planned Maintenance,20006,Repairs Maintenance & Alts,5005,"aslc, inv019324, Air Handling Unit Service",03/11/2021,0161024,584.95,Revenue,Lancashire Gas Services Ltd,78192,,
Chorley Borough Council,http://statistics.data.gov.uk/id/local-authority/30UE,Business Support,1095,Commercial & Property,Planned Maintenance,20006,Repairs Maintenance & Alts,5005,"019684 Strawberry Fields, Air con service",03/11/2021,0161900,"4,158.00",Revenue,Lancashire Gas Services Ltd,78192,,
Chorley Borough Council,http://statistics.data.gov.uk/id/local-authority/30UE,Central Support Services,1009,Commercial & Property,Planned Maintenance,20006,Repairs Maintenance & Alts,5005,019681 Primrose Air con service,03/11/2021,0161901,"1,296.00",Revenue,Lancashire Gas Services Ltd,78192,,
Chorley Borough Council,http://statistics.data.gov.uk/id/local-authority/30UE,Central Support Services,1009,Commercial & Property,General Repairs - Reactive,20004,Repairs Maintenance & Alts,5005,Cotswold House - reactive repair works,17/11/2021,0162469,404.80,Revenue,Lancashire Gas Services Ltd,78192,,
Chorley Borough Council,http://statistics.data.gov.uk/id/local-authority/30UE,Central Support Services,1009,Commercial & Property,General Repairs - Reactive,20004,Repairs Maintenance & Alts,5005,Community Centres - reactive repair works,17/11/2021,0162470,"1,024.25",Revenue,Lancashire Gas Services Ltd,78192,,
Chorley Borough Council,http://statistics.data.gov.uk/id/local-authority/30UE,Central Support Services,1009,Commercial & Property,General Repairs - Reactive,20004,Repairs Maintenance & Alts,5005,Community Centres - reactive repair works,17/11/2021,0162474,440.40,Revenue,Lancashire Gas Services Ltd,78192,,
Chorley Borough Council,http://statistics.data.gov.uk/id/local-authority/30UE,Business Support,1095,Commercial & Property,General Repairs - Reactive,20004,Repairs Maintenance & Alts,5005,Strawberry Fields - reactive repair works,17/11/2021,0162480,255.05,Revenue,Lancashire Gas Services Ltd,78192,,
Chorley Borough Council,http://statistics.data.gov.uk/id/local-authority/30UE,Community Development,1097,Commercial & Property,General Repairs - Reactive,20004,Repairs Maintenance & Alts,5005,35-39 Market St (CAB / MP) - reactive repair works,17/11/2021,0162481,270.00,Revenue,Lancashire Gas Services Ltd,78192,,
Chorley Borough Council,http://statistics.data.gov.uk/id/local-authority/30UE,Central Support Services,1009,Commercial & Property,General Repairs - Reactive,20004,Repairs Maintenance & Alts,5005,All Seasons - Reactive blanket,17/11/2021,0162482,"1,002.65",Revenue,Lancashire Gas Services Ltd,78192,,
Chorley Borough Council,http://statistics.data.gov.uk/id/local-authority/30UE,Other Short Term Creditors,,Policy & Governance,General Balances,00100,Balance Sheet,Balance,EES,23/11/2021,0162635,"43,975.66",Revenue,Lancashire Pensions Services DD ONLY,16696,,
Chorley Borough Council,http://statistics.data.gov.uk/id/local-authority/30UE,Other Short Term Creditors,,Policy & Governance,General Balances,00100,Balance Sheet,Balance,EEs,23/11/2021,0162679,"44,580.72",Revenue,Lancashire Pensions Services DD ONLY,16696,,
Chorley Borough Council,http://statistics.data.gov.uk/id/local-authority/30UE,Development Control,1091,Customer & Digital,Legal Fees,40171,Miscellaneous Expenses,5034,Appeal support in defence of the Council's decision to refuse outline application for up to 123 dwellings near Blainscough Hall,24/11/2021,0162257,"15,590.00",Revenue,Land Use Consultants (LUC) Ltd,81849,,
Chorley Borough Council,http://statistics.data.gov.uk/id/local-authority/30UE,Planning Policy,1092,Communities,Consultants` Fees,40077,Services,5027,Land Use Study for Central Lancashire Local Plan,17/11/2021,0162497,"19,410.50",Revenue,Land Use Consultants (LUC) Ltd,81849,,
Chorley Borough Council,http://statistics.data.gov.uk/id/local-authority/30UE,Economic Development,1096,Policy & Governance,Car Leasing Payment,14100,Direct Employee Expenses,5001,"Car Lease Quote, NAME REDACTED, FORD FIESTA - EcoBoost Hybrid 5dr, Period: 3 Years, Mileage Per Annum: 6,000",03/11/2021,0162248,"2,230.15",Revenue,LeasePlan UK Ltd T/A Automotive Leasing,65197,,
Chorley Borough Council,http://statistics.data.gov.uk/id/local-authority/30UE,Democratic Represent and  Mgnt,1007,Policy & Governance,Car Leasing Payment,14100,Direct Employee Expenses,5001,VIN REDACTED: NAME REDACTED - 9 Sep to 8 Oct 2021,03/11/2021,0162104,377.19,Revenue,Lex Autolease Ltd,70682,,
Chorley Borough Council,http://statistics.data.gov.uk/id/local-authority/30UE,Democratic Represent and  Mgnt,1007,Policy & Governance,Car Leasing Payment,14100,Direct Employee Expenses,5001,VAT,03/11/2021,0162104,34.42,Revenue,Lex Autolease Ltd,70682,,
Chorley Borough Council,http://statistics.data.gov.uk/id/local-authority/30UE,Control Accounts,Control,Policy & Governance,Manual Control Account,00001,Balance Sheet,Balance,- VAT,03/11/2021,0162104,-34.42,Revenue,Lex Autolease Ltd,70682,,
Chorley Borough Council,http://statistics.data.gov.uk/id/local-authority/30UE,Business Support,1095,Commercial & Property,Cleaning/Attendants' Services,20041,Cleaning and Domestic Supplies,5012,"Carpet cleaning on 22/09/21, as quoted: Corridor 120.00 Office 180.00",03/11/2021,0161468,300.00,Revenue,Leyland Cleaning Services Limited,21612,,
Chorley Borough Council,http://statistics.data.gov.uk/id/local-authority/30UE,Regulatory Services,1048,Customer & Digital,Professional Fees,14011,Direct Employee Expenses,5001,DVLA driver management fees and electronic checks for taxi drivers April 2021 onging,10/11/2021,0162277,967.85,Revenue,Licence Bureau Limited,71233,,
Chorley Borough Council,http://statistics.data.gov.uk/id/local-authority/30UE,Central Support Services,1009,Policy & Governance,Service Fees,40056,Services,5027,Driver Management Fee and Electronic Fee,10/11/2021,0162333,386.00,Revenue,Licence Bureau Limited,71233,,
Chorley Borough Council,http://statistics.data.gov.uk/id/local-authority/30UE,Central Support Services,1009,Policy & Governance,HR Approved Occ Health Fees,15201,Indirect Employee Expenses,5002,Counselling sessions for staff in September 2021,10/11/2021,0162075,360.00,Revenue,Livewell Counselling Service,63084,,
Chorley Borough Council,http://statistics.data.gov.uk/id/local-authority/30UE,Central Support Services,1009,Policy & Governance,HR Approved Occ Health Fees,15201,Indirect Employee Expenses,5002,Counselling sessions for staff in October 2021,24/11/2021,0162590,280.00,Revenue,Livewell Counselling Service,63084,,
Chorley Borough Council,http://statistics.data.gov.uk/id/local-authority/30UE,Corporate Management,1008,Policy & Governance,Miscellaneous Expenses,40200,Miscellaneous Expenses,5034,"Family Magazine advert, full page, December edition",24/11/2021,0162750,250.00,Revenue,Loop Publishing Ltd,18770,,
Chorley Borough Council,http://statistics.data.gov.uk/id/local-authority/30UE,Corporate Management,1008,Commercial & Property,Exhibitions & Special Events,40158,Miscellaneous Expenses,5034,"Fun Thursday activities at Market Walk Shopping Centre Chorley as discussed, 28 October 10am  4pm.",24/11/2021,0162609,500.00,Revenue,Louby Lou Ltd,76335,,
Chorley Borough Council,http://statistics.data.gov.uk/id/local-authority/30UE,Business Support,1095,Commercial & Property,Stationery,40050,"Printing, Stationery & General",5026,"TN247 value pack X2 @127.55 each, Lyreco A4 open pockets pack of 25 X8 @2.36 each, Avery GUA4 guillotine @37.62",03/11/2021,0162122,311.60,Revenue,Lyreco UK Ltd,17623,,
Chorley Borough Council,http://statistics.data.gov.uk/id/local-authority/30UE,Service Management & Support,1009,Customer & Digital,Grounds Maintenance Contractor,20043,Grounds Maintenance Costs,5013,Walker Tree Services Invoice 58,17/11/2021,0162389,"6,645.00",Revenue,M J Walker,62044,,
Chorley Borough Council,http://statistics.data.gov.uk/id/local-authority/30UE,Planning Policy,1092,Communities,Legal Fees,40171,Miscellaneous Expenses,5034,Advice on definition of major development,03/11/2021,0162178,"1,500.00",Revenue,Martin Carter,17054,,
Chorley Borough Council,http://statistics.data.gov.uk/id/local-authority/30UE,Corporate Management,1008,Policy & Governance,Agency Staff,13000,Direct Employee Expenses,5001,NAME REDACTED,10/11/2021,0162003,349.36,Revenue,Matrix SCM Ltd,22128,,
Chorley Borough Council,http://statistics.data.gov.uk/id/local-authority/30UE,Corporate Management,1008,Policy & Governance,Agency Staff,13000,Direct Employee Expenses,5001,NAME REDACTED,10/11/2021,0162003,738.80,Revenue,Matrix SCM Ltd,22128,,
Chorley Borough Council,http://statistics.data.gov.uk/id/local-authority/30UE,Corporate Management,1008,Policy & Governance,Agency Staff,13000,Direct Employee Expenses,5001,NAME REDACTED,10/11/2021,0162180,738.80,Revenue,Matrix SCM Ltd,22128,,
Chorley Borough Council,http://statistics.data.gov.uk/id/local-authority/30UE,Corporate Management,1008,Policy & Governance,Agency Staff,13000,Direct Employee Expenses,5001,NAME REDACTED,10/11/2021,0162180,711.00,Revenue,Matrix SCM Ltd,22128,,
Chorley Borough Council,http://statistics.data.gov.uk/id/local-authority/30UE,Corporate Management,1008,Policy & Governance,Agency Staff,13000,Direct Employee Expenses,5001,NAME REDACTED,10/11/2021,0162180,711.00,Revenue,Matrix SCM Ltd,22128,,
Chorley Borough Council,http://statistics.data.gov.uk/id/local-authority/30UE,Corporate Management,1008,Policy & Governance,Agency Staff,13000,Direct Employee Expenses,5001,NAME REDACTED,10/11/2021,0162240,555.32,Revenue,Matrix SCM Ltd,22128,,
Chorley Borough Council,http://statistics.data.gov.uk/id/local-authority/30UE,Corporate Management,1008,Policy & Governance,Agency Staff,13000,Direct Employee Expenses,5001,NAME REDACTED,10/11/2021,0162240,558.99,Revenue,Matrix SCM Ltd,22128,,
Chorley Borough Council,http://statistics.data.gov.uk/id/local-authority/30UE,Corporate Management,1008,Policy & Governance,Agency Staff,13000,Direct Employee Expenses,5001,NAME REDACTED,10/11/2021,0162240,711.00,Revenue,Matrix SCM Ltd,22128,,
Chorley Borough Council,http://statistics.data.gov.uk/id/local-authority/30UE,Corporate Management,1008,Policy & Governance,Agency Staff,13000,Direct Employee Expenses,5001,NAME REDACTED,24/11/2021,0162638,581.05,Revenue,Matrix SCM Ltd,22128,,
Chorley Borough Council,http://statistics.data.gov.uk/id/local-authority/30UE,Corporate Management,1008,Policy & Governance,Agency Staff,13000,Direct Employee Expenses,5001,NAME REDACTED,24/11/2021,0162638,711.00,Revenue,Matrix SCM Ltd,22128,,
Chorley Borough Council,http://statistics.data.gov.uk/id/local-authority/30UE,Corporate Management,1008,Policy & Governance,Agency Staff,13000,Direct Employee Expenses,5001,no back up sheet,24/11/2021,0162656,533.25,Revenue,Matrix SCM Ltd,22128,,
Chorley Borough Council,http://statistics.data.gov.uk/id/local-authority/30UE,Corporate Management,1008,Policy & Governance,Agency Staff,13000,Direct Employee Expenses,5001,NAME REDACTED,24/11/2021,0162675,558.99,Revenue,Matrix SCM Ltd,22128,,
Chorley Borough Council,http://statistics.data.gov.uk/id/local-authority/30UE,Corporate Management,1008,Policy & Governance,Agency Staff,13000,Direct Employee Expenses,5001,NAME REDACTED,24/11/2021,0162675,738.80,Revenue,Matrix SCM Ltd,22128,,
Chorley Borough Council,http://statistics.data.gov.uk/id/local-authority/30UE,Corporate Management,1008,Policy & Governance,Agency Staff,13000,Direct Employee Expenses,5001,NAME REDACTED,24/11/2021,0162675,738.80,Revenue,Matrix SCM Ltd,22128,,
Chorley Borough Council,http://statistics.data.gov.uk/id/local-authority/30UE,Corporate Management,1008,Policy & Governance,Agency Staff,13000,Direct Employee Expenses,5001,NAME REDACTED,24/11/2021,0162675,711.00,Revenue,Matrix SCM Ltd,22128,,
Chorley Borough Council,http://statistics.data.gov.uk/id/local-authority/30UE,Recognised Cap Grants & Conts,,Customer & Digital,Contributions Parish Councils,40144,Grants and Subscriptions,5031,cil rec2021,03/11/2021,0161943,333.51,Revenue,Mawdesley Parish Council,17570,,
Chorley Borough Council,http://statistics.data.gov.uk/id/local-authority/30UE,Central Support Services,1009,Commercial & Property,Planned Maintenance,20006,Repairs Maintenance & Alts,5005,"Legionella monitoring, Astley Hall, Coach House and Farmhouse",03/11/2021,0161524,75.00,Revenue,Maxigiene Environmental Services Ltd,67160,,
Chorley Borough Council,http://statistics.data.gov.uk/id/local-authority/30UE,Central Support Services,1009,Commercial & Property,Planned Maintenance,20006,Repairs Maintenance & Alts,5005,"Legionella monitoring, Parks Buildings -  Devonshire rec, harpers rec",03/11/2021,0161524,40.00,Revenue,Maxigiene Environmental Services Ltd,67160,,
Chorley Borough Council,http://statistics.data.gov.uk/id/local-authority/30UE,Central Support Services,1009,Commercial & Property,Planned Maintenance,20006,Repairs Maintenance & Alts,5005,"Legionella monitoring, Community centres",03/11/2021,0161524,169.16,Revenue,Maxigiene Environmental Services Ltd,67160,,
Chorley Borough Council,http://statistics.data.gov.uk/id/local-authority/30UE,Central Support Services,1009,Commercial & Property,Planned Maintenance,20006,Repairs Maintenance & Alts,5005,"Legionella monitoring, WC's including cemetery wc",03/11/2021,0161524,65.00,Revenue,Maxigiene Environmental Services Ltd,67160,,
Chorley Borough Council,http://statistics.data.gov.uk/id/local-authority/30UE,Central Support Services,1009,Commercial & Property,Planned Maintenance,20006,Repairs Maintenance & Alts,5005,"Legionella monitoring, sports pitches/pavilions",03/11/2021,0161524,72.08,Revenue,Maxigiene Environmental Services Ltd,67160,,
Chorley Borough Council,http://statistics.data.gov.uk/id/local-authority/30UE,Central Support Services,1009,Commercial & Property,Planned Maintenance,20006,Repairs Maintenance & Alts,5005,"Legionella monitoring, Bengal St",03/11/2021,0161524,25.00,Revenue,Maxigiene Environmental Services Ltd,67160,,
Chorley Borough Council,http://statistics.data.gov.uk/id/local-authority/30UE,Central Support Services,1009,Commercial & Property,Planned Maintenance,20006,Repairs Maintenance & Alts,5005,"Legionella monitoring, chorley cem",03/11/2021,0161524,20.00,Revenue,Maxigiene Environmental Services Ltd,67160,,
Chorley Borough Council,http://statistics.data.gov.uk/id/local-authority/30UE,Community Development,1097,Commercial & Property,Planned Maintenance,20006,Repairs Maintenance & Alts,5005,Legionella monitoring CAB (CIC),03/11/2021,0161524,20.00,Revenue,Maxigiene Environmental Services Ltd,67160,,
Chorley Borough Council,http://statistics.data.gov.uk/id/local-authority/30UE,Business Support,1095,Commercial & Property,Planned Maintenance,20006,Repairs Maintenance & Alts,5005,Legionella monitoring MW Mgt,03/11/2021,0161524,20.00,Revenue,Maxigiene Environmental Services Ltd,67160,,
Chorley Borough Council,http://statistics.data.gov.uk/id/local-authority/30UE,Central Support Services,1009,Commercial & Property,Planned Maintenance,20006,Repairs Maintenance & Alts,5005,Legionella monitoring Cotswold House,03/11/2021,0161524,20.00,Revenue,Maxigiene Environmental Services Ltd,67160,,
Chorley Borough Council,http://statistics.data.gov.uk/id/local-authority/30UE,Central Support Services,1009,Commercial & Property,Planned Maintenance,20006,Repairs Maintenance & Alts,5005,Legionella monitoring Market,03/11/2021,0161524,20.00,Revenue,Maxigiene Environmental Services Ltd,67160,,
Chorley Borough Council,http://statistics.data.gov.uk/id/local-authority/30UE,Central Support Services,1009,Commercial & Property,Planned Maintenance,20006,Repairs Maintenance & Alts,5005,Legionella monitoring Primrose,03/11/2021,0161524,30.00,Revenue,Maxigiene Environmental Services Ltd,67160,,
Chorley Borough Council,http://statistics.data.gov.uk/id/local-authority/30UE,Business Support,1095,Commercial & Property,Planned Maintenance,20006,Repairs Maintenance & Alts,5005,Legionella monitoring DOP,03/11/2021,0161524,30.00,Revenue,Maxigiene Environmental Services Ltd,67160,,
Chorley Borough Council,http://statistics.data.gov.uk/id/local-authority/30UE,Central Support Services,1009,Commercial & Property,Planned Maintenance,20006,Repairs Maintenance & Alts,5005,Legionella monitoring Town Hall,03/11/2021,0161524,25.00,Revenue,Maxigiene Environmental Services Ltd,67160,,
Chorley Borough Council,http://statistics.data.gov.uk/id/local-authority/30UE,Central Support Services,1009,Commercial & Property,Planned Maintenance,20006,Repairs Maintenance & Alts,5005,Legionella monitoring Union St,03/11/2021,0161524,25.00,Revenue,Maxigiene Environmental Services Ltd,67160,,
Chorley Borough Council,http://statistics.data.gov.uk/id/local-authority/30UE,Central Support Services,1009,Commercial & Property,Planned Maintenance,20006,Repairs Maintenance & Alts,5005,27821J Astley Hall Farm House remedials as quote PM4714,03/11/2021,0161849,850.00,Revenue,Maxigiene Environmental Services Ltd,67160,,
Chorley Borough Council,http://statistics.data.gov.uk/id/local-authority/30UE,Central Support Services,1009,Commercial & Property,Planned Maintenance,20006,Repairs Maintenance & Alts,5005,"Legionella monitoring  Astley Hall, Coach House and Farmhouse",24/11/2021,0162762,75.00,Revenue,Maxigiene Environmental Services Ltd,67160,,
Chorley Borough Council,http://statistics.data.gov.uk/id/local-authority/30UE,Central Support Services,1009,Commercial & Property,Planned Maintenance,20006,Repairs Maintenance & Alts,5005,"Legionella monitoring  Parks Buildings -  Devonshire rec, harpers rec",24/11/2021,0162762,40.00,Revenue,Maxigiene Environmental Services Ltd,67160,,
Chorley Borough Council,http://statistics.data.gov.uk/id/local-authority/30UE,Central Support Services,1009,Commercial & Property,Planned Maintenance,20006,Repairs Maintenance & Alts,5005,Legionella monitoring Community centres,24/11/2021,0162762,169.16,Revenue,Maxigiene Environmental Services Ltd,67160,,
Chorley Borough Council,http://statistics.data.gov.uk/id/local-authority/30UE,Central Support Services,1009,Commercial & Property,Planned Maintenance,20006,Repairs Maintenance & Alts,5005,Legionella monitoring WC's including cemetery wc,24/11/2021,0162762,65.00,Revenue,Maxigiene Environmental Services Ltd,67160,,
Chorley Borough Council,http://statistics.data.gov.uk/id/local-authority/30UE,Central Support Services,1009,Commercial & Property,Planned Maintenance,20006,Repairs Maintenance & Alts,5005,Legionella monitoring sports pitches/pavilions,24/11/2021,0162762,72.08,Revenue,Maxigiene Environmental Services Ltd,67160,,
Chorley Borough Council,http://statistics.data.gov.uk/id/local-authority/30UE,Central Support Services,1009,Commercial & Property,Planned Maintenance,20006,Repairs Maintenance & Alts,5005,Legionella monitoring Bengal St,24/11/2021,0162762,25.00,Revenue,Maxigiene Environmental Services Ltd,67160,,
Chorley Borough Council,http://statistics.data.gov.uk/id/local-authority/30UE,Central Support Services,1009,Commercial & Property,Planned Maintenance,20006,Repairs Maintenance & Alts,5005,Legionella monitoring chorley cem,24/11/2021,0162762,20.00,Revenue,Maxigiene Environmental Services Ltd,67160,,
Chorley Borough Council,http://statistics.data.gov.uk/id/local-authority/30UE,Community Development,1097,Commercial & Property,Planned Maintenance,20006,Repairs Maintenance & Alts,5005,Legionella monitoring CAB (CIC),24/11/2021,0162762,20.00,Revenue,Maxigiene Environmental Services Ltd,67160,,
Chorley Borough Council,http://statistics.data.gov.uk/id/local-authority/30UE,Business Support,1095,Commercial & Property,Planned Maintenance,20006,Repairs Maintenance & Alts,5005,Legionella monitoring MW Mgt,24/11/2021,0162762,20.00,Revenue,Maxigiene Environmental Services Ltd,67160,,
Chorley Borough Council,http://statistics.data.gov.uk/id/local-authority/30UE,Central Support Services,1009,Commercial & Property,Planned Maintenance,20006,Repairs Maintenance & Alts,5005,Legionella monitoring Cotswold House,24/11/2021,0162762,20.00,Revenue,Maxigiene Environmental Services Ltd,67160,,
Chorley Borough Council,http://statistics.data.gov.uk/id/local-authority/30UE,Central Support Services,1009,Commercial & Property,Planned Maintenance,20006,Repairs Maintenance & Alts,5005,Legionella monitoring Market,24/11/2021,0162762,20.00,Revenue,Maxigiene Environmental Services Ltd,67160,,
Chorley Borough Council,http://statistics.data.gov.uk/id/local-authority/30UE,Central Support Services,1009,Commercial & Property,Planned Maintenance,20006,Repairs Maintenance & Alts,5005,Legionella monitoring Primrose,24/11/2021,0162762,30.00,Revenue,Maxigiene Environmental Services Ltd,67160,,
Chorley Borough Council,http://statistics.data.gov.uk/id/local-authority/30UE,Business Support,1095,Commercial & Property,Planned Maintenance,20006,Repairs Maintenance & Alts,5005,Legionella monitoring DOP,24/11/2021,0162762,30.00,Revenue,Maxigiene Environmental Services Ltd,67160,,
Chorley Borough Council,http://statistics.data.gov.uk/id/local-authority/30UE,Central Support Services,1009,Commercial & Property,Planned Maintenance,20006,Repairs Maintenance & Alts,5005,Legionella monitoring Town Hall,24/11/2021,0162762,25.00,Revenue,Maxigiene Environmental Services Ltd,67160,,
Chorley Borough Council,http://statistics.data.gov.uk/id/local-authority/30UE,Central Support Services,1009,Commercial & Property,Planned Maintenance,20006,Repairs Maintenance & Alts,5005,Legionella monitoring Union St,24/11/2021,0162762,25.00,Revenue,Maxigiene Environmental Services Ltd,67160,,
Chorley Borough Council,http://statistics.data.gov.uk/id/local-authority/30UE,Service Management & Support,1009,Customer & Digital,Supplies-Grounds Maintenance,40025,"Equipment, Furniture & Materia",5023,Supply 10 ton of 6mm - dust Sandstone,03/11/2021,0162164,350.00,Revenue,Mc & Ma Stewart (Haulage Ltd),16627,,
Chorley Borough Council,http://statistics.data.gov.uk/id/local-authority/30UE,Central Support Services,1009,Customer & Digital,Items For Resale,40027,"Equipment, Furniture & Materia",5023,BROWN LIDS for 240L wheeled bins. Quantity : 100,17/11/2021,0162613,595.00,Revenue,MGB Plastics Ltd,18624,,
Chorley Borough Council,http://statistics.data.gov.uk/id/local-authority/30UE,Central Support Services,1009,Customer & Digital,Items For Resale,40027,"Equipment, Furniture & Materia",5023,GREEN LIDS for 240L wheeled bin. Quantity : 200,17/11/2021,0162614,"1,190.00",Revenue,MGB Plastics Ltd,18624,,
Chorley Borough Council,http://statistics.data.gov.uk/id/local-authority/30UE,Central Support Services,1009,Commercial & Property,General Repairs - Reactive,20004,Repairs Maintenance & Alts,5005,13746 Clear and survey drains near buzz bingo site,10/11/2021,0162292,280.00,Revenue,Michael Roe,78294,,
Chorley Borough Council,http://statistics.data.gov.uk/id/local-authority/30UE,Capital,Capital,Communities,Grants,03002,Capital Expenditure,Capital,NAME REDACTED,03/11/2021,0162061,"5,548.53",Capital,Mint Northwest Ltd,65607,,
Chorley Borough Council,http://statistics.data.gov.uk/id/local-authority/30UE,Capital,Capital,Communities,Grants,03002,Capital Expenditure,Capital,ADDRESS REDACTED,03/11/2021,0162327,"5,664.88",Capital,Mint Northwest Ltd,65607,,
Chorley Borough Council,http://statistics.data.gov.uk/id/local-authority/30UE,Capital,Capital,Communities,Grants,03002,Capital Expenditure,Capital,ADDRESS REDACTED,03/11/2021,0162328,946.94,Capital,Mint Northwest Ltd,65607,,
Chorley Borough Council,http://statistics.data.gov.uk/id/local-authority/30UE,Capital,Capital,Communities,Grants,03002,Capital Expenditure,Capital,ADDRESS REDACTED,24/11/2021,0162655,"4,435.55",Capital,Mint Northwest Ltd,65607,,
Chorley Borough Council,http://statistics.data.gov.uk/id/local-authority/30UE,Capital,Capital,Communities,Grants,03002,Capital Expenditure,Capital,DFG - 21/00139/DFG,03/11/2021,0162070,"2,110.00",Capital,Mobility Care Services,70841,,
Chorley Borough Council,http://statistics.data.gov.uk/id/local-authority/30UE,Service Management & Support,1009,Customer & Digital,Training Course Fees,17010,Indirect Employee Expenses,5002,Professional Tree Inspection course for NAME REDACTED 11-13 January 2022 @ 595,17/11/2021,0162354,595.00,Revenue,Morton Training Limited,76873,,
Chorley Borough Council,http://statistics.data.gov.uk/id/local-authority/30UE,Central Support Services,1009,Policy & Governance,Postages,40082,Communication and Computing,5028,"One NFS330 Franking Machine and Scale, for October 2021 to September 2022",24/11/2021,0162293,431.00,Revenue,Nationwide Franking Sense,22546,,
Chorley Borough Council,http://statistics.data.gov.uk/id/local-authority/30UE,Central Support Services,1009,Commercial & Property,Professional Fees,40063,Services,5027,DLL 2nd Stage,17/11/2021,0162448,690.00,Revenue,Natural England,78180,,
Chorley Borough Council,http://statistics.data.gov.uk/id/local-authority/30UE,Business Support,1095,Commercial & Property,Security Service,40062,Services,5027,"Evening Site Security Services, Market Walk Shopping Centre, 5pm until midnight, 7 days. 1st April 2021 to End March 2022",03/11/2021,0162040,904.75,Revenue,New Concept Security NW Ltd T/A New Concept Goup,80488,,
Chorley Borough Council,http://statistics.data.gov.uk/id/local-authority/30UE,Business Support,1095,Commercial & Property,Security Service,40062,Services,5027,"Evening Site Security Services, Market Walk Shopping Centre, 5pm until midnight, 7 days. 1st April 2021 to End March 2022",03/11/2021,0162144,904.75,Revenue,New Concept Security NW Ltd T/A New Concept Goup,80488,,
Chorley Borough Council,http://statistics.data.gov.uk/id/local-authority/30UE,Business Support,1095,Commercial & Property,Security Service,40062,Services,5027,"Evening Site Security Services, Market Walk Shopping Centre, 5pm until midnight, 7 days. 1st April 2021 to End March 2022",10/11/2021,0162432,740.25,Revenue,New Concept Security NW Ltd T/A New Concept Goup,80488,,
Chorley Borough Council,http://statistics.data.gov.uk/id/local-authority/30UE,Capital,Capital,Commercial & Property,Main Contractor,03007,Capital Expenditure,Capital,"Carry out works to Chorley Civic Square, Electrical ducting & lighting column bases, French drain, connections into manholes",10/11/2021,0162295,"17,072.60",Capital,North Star Estates Ltd,83891,,
Chorley Borough Council,http://statistics.data.gov.uk/id/local-authority/30UE,Capital,Capital,Commercial & Property,Main Contractor,03007,Capital Expenditure,Capital,"Carry out works to Chorley Civic Square, Electrical ducting & lighting column bases, French drain, connections into manholes",24/11/2021,0162751,"4,404.44",Capital,North Star Estates Ltd,83891,,
Chorley Borough Council,http://statistics.data.gov.uk/id/local-authority/30UE,Business Support,1095,Commercial & Property,Contract Catering,40038,Catering,5024,4 X nwt2163 Clipper org & fair trade Coffee,03/11/2021,0161839,79.96,Revenue,North West Tea FM Solutions,78255,,
Chorley Borough Council,http://statistics.data.gov.uk/id/local-authority/30UE,Business Support,1095,Commercial & Property,Contract Catering,40038,Catering,5024,2 x NWT808 Clipper f/trade hot choc,03/11/2021,0161839,42.98,Revenue,North West Tea FM Solutions,78255,,
Chorley Borough Council,http://statistics.data.gov.uk/id/local-authority/30UE,Business Support,1095,Commercial & Property,Contract Catering,40038,Catering,5024,6 x NWT127 lakeland s/skimmed milk jigger,03/11/2021,0161839,20.94,Revenue,North West Tea FM Solutions,78255,,
Chorley Borough Council,http://statistics.data.gov.uk/id/local-authority/30UE,Business Support,1095,Commercial & Property,Contract Catering,40038,Catering,5024,4 x NWT3814 Hills mibi packs @ 10.99,03/11/2021,0161839,43.96,Revenue,North West Tea FM Solutions,78255,,
Chorley Borough Council,http://statistics.data.gov.uk/id/local-authority/30UE,Business Support,1095,Commercial & Property,Refreshments,40036,Catering,5024,2 x NWT235 Clipper everyday fair trade tea,03/11/2021,0161839,43.98,Revenue,North West Tea FM Solutions,78255,,
Chorley Borough Council,http://statistics.data.gov.uk/id/local-authority/30UE,Business Support,1095,Commercial & Property,Refreshments,40036,Catering,5024,2 x NWT084 fairtrade clipper Arabica Coffee,03/11/2021,0161839,133.98,Revenue,North West Tea FM Solutions,78255,,
Chorley Borough Council,http://statistics.data.gov.uk/id/local-authority/30UE,Business Support,1095,Commercial & Property,Refreshments,40036,Catering,5024,1 x carriage 6.99,03/11/2021,0161839,6.99,Revenue,North West Tea FM Solutions,78255,,
Chorley Borough Council,http://statistics.data.gov.uk/id/local-authority/30UE,Corporate Management,1008,Customer & Digital,Hire Of Vehicles and Plant,30028,Contrct Hire & Operating Lease,5018,"3 x Ford transit Connect vans, 72 days hire to the 20th December net value for 3 vans @ 9.29 each- 2,006.64p",03/11/2021,0162244,260.12,Revenue,Northgate Vehicle Hire (NW) Ltd,17360,,
Chorley Borough Council,http://statistics.data.gov.uk/id/local-authority/30UE,Central Support Services,1009,Customer & Digital,Hire Of Vehicles and Plant,30028,Contrct Hire & Operating Lease,5018,"vehicle hire, 3.5 ton Luton Van with tail lift (April 2021 - 31 March 2022)",10/11/2021,0162256,854.28,Revenue,Northgate Vehicle Hire (NW) Ltd,17360,,
Chorley Borough Council,http://statistics.data.gov.uk/id/local-authority/30UE,Corporate Management,1008,Customer & Digital,Hire Of Vehicles and Plant,30028,Contrct Hire & Operating Lease,5018,"3 x Ford transit Connect vans, 72 days hire to the 20th December net value for 3 vans @ 9.29 each- 2,006.64p",03/11/2021,0162307,260.12,Revenue,Northgate Vehicle Hire (NW) Ltd,17360,,
Chorley Borough Council,http://statistics.data.gov.uk/id/local-authority/30UE,Parking Services,1066,Commercial & Property,External Contractors,50008,Private Contractors,5042,"Provision of off street car park enforcement, cash collection, cash counting facilities and third party bulk cash collections",03/11/2021,0162024,"3,842.99",Revenue,NSL Limited,67253,,
Chorley Borough Council,http://statistics.data.gov.uk/id/local-authority/30UE,Parking Services,1066,Commercial & Property,External Contractors,50008,Private Contractors,5042,"Provision of off street car park enforcement, cash collection, cash counting facilities and third party bulk cash collections",10/11/2021,0162429,"3,932.06",Revenue,NSL Limited,67253,,
Chorley Borough Council,http://statistics.data.gov.uk/id/local-authority/30UE,Culture & Heritage,1036,Policy & Governance,Miscellaneous Expenses,40200,Miscellaneous Expenses,5034,Performance of La Boheme - 70% ticket split,10/11/2021,0162286,"3,279.50",Revenue,Outreach Opera,83895,,
Chorley Borough Council,http://statistics.data.gov.uk/id/local-authority/30UE,Planning Policy,1092,Communities,Operational Employees Salaries,10000,Direct Employee Expenses,5001,Temporary Agency Staff (Standard Hours) for work on the Central Lancashire Local Plan,03/11/2021,0162019,"1,357.00",Revenue,Park Avenue Recruitment Ltd,82305,,
Chorley Borough Council,http://statistics.data.gov.uk/id/local-authority/30UE,Planning Policy,1092,Communities,Operational Employees Salaries,10000,Direct Employee Expenses,5001,Temporary Agency Staff (Standard Hours) for work on the Central Lancashire Local Plan,10/11/2021,0162169,"1,611.64",Revenue,Park Avenue Recruitment Ltd,82305,,
Chorley Borough Council,http://statistics.data.gov.uk/id/local-authority/30UE,Planning Policy,1092,Communities,Operational Employees Salaries,10000,Direct Employee Expenses,5001,Temporary Agency Staff (Standard Hours) for work on the Central Lancashire Local Plan,10/11/2021,0162263,724.50,Revenue,Park Avenue Recruitment Ltd,82305,,
Chorley Borough Council,http://statistics.data.gov.uk/id/local-authority/30UE,Planning Policy,1092,Communities,Operational Employees Salaries,10000,Direct Employee Expenses,5001,Temporary Agency Staff (Standard Hours) for work on the Central Lancashire Local Plan,10/11/2021,0162316,"1,730.32",Revenue,Park Avenue Recruitment Ltd,82305,,
Chorley Borough Council,http://statistics.data.gov.uk/id/local-authority/30UE,Planning Policy,1092,Communities,Operational Employees Salaries,10000,Direct Employee Expenses,5001,Temporary Agency Staff (Standard Hours) for work on the Central Lancashire Local Plan,17/11/2021,0162528,"2,921.00",Revenue,Park Avenue Recruitment Ltd,82305,,
Chorley Borough Council,http://statistics.data.gov.uk/id/local-authority/30UE,Corporate Management,1008,Policy & Governance,Cleaning Materials,40019,"Equipment, Furniture & Materia",5023,"CG121B Blue Dishcloths 10 Pack, 1.16 per pack, QTY 10 packs, Total 11.60",03/11/2021,0162042,11.60,Revenue,Pattersons Holdings (Bristol),77537,,
Chorley Borough Council,http://statistics.data.gov.uk/id/local-authority/30UE,Corporate Management,1008,Policy & Governance,Cleaning Materials,40019,"Equipment, Furniture & Materia",5023,"Jangro Blue Centrefeed 150m 2ply (Case of 6) 12.45 each, QTY 10 cases, total 124.50",03/11/2021,0162042,124.50,Revenue,Pattersons Holdings (Bristol),77537,,
Chorley Borough Council,http://statistics.data.gov.uk/id/local-authority/30UE,Corporate Management,1008,Policy & Governance,Cleaning Materials,40019,"Equipment, Furniture & Materia",5023,"BC015-5, Thick Bleach, 2.33 per 5 litres, QTY 4 x 5litres, Total 9.32",03/11/2021,0162042,9.32,Revenue,Pattersons Holdings (Bristol),77537,,
Chorley Borough Council,http://statistics.data.gov.uk/id/local-authority/30UE,Corporate Management,1008,Policy & Governance,Cleaning Materials,40019,"Equipment, Furniture & Materia",5023,"BC040-5 Fragranced Toilet Cleaner 5LT, Qty 10 x 5litres 3.53 each, Total 35.30",03/11/2021,0162042,35.30,Revenue,Pattersons Holdings (Bristol),77537,,
Chorley Borough Council,http://statistics.data.gov.uk/id/local-authority/30UE,Corporate Management,1008,Policy & Governance,Cleaning Materials,40019,"Equipment, Furniture & Materia",5023,"CG121G, Green Dishcloths 10 Pack, 1.16 per pack, QTY 10 packs, Total 11.60",03/11/2021,0162042,11.60,Revenue,Pattersons Holdings (Bristol),77537,,
Chorley Borough Council,http://statistics.data.gov.uk/id/local-authority/30UE,Corporate Management,1008,Policy & Governance,Cleaning Materials,40019,"Equipment, Furniture & Materia",5023,"CG121Y, Yellow Dishcloths 10 Pack, 1.16 per pack, QTY 10 packs, Total 11.60",03/11/2021,0162042,11.60,Revenue,Pattersons Holdings (Bristol),77537,,
Chorley Borough Council,http://statistics.data.gov.uk/id/local-authority/30UE,Corporate Management,1008,Policy & Governance,Cleaning Materials,40019,"Equipment, Furniture & Materia",5023,CG121R Red Dishcloths 10Pack 1.16 per pack QTY 10 packs Total 11.60,03/11/2021,0162042,11.60,Revenue,Pattersons Holdings (Bristol),77537,,
Chorley Borough Council,http://statistics.data.gov.uk/id/local-authority/30UE,Corporate Management,1008,Policy & Governance,Cleaning Materials,40019,"Equipment, Furniture & Materia",5023,"Stock Code: DG802-L, Jangro Clear Vinyl Gloves Powder Free Size Large (Box of 100), QTY 5 boxes, total 44.00",03/11/2021,0162042,35.20,Revenue,Pattersons Holdings (Bristol),77537,,
Chorley Borough Council,http://statistics.data.gov.uk/id/local-authority/30UE,Corporate Management,1008,Policy & Governance,Cleaning Materials,40019,"Equipment, Furniture & Materia",5023,"Stock Code: DG802-M, Jangro Clear Vinyl Gloves Powder Free Size Medium (Box of 100), QTY 5 boxes, total 44.00",03/11/2021,0162042,35.20,Revenue,Pattersons Holdings (Bristol),77537,,
Chorley Borough Council,http://statistics.data.gov.uk/id/local-authority/30UE,Business Support,1095,Commercial & Property,Cleaning Materials,40019,"Equipment, Furniture & Materia",5023,cleaning supplies,17/11/2021,0162393,342.63,Revenue,Pattersons Holdings (Bristol),77537,,
Chorley Borough Council,http://statistics.data.gov.uk/id/local-authority/30UE,Central Support Services,1009,Commercial & Property,General Repairs - Reactive,20004,Repairs Maintenance & Alts,5005,Friday Street Car Park Gate repairs,24/11/2021,0162756,566.38,Revenue,Peerless Fencing Limited,78148,,
Chorley Borough Council,http://statistics.data.gov.uk/id/local-authority/30UE,Central Support Services,1009,Commercial & Property,Planned Maintenance,20006,Repairs Maintenance & Alts,5005,annual fire extinguisher service All Seasons,24/11/2021,0162742,76.25,Revenue,Pennine Fire & Safety Limited,69643,,
Chorley Borough Council,http://statistics.data.gov.uk/id/local-authority/30UE,Central Support Services,1009,Commercial & Property,Planned Maintenance,20006,Repairs Maintenance & Alts,5005,annual fire extinguisher service Astley Hall,24/11/2021,0162742,118.05,Revenue,Pennine Fire & Safety Limited,69643,,
Chorley Borough Council,http://statistics.data.gov.uk/id/local-authority/30UE,Central Support Services,1009,Commercial & Property,Planned Maintenance,20006,Repairs Maintenance & Alts,5005,annual fire extinguisher service Astley park bowls,24/11/2021,0162742,24.00,Revenue,Pennine Fire & Safety Limited,69643,,
Chorley Borough Council,http://statistics.data.gov.uk/id/local-authority/30UE,Central Support Services,1009,Commercial & Property,Planned Maintenance,20006,Repairs Maintenance & Alts,5005,annual fire extinguisher service Astley Park changing rooms,24/11/2021,0162742,26.50,Revenue,Pennine Fire & Safety Limited,69643,,
Chorley Borough Council,http://statistics.data.gov.uk/id/local-authority/30UE,Central Support Services,1009,Commercial & Property,Planned Maintenance,20006,Repairs Maintenance & Alts,5005,annual fire extinguisher service Astley Park coach house,24/11/2021,0162742,63.30,Revenue,Pennine Fire & Safety Limited,69643,,
Chorley Borough Council,http://statistics.data.gov.uk/id/local-authority/30UE,Central Support Services,1009,Commercial & Property,Planned Maintenance,20006,Repairs Maintenance & Alts,5005,annual fire extinguisher service Astley farmhouse,24/11/2021,0162742,73.85,Revenue,Pennine Fire & Safety Limited,69643,,
Chorley Borough Council,http://statistics.data.gov.uk/id/local-authority/30UE,Central Support Services,1009,Commercial & Property,Planned Maintenance,20006,Repairs Maintenance & Alts,5005,annual fire extinguisher service Astley village CC,24/11/2021,0162742,39.90,Revenue,Pennine Fire & Safety Limited,69643,,
Chorley Borough Council,http://statistics.data.gov.uk/id/local-authority/30UE,Central Support Services,1009,Commercial & Property,Planned Maintenance,20006,Repairs Maintenance & Alts,5005,annual fire extinguisher service Bengal St,24/11/2021,0162742,133.30,Revenue,Pennine Fire & Safety Limited,69643,,
Chorley Borough Council,http://statistics.data.gov.uk/id/local-authority/30UE,Central Support Services,1009,Commercial & Property,Planned Maintenance,20006,Repairs Maintenance & Alts,5005,annual fire extinguisher service Brinscall baths,24/11/2021,0162742,24.70,Revenue,Pennine Fire & Safety Limited,69643,,
Chorley Borough Council,http://statistics.data.gov.uk/id/local-authority/30UE,Central Support Services,1009,Commercial & Property,Planned Maintenance,20006,Repairs Maintenance & Alts,5005,annual fire extinguisher service Buttermere cc,24/11/2021,0162742,87.45,Revenue,Pennine Fire & Safety Limited,69643,,
Chorley Borough Council,http://statistics.data.gov.uk/id/local-authority/30UE,Central Support Services,1009,Commercial & Property,Planned Maintenance,20006,Repairs Maintenance & Alts,5005,annual fire extinguisher service Chorley cemetery,24/11/2021,0162742,53.15,Revenue,Pennine Fire & Safety Limited,69643,,
Chorley Borough Council,http://statistics.data.gov.uk/id/local-authority/30UE,Community Development,1097,Commercial & Property,Planned Maintenance,20006,Repairs Maintenance & Alts,5005,annual fire extinguisher service CAB,24/11/2021,0162742,74.40,Revenue,Pennine Fire & Safety Limited,69643,,
Chorley Borough Council,http://statistics.data.gov.uk/id/local-authority/30UE,Central Support Services,1009,Commercial & Property,Planned Maintenance,20006,Repairs Maintenance & Alts,5005,annual fire extinguisher service Clayton Brook CC,24/11/2021,0162742,25.40,Revenue,Pennine Fire & Safety Limited,69643,,
Chorley Borough Council,http://statistics.data.gov.uk/id/local-authority/30UE,Central Support Services,1009,Commercial & Property,Planned Maintenance,20006,Repairs Maintenance & Alts,5005,annual fire extinguisher service Clayton green,24/11/2021,0162742,67.65,Revenue,Pennine Fire & Safety Limited,69643,,
Chorley Borough Council,http://statistics.data.gov.uk/id/local-authority/30UE,Central Support Services,1009,Commercial & Property,Planned Maintenance,20006,Repairs Maintenance & Alts,5005,annual fire extinguisher service Coronation Rec,24/11/2021,0162742,24.00,Revenue,Pennine Fire & Safety Limited,69643,,
Chorley Borough Council,http://statistics.data.gov.uk/id/local-authority/30UE,Central Support Services,1009,Commercial & Property,Planned Maintenance,20006,Repairs Maintenance & Alts,5005,annual fire extinguisher service Cotswold House,24/11/2021,0162742,137.15,Revenue,Pennine Fire & Safety Limited,69643,,
Chorley Borough Council,http://statistics.data.gov.uk/id/local-authority/30UE,Central Support Services,1009,Commercial & Property,Planned Maintenance,20006,Repairs Maintenance & Alts,5005,annual fire extinguisher service Eaves Green cc,24/11/2021,0162742,25.45,Revenue,Pennine Fire & Safety Limited,69643,,
Chorley Borough Council,http://statistics.data.gov.uk/id/local-authority/30UE,Central Support Services,1009,Commercial & Property,Planned Maintenance,20006,Repairs Maintenance & Alts,5005,annual fire extinguisher service ADDRESS REDACTED,24/11/2021,0162742,71.40,Revenue,Pennine Fire & Safety Limited,69643,,
Chorley Borough Council,http://statistics.data.gov.uk/id/local-authority/30UE,Central Support Services,1009,Commercial & Property,Planned Maintenance,20006,Repairs Maintenance & Alts,5005,annual fire extinguisher service Harpers rec,24/11/2021,0162742,24.00,Revenue,Pennine Fire & Safety Limited,69643,,
Chorley Borough Council,http://statistics.data.gov.uk/id/local-authority/30UE,Central Support Services,1009,Commercial & Property,Planned Maintenance,20006,Repairs Maintenance & Alts,5005,annual fire extinguisher service Lancaster way CC,24/11/2021,0162742,87.45,Revenue,Pennine Fire & Safety Limited,69643,,
Chorley Borough Council,http://statistics.data.gov.uk/id/local-authority/30UE,Central Support Services,1009,Commercial & Property,Planned Maintenance,20006,Repairs Maintenance & Alts,5005,annual fire extinguisher service Market,24/11/2021,0162742,84.40,Revenue,Pennine Fire & Safety Limited,69643,,
Chorley Borough Council,http://statistics.data.gov.uk/id/local-authority/30UE,Business Support,1095,Commercial & Property,Planned Maintenance,20006,Repairs Maintenance & Alts,5005,annual fire extinguisher service market walk mgt,24/11/2021,0162742,66.70,Revenue,Pennine Fire & Safety Limited,69643,,
Chorley Borough Council,http://statistics.data.gov.uk/id/local-authority/30UE,Business Support,1095,Commercial & Property,Planned Maintenance,20006,Repairs Maintenance & Alts,5005,annual fire extinguisher service market Walk ext,24/11/2021,0162742,24.00,Revenue,Pennine Fire & Safety Limited,69643,,
Chorley Borough Council,http://statistics.data.gov.uk/id/local-authority/30UE,Central Support Services,1009,Commercial & Property,Planned Maintenance,20006,Repairs Maintenance & Alts,5005,annual fire extinguisher service union st,24/11/2021,0162742,89.45,Revenue,Pennine Fire & Safety Limited,69643,,
Chorley Borough Council,http://statistics.data.gov.uk/id/local-authority/30UE,Central Support Services,1009,Commercial & Property,Planned Maintenance,20006,Repairs Maintenance & Alts,5005,annual fire extinguisher service Yarrow Valley,24/11/2021,0162742,24.70,Revenue,Pennine Fire & Safety Limited,69643,,
Chorley Borough Council,http://statistics.data.gov.uk/id/local-authority/30UE,Culture & Heritage,1036,Policy & Governance,Souvenirs,40033,"Equipment, Furniture & Materia",5023,100 sets of limited edition pen and keyrings @ 13.85 per set.,24/11/2021,0162627,"1,385.00",Revenue,Pheonix Woodcraft,81323,,
Chorley Borough Council,http://statistics.data.gov.uk/id/local-authority/30UE,Central Support Services,1009,Policy & Governance,Exhibitions & Special Events,40158,Miscellaneous Expenses,5034,Chorley Flower Show 2nd Batch Signage,03/11/2021,0161951,612.29,Revenue,Poppy Signs Ltd,21898,,
Chorley Borough Council,http://statistics.data.gov.uk/id/local-authority/30UE,Capital,Capital,Commercial & Property,Other Capital Related Fees,03024,Capital Expenditure,Capital,Main & Side entrance signage (illuminated),03/11/2021,0162038,"9,697.42",Capital,Poppy Signs Ltd,21898,,
Chorley Borough Council,http://statistics.data.gov.uk/id/local-authority/30UE,Central Support Services,1009,Policy & Governance,Miscellaneous Expenses,40200,Miscellaneous Expenses,5034,Hoarding graphics printed and installed at the Tatton Gardens development,17/11/2021,0162455,"2,896.55",Revenue,Poppy Signs Ltd,21898,,
Chorley Borough Council,http://statistics.data.gov.uk/id/local-authority/30UE,Corporate Management,1008,Policy & Governance,Corp Training Organisational Development,17006,Indirect Employee Expenses,5002,Passport to People Management Interactive Training Videos,24/11/2021,0162439,"2,400.00",Revenue,Potential Unearthed,22243,,
Chorley Borough Council,http://statistics.data.gov.uk/id/local-authority/30UE,Recreation & Sport,1037,Policy & Governance,Performing Rights Society Fees,40148,Grants and Subscriptions,5031,Music Licence for the Lancastrian at Chorley Town Hall for the period 06/07/21 to 05/10/21.,24/11/2021,0162538,257.79,Revenue,PPL PRS Ltd,77455,,
Chorley Borough Council,http://statistics.data.gov.uk/id/local-authority/30UE,Central Support Services,1009,Commercial & Property,Planned Maintenance,20006,Repairs Maintenance & Alts,5005,DEC for All Seasons Leisure Centre,03/11/2021,0161526,250.00,Revenue,Prashant Vara T/A Legency,76869,,
Chorley Borough Council,http://statistics.data.gov.uk/id/local-authority/30UE,Central Support Services,1009,Commercial & Property,Planned Maintenance,20006,Repairs Maintenance & Alts,5005,DEC for Clayton Green Leisure Centre,03/11/2021,0161526,400.00,Revenue,Prashant Vara T/A Legency,76869,,
Chorley Borough Council,http://statistics.data.gov.uk/id/local-authority/30UE,Central Support Services,1009,Commercial & Property,Planned Maintenance,20006,Repairs Maintenance & Alts,5005,DEC for Astley Hall and Cottage,03/11/2021,0161526,450.00,Revenue,Prashant Vara T/A Legency,76869,,
Chorley Borough Council,http://statistics.data.gov.uk/id/local-authority/30UE,Central Support Services,1009,Commercial & Property,Planned Maintenance,20006,Repairs Maintenance & Alts,5005,DEC for Town Hall,03/11/2021,0161526,450.00,Revenue,Prashant Vara T/A Legency,76869,,
Chorley Borough Council,http://statistics.data.gov.uk/id/local-authority/30UE,Central Support Services,1009,Commercial & Property,Planned Maintenance,20006,Repairs Maintenance & Alts,5005,DEC for Union St,03/11/2021,0161526,450.00,Revenue,Prashant Vara T/A Legency,76869,,
Chorley Borough Council,http://statistics.data.gov.uk/id/local-authority/30UE,Corporate Management,1008,Policy & Governance,Corp Training Organisational Development,17006,Indirect Employee Expenses,5002,ILM level 4 course for NAME REDACTED,24/11/2021,0162788,835.00,Revenue,Professional Futures Ltd,83725,,
Chorley Borough Council,http://statistics.data.gov.uk/id/local-authority/30UE,Other Short Term Creditors,,Policy & Governance,General Balances,00100,Balance Sheet,Balance,Salary Deductions,24/11/2021,0162767,"3,974.00",Revenue,PRUDENTIAL,18178,,
Chorley Borough Council,http://statistics.data.gov.uk/id/local-authority/30UE,Central Support Services,1009,Policy & Governance,HR Approved Occ Health Fees,15201,Indirect Employee Expenses,5002,Counselling sessions for staff,24/11/2021,0162600,270.00,Revenue,Rachel Dickinson,78411,,
Chorley Borough Council,http://statistics.data.gov.uk/id/local-authority/30UE,Service Management & Support,1009,Customer & Digital,Vehicles and Plant Maintenance,30045,Direct Transport Costs,5016,As per invoice number - 0216476677 PL16 UUD damage report,03/11/2021,0161838,140.00,Revenue,RCI Financial Services,83587,,
Chorley Borough Council,http://statistics.data.gov.uk/id/local-authority/30UE,Service Management & Support,1009,Customer & Digital,Vehicles and Plant Maintenance,30045,Direct Transport Costs,5016,As per invoice number - 0216476677,03/11/2021,0161838,"1,634.68",Revenue,RCI Financial Services,83587,,
Chorley Borough Council,http://statistics.data.gov.uk/id/local-authority/30UE,Central Support Services,1009,Communities,Miscellaneous Expenses,40200,Miscellaneous Expenses,5034,Beaconsfield Terrace Alleygate - 2X Alleygates and Fencing along the wall up to number 2 Wordsworth Terrace,24/11/2021,0162749,"19,893.00",Revenue,REMEC Engineering Services (Burnley) Limited,83988,,
Chorley Borough Council,http://statistics.data.gov.uk/id/local-authority/30UE,Central Support Services,1009,Commercial & Property,Consultants` Fees,40077,Services,5027,"Project Management & Quantity Surveying Services, Tatton Regeneration scheme from Contractor appointment to RIBA Stage 7",03/11/2021,0162022,"8,535.00",Revenue,Rider Levett Bucknall,67527,,
Chorley Borough Council,http://statistics.data.gov.uk/id/local-authority/30UE,Central Support Services,1009,Commercial & Property,Professional Fees,40063,Services,5027,"Employers Agent: Construction Stage 26, Rectification Period, Final Account, QS: Construction Stage 8, Rectification Period",03/11/2021,0162158,"3,410.00",Revenue,Rider Levett Bucknall,67527,,
Chorley Borough Council,http://statistics.data.gov.uk/id/local-authority/30UE,Service Management & Support,1009,Customer & Digital,Supplies-Grounds Maintenance,40025,"Equipment, Furniture & Materia",5023,"Quantity x 20, Impact Standard Marking Paint 10ltr @  27.90 each",03/11/2021,0161964,558.00,Revenue,Rigby Taylor Ltd,16299,,
Chorley Borough Council,http://statistics.data.gov.uk/id/local-authority/30UE,Service Management & Support,1009,Customer & Digital,Supplies-Grounds Maintenance,40025,"Equipment, Furniture & Materia",5023,Supply 20 Impact Standard Marking Paint 10ltr,03/11/2021,0162120,558.00,Revenue,Rigby Taylor Ltd,16299,,
Chorley Borough Council,http://statistics.data.gov.uk/id/local-authority/30UE,Service Management & Support,1009,Customer & Digital,Supplies-Grounds Maintenance,40025,"Equipment, Furniture & Materia",5023,"1 x set FBL-047 Senior HW Football Goals C/w Sockets, delivered @ 747.03 + VAT",17/11/2021,0162426,747.03,Revenue,Rigby Taylor Ltd,16299,,
Chorley Borough Council,http://statistics.data.gov.uk/id/local-authority/30UE,Central Support Services,1009,Commercial & Property,Professional Fees,40063,Services,5027,Rightmove advertising for 12 months - 7-18 properties band 6 months at 235pm 6 months at 570pm,03/11/2021,0161184,570.00,Revenue,Rightmove Group Ltd,77717,,
Chorley Borough Council,http://statistics.data.gov.uk/id/local-authority/30UE,Capital,Capital,Commercial & Property,Main Contractor,03007,Capital Expenditure,Capital,"Delivery of the Tatton regeneration scheme, All in accordance with the executed NEC Engineering & Construct Contract",10/11/2021,0162376,"1,117,894.67",Capital,Robertson CE Limited,81176,,
Chorley Borough Council,http://statistics.data.gov.uk/id/local-authority/30UE,Development Control,1091,Customer & Digital,Consultants` Fees,40077,Services,5027,"Work carried out by ADAS in advising the LPA on the agricultural matters relating to a planning application, Tullis Farm",24/11/2021,0162427,450.00,Revenue,RSK ADAS Ltd (GBP),78447,,
Chorley Borough Council,http://statistics.data.gov.uk/id/local-authority/30UE,Corporate Management,1008,Policy & Governance,Corp Training Organisational Development,17006,Indirect Employee Expenses,5002,3 hour Interview Skills Training session for ICT,10/11/2021,0162443,990.00,Revenue,Sales Geek Ltd,80963,,
Chorley Borough Council,http://statistics.data.gov.uk/id/local-authority/30UE,Central Support Services,1009,Policy & Governance,HR Approved Occ Health Fees,15201,Indirect Employee Expenses,5002,Counselling sessions for staff in September 2021,10/11/2021,0162220,315.00,Revenue,Sarah Walsh,78412,,
Chorley Borough Council,http://statistics.data.gov.uk/id/local-authority/30UE,Business Support,1095,Commercial & Property,External Contractor,40198,Miscellaneous Expenses,5034,Concierge services April 2021 to March 2022,03/11/2021,0162147,"6,643.35",Revenue,Sector Security Services,19269,,
Chorley Borough Council,http://statistics.data.gov.uk/id/local-authority/30UE,Business Support,1095,Commercial & Property,External Contractor,40198,Miscellaneous Expenses,5034,Concierge services April 2021 to March 2022,10/11/2021,0162437,"7,143.10",Revenue,Sector Security Services,19269,,
Chorley Borough Council,http://statistics.data.gov.uk/id/local-authority/30UE,Central Support Services,1009,Policy & Governance,General Subscriptions,40146,Grants and Subscriptions,5031,Council's membership of the North West Legal Consortium.,17/11/2021,0161586,500.00,Revenue,Sefton MBC,20443,,
Chorley Borough Council,http://statistics.data.gov.uk/id/local-authority/30UE,Central Support Services,1009,Policy & Governance,Car Leasing Payment,14100,Direct Employee Expenses,5001,VIN REDACTED: NAME REDACTED - Annual,03/11/2021,0161422,"2,852.03",Revenue,SG Fleet Solutions UK Limited,80539,,
Chorley Borough Council,http://statistics.data.gov.uk/id/local-authority/30UE,Central Support Services,1009,Policy & Governance,Car Leasing Payment,14100,Direct Employee Expenses,5001,VAT,03/11/2021,0161422,252.51,Revenue,SG Fleet Solutions UK Limited,80539,,
Chorley Borough Council,http://statistics.data.gov.uk/id/local-authority/30UE,Control Accounts,Control,Policy & Governance,Manual Control Account,00001,Balance Sheet,Balance,- VAT,03/11/2021,0161422,-252.51,Revenue,SG Fleet Solutions UK Limited,80539,,
Chorley Borough Council,http://statistics.data.gov.uk/id/local-authority/30UE,Service Management & Support,1009,Customer & Digital,Protective Clothing,40040,"Clothing, Uniforms and Laundry",5025,"Quantity x 8- Size Medium, x8- Size Large, Heavy Weight, RED 400gsm Fleece Jacket Streetscene, Chorley Council white logo",03/11/2021,0160941,285.20,Revenue,SMI Int Group Ltd,80945,,
Chorley Borough Council,http://statistics.data.gov.uk/id/local-authority/30UE,Central Support Services,1009,Communities,Miscellaneous Expenses,40200,Miscellaneous Expenses,5034,"Mediation for - COM 2807: Hurst Brook, Coppull, Chorley, PR7 4QX",03/11/2021,0161483,650.00,Revenue,Smile Mediation Ltd,62536,,
Chorley Borough Council,http://statistics.data.gov.uk/id/local-authority/30UE,Central Support Services,1009,Policy & Governance,Service Fees to other Local Authorities,40076,Services,5027,Adjustment for final Shared Services Recharges to CBC for 2020/21.,03/11/2021,0162215,"1,110.00",Revenue,South Ribble Borough Council,17889,,
Chorley Borough Council,http://statistics.data.gov.uk/id/local-authority/30UE,Business Support,1095,Commercial & Property,Fixtures & Fittings - Repair/Mtnce,20028,Fixtures and Fittings,5010,"Market Walk full canopy clean including green area on roof, (Including any vacant unit ground floor windows), glass clean",03/11/2021,0162214,420.00,Revenue,Sparkle Window Cleaning (Michael Jennings),77989,,
Chorley Borough Council,http://statistics.data.gov.uk/id/local-authority/30UE,Central Support Services,1009,Policy & Governance,Exhibitions & Special Events,40158,Miscellaneous Expenses,5034,"2 Security staff for Chorley's Big Weekend, Friday 1 October 10pm - 9am, Saturday 2 October 10pm - 9am, Market Street",03/11/2021,0162245,550.00,Revenue,Spencer Sutcliffe Security & Training Ltd,83547,,
Chorley Borough Council,http://statistics.data.gov.uk/id/local-authority/30UE,Capital,Capital,Commercial & Property,Other Capital Related Fees,03024,Capital Expenditure,Capital,"Chorley Market works, Supply and install 4 electrically operated roller shutters, powder coated, tested and left in working order",03/11/2021,0162023,"7,319.95",Capital,SSS Industrial Doors Ltd,83885,,
Chorley Borough Council,http://statistics.data.gov.uk/id/local-authority/30UE,Capital,Capital,Commercial & Property,Other Capital Related Fees,03024,Capital Expenditure,Capital,Supply and install 1 no additional key switch to door 1,03/11/2021,0162023,30.00,Capital,SSS Industrial Doors Ltd,83885,,
Chorley Borough Council,http://statistics.data.gov.uk/id/local-authority/30UE,Control Accounts,Control,Policy & Governance,General Balances,00100,Balance Sheet,Balance,Monthly deductions from Payroll,24/11/2021,0162772,364.56,Revenue,St Catherines Hospice Promotions,72375,,
Chorley Borough Council,http://statistics.data.gov.uk/id/local-authority/30UE,Capital,Capital,Communities,Grants,03002,Capital Expenditure,Capital,ADDRESS REDACTED,24/11/2021,0162652,"5,949.00",Capital,Stannah Lift Services Ltd,80943,,
Chorley Borough Council,http://statistics.data.gov.uk/id/local-authority/30UE,Central Support Services,1009,Customer & Digital,Computer Equipment-Purchase,40098,Communication and Computing,5028,"iPad Air WiFi/Cellular 64Gb - Space Grey, Otterbox Symmetry iPhone SE Black Case Sale",03/11/2021,0160397,"2,326.80",Revenue,Starcom Technologies Limited,20541,,
Chorley Borough Council,http://statistics.data.gov.uk/id/local-authority/30UE,Central Support Services,1009,Customer & Digital,IT Software - Annual Licences,40101,Communication and Computing,5028,"Annual Service for PX 64k160H, Annual Service for PX 48k, APC Symmetra PX 64K 160H, APC Symmetra PX 48K UPS",10/11/2021,0161583,"5,790.00",Revenue,Starcom Technologies Limited,20541,,
Chorley Borough Council,http://statistics.data.gov.uk/id/local-authority/30UE,Central Support Services,1009,Customer & Digital,IT Software - Annual Licences,40101,Communication and Computing,5028,"Annual Service for PX 64k160H, Annual Service for PX 48k, APC Symmetra PX 64K 160H, APC Symmetra PX 48K UPS",03/11/2021,0161584,"1,680.00",Revenue,Starcom Technologies Limited,20541,,
Chorley Borough Council,http://statistics.data.gov.uk/id/local-authority/30UE,Central Support Services,1009,Customer & Digital,Computer Equipment-Purchase,40098,Communication and Computing,5028,"iPhone SE 64Gb - UAG Rugged for Case for Apple iPhone SE (2020) Black, OtterBox Alpha Sceen Protector for iPhone SE",17/11/2021,0162524,"5,532.90",Revenue,Starcom Technologies Limited,20541,,
Chorley Borough Council,http://statistics.data.gov.uk/id/local-authority/30UE,Central Support Services,1009,Commercial & Property,Professional Fees,40063,Services,5027,Building Consultancy � M&E Design & Consultancy,10/11/2021,0161397,"1,214.69",Revenue,Steven A Hunt & Associates Ltd,80511,,
Chorley Borough Council,http://statistics.data.gov.uk/id/local-authority/30UE,Parking Services,1066,Commercial & Property,Consultants` Fees,40077,Services,5027,"Provision of Public Realm & Highway Design, Engineering services, April 2021 � January 2022, Invoiced monthly",03/11/2021,0162274,"3,979.53",Revenue,Street Civil Engineering Limited,76750,,
Chorley Borough Council,http://statistics.data.gov.uk/id/local-authority/30UE,Parking Services,1066,Commercial & Property,Fixtures & Fittings - Purchase,20027,Fixtures and Fittings,5010,"Cleveland St Overflow car par (Civic Square) Supply and install Directional & informative signage (Pedestrian Exit, Exit only, etc)",24/11/2021,0162780,845.50,Revenue,Street Civil Engineering Limited,76750,,
Chorley Borough Council,http://statistics.data.gov.uk/id/local-authority/30UE,Central Support Services,1009,Communities,Planned Maintenance,20006,Repairs Maintenance & Alts,5005,"Adlington Cemetery Wall/23 Marlow Close, Rebuild stonework approximately 4m2, rake and repoint 35m2 in NHL5 lime",03/11/2021,0160812,"2,300.00",Revenue,Stringfellow Bldg Cntrctrs Ltd,17893,,
Chorley Borough Council,http://statistics.data.gov.uk/id/local-authority/30UE,Building Control,1090,Customer & Digital,Miscellaneous Expenses,40200,Miscellaneous Expenses,5034,"Emergency repairs to make property safe following dangerous structure report to building control, Section 78 notice issued.",17/11/2021,0162306,"3,480.00",Revenue,Stringfellow Bldg Cntrctrs Ltd,17893,,
Chorley Borough Council,http://statistics.data.gov.uk/id/local-authority/30UE,Capital,Capital,Communities,Grants,03002,Capital Expenditure,Capital,21/00120/CAG,10/11/2021,0162444,"5,957.00",Capital,Stringfellow Bldg Cntrctrs Ltd,17893,,
Chorley Borough Council,http://statistics.data.gov.uk/id/local-authority/30UE,Capital,Capital,Communities,Grants,03002,Capital Expenditure,Capital,20/00187/DFG,10/11/2021,0162445,"7,670.00",Capital,Stringfellow Bldg Cntrctrs Ltd,17893,,
Chorley Borough Council,http://statistics.data.gov.uk/id/local-authority/30UE,Capital,Capital,Communities,Grants,03002,Capital Expenditure,Capital,20/00218/DFG,10/11/2021,0162446,"10,095.00",Capital,Stringfellow Bldg Cntrctrs Ltd,17893,,
Chorley Borough Council,http://statistics.data.gov.uk/id/local-authority/30UE,Culture & Heritage,1036,Policy & Governance,Tools & Equipment - Purchase,40003,"Equipment, Furniture & Materia",5023,"Astley Hall renovation planting for front and sides of hall, plans, plant lists and liaison with suppliers",10/11/2021,0161080,750.00,Revenue,Sue Jeffries Garden Advice and Training,83513,,
Chorley Borough Council,http://statistics.data.gov.uk/id/local-authority/30UE,Service Management & Support,1009,Customer & Digital,Refuse Collection,20037,Cleaning and Domestic Supplies,5012,Exchange 20 yard Street Sweeping Skip @ 80.96 to cover period  01/09/2021 - 31/03/2022,03/11/2021,0161473,890.56,Revenue,SUEZ R&R UK LTD,17615,,
Chorley Borough Council,http://statistics.data.gov.uk/id/local-authority/30UE,Service Management & Support,1009,Customer & Digital,Refuse Collection,20037,Cleaning and Domestic Supplies,5012,Exchange 35 yard General Waste Skip @ 89.94 to cover period  01/09/2021 - 31/03/2022,03/11/2021,0161473,"1,259.16",Revenue,SUEZ R&R UK LTD,17615,,
Chorley Borough Council,http://statistics.data.gov.uk/id/local-authority/30UE,Service Management & Support,1009,Customer & Digital,Refuse Collection,20037,Cleaning and Domestic Supplies,5012,Exchange 35 yard Green Waste skip @ 84.26 to cover period 01/09/2021 - 31/03/2022,03/11/2021,0161473,84.26,Revenue,SUEZ R&R UK LTD,17615,,
Chorley Borough Council,http://statistics.data.gov.uk/id/local-authority/30UE,Service Management & Support,1009,Customer & Digital,Refuse Collection,20037,Cleaning and Domestic Supplies,5012,Disposal charge and processing of Green Waste @ 37.50 per tonne,03/11/2021,0161473,126.75,Revenue,SUEZ R&R UK LTD,17615,,
Chorley Borough Council,http://statistics.data.gov.uk/id/local-authority/30UE,Economic Development,1096,Commercial & Property,Refuse Collection,20037,Cleaning and Domestic Supplies,5012,Market Walk/Market Walk Extension/Markets/Calico Lounge/Reel Cinema Waste Removal 01.04.2021 - 31.03.2022: GENERAL,03/11/2021,0161475,"2,260.26",Revenue,SUEZ R&R UK LTD,17615,,
Chorley Borough Council,http://statistics.data.gov.uk/id/local-authority/30UE,Economic Development,1096,Commercial & Property,Refuse Collection,20037,Cleaning and Domestic Supplies,5012,Market Walk YARD 1 - GENERAL WASTE (Market Walk) - 8 cubic yard FEL skip x 1 55.78 per week,03/11/2021,0161475,241.77,Revenue,SUEZ R&R UK LTD,17615,,
Chorley Borough Council,http://statistics.data.gov.uk/id/local-authority/30UE,Economic Development,1096,Commercial & Property,Refuse Collection,20037,Cleaning and Domestic Supplies,5012,Market Walk YARD 1 - CARDBOARD ONLY - 35 cubic yard RoRo skip x 1 25 per month,03/11/2021,0161475,25.00,Revenue,SUEZ R&R UK LTD,17615,,
Chorley Borough Council,http://statistics.data.gov.uk/id/local-authority/30UE,Business Support,1095,Commercial & Property,Refuse Collection,20037,Cleaning and Domestic Supplies,5012,Market Walk YARD 2 - CARDBOARD ONLY - 35 cubic yard RoRo skip x 1 25 per month,03/11/2021,0161475,25.00,Revenue,SUEZ R&R UK LTD,17615,,
Chorley Borough Council,http://statistics.data.gov.uk/id/local-authority/30UE,Business Support,1095,Commercial & Property,Refuse Collection,20037,Cleaning and Domestic Supplies,5012,Market Walk YARD 2 - GENERAL WASTE - 8 cubic yard FEL skip x 1 55.78 per week,03/11/2021,0161475,242.64,Revenue,SUEZ R&R UK LTD,17615,,
Chorley Borough Council,http://statistics.data.gov.uk/id/local-authority/30UE,Business Support,1095,Commercial & Property,Refuse Collection,20037,Cleaning and Domestic Supplies,5012,Market Walk YARD 3 - GENERAL WASTE - 8 cubic yard FEL skip x 2 55.78 per skip per week. ( 111.56 pw for 2 skips),03/11/2021,0161475,485.29,Revenue,SUEZ R&R UK LTD,17615,,
Chorley Borough Council,http://statistics.data.gov.uk/id/local-authority/30UE,Business Support,1095,Commercial & Property,Refuse Collection,20037,Cleaning and Domestic Supplies,5012,Market Walk YARD 3 - CARDBOARD ONLY - 35 cubic yard RoRo skip x 1 25 per month,03/11/2021,0161475,25.00,Revenue,SUEZ R&R UK LTD,17615,,
Chorley Borough Council,http://statistics.data.gov.uk/id/local-authority/30UE,Business Support,1095,Commercial & Property,Refuse Collection,20037,Cleaning and Domestic Supplies,5012,Market Walk YARD 3 - PLASTIC FILM - 35 cubic yard RoRo skip x 1 25 per month,03/11/2021,0161475,25.00,Revenue,SUEZ R&R UK LTD,17615,,
Chorley Borough Council,http://statistics.data.gov.uk/id/local-authority/30UE,Business Support,1095,Commercial & Property,Refuse Collection,20037,Cleaning and Domestic Supplies,5012,"Market Walk Ext, Chorley PR7 1FD - GENERAL WASTE - Euro 1100 Litre x 8. 8.66 per bin per week",03/11/2021,0161475,301.37,Revenue,SUEZ R&R UK LTD,17615,,
Chorley Borough Council,http://statistics.data.gov.uk/id/local-authority/30UE,Business Support,1095,Commercial & Property,Refuse Collection,20037,Cleaning and Domestic Supplies,5012,"Market Walk Ext, Chorley PR7 1FD - MIXED RECYCLING - Euro 1100 Litre x 8. 5.06 per bin per week",03/11/2021,0161475,176.09,Revenue,SUEZ R&R UK LTD,17615,,
Chorley Borough Council,http://statistics.data.gov.uk/id/local-authority/30UE,Business Support,1095,Commercial & Property,Refuse Collection,20037,Cleaning and Domestic Supplies,5012,"Market Walk Ext, Chorley PR7 1FD - FOOD WASTE - 240 Litre bins x 4. 8.75 per bin per week",03/11/2021,0161475,75.95,Revenue,SUEZ R&R UK LTD,17615,,
Chorley Borough Council,http://statistics.data.gov.uk/id/local-authority/30UE,Business Support,1095,Commercial & Property,Refuse Collection,20037,Cleaning and Domestic Supplies,5012,"Market Walk Ext, Chorley PR7 1FD - GLASS ONLY - 240 Litre bins x 6. 3.75 per bin per week",03/11/2021,0161475,97.88,Revenue,SUEZ R&R UK LTD,17615,,
Chorley Borough Council,http://statistics.data.gov.uk/id/local-authority/30UE,Business Support,1095,Commercial & Property,Refuse Collection,20037,Cleaning and Domestic Supplies,5012,"Calico Lounge, Market Walk, Chorley, PR7 1FD - GENERAL WASTE - Euro 1100 Litre bins x 3. 8.66 per bin per week",03/11/2021,0161475,113.01,Revenue,SUEZ R&R UK LTD,17615,,
Chorley Borough Council,http://statistics.data.gov.uk/id/local-authority/30UE,Business Support,1095,Commercial & Property,Refuse Collection,20037,Cleaning and Domestic Supplies,5012,"Calico Lounge, Market Walk, Chorley, PR7 1FD - MIXED RECYCLING - Euro 1100 Litre bins x 3. 5.06 per bin per week",03/11/2021,0161475,66.03,Revenue,SUEZ R&R UK LTD,17615,,
Chorley Borough Council,http://statistics.data.gov.uk/id/local-authority/30UE,Business Support,1095,Commercial & Property,Refuse Collection,20037,Cleaning and Domestic Supplies,5012,"Calico Lounge, Market Walk, Chorley, PR7 1FD  - FOOD WASTE - 240 Litre bins x 2. 8.75 per bin per week",03/11/2021,0161475,76.13,Revenue,SUEZ R&R UK LTD,17615,,
Chorley Borough Council,http://statistics.data.gov.uk/id/local-authority/30UE,Business Support,1095,Commercial & Property,Refuse Collection,20037,Cleaning and Domestic Supplies,5012,"Calico Lounge, Market Walk, Chorley, PR7 1FD - GLASS ONLY - 240 Litre bins x 4. 3.75 per bin per week",03/11/2021,0161475,65.25,Revenue,SUEZ R&R UK LTD,17615,,
Chorley Borough Council,http://statistics.data.gov.uk/id/local-authority/30UE,Business Support,1095,Commercial & Property,Refuse Collection,20037,Cleaning and Domestic Supplies,5012,REEL Cinema - GENERAL WASTE - Euro 1100 Litre bins x 4. 8.66 per bin - emptied twice a week,03/11/2021,0161475,301.37,Revenue,SUEZ R&R UK LTD,17615,,
Chorley Borough Council,http://statistics.data.gov.uk/id/local-authority/30UE,Business Support,1095,Commercial & Property,Refuse Collection,20037,Cleaning and Domestic Supplies,5012,REEL Cinema - MIXED RECYCLING - Euro 1100 Litre bins x 2. 5.06 per bin emptied twice a week,03/11/2021,0161475,88.04,Revenue,SUEZ R&R UK LTD,17615,,
Chorley Borough Council,http://statistics.data.gov.uk/id/local-authority/30UE,Business Support,1095,Commercial & Property,Refuse Collection,20037,Cleaning and Domestic Supplies,5012,Any excess weight charges for skips & FELS,03/11/2021,0161475,34.64,Revenue,SUEZ R&R UK LTD,17615,,
Chorley Borough Council,http://statistics.data.gov.uk/id/local-authority/30UE,Central Support Services,1009,Customer & Digital,Refuse Collection,20037,Cleaning and Domestic Supplies,5012,"Chorley Council Buildings, Trade Waste (01/04/21 to 31/03/22). Town Hall, GENERAL WASTE 1 x 1100L bin 3 times per week.",10/11/2021,0161858,135.02,Revenue,SUEZ R&R UK LTD,17615,,
Chorley Borough Council,http://statistics.data.gov.uk/id/local-authority/30UE,Central Support Services,1009,Customer & Digital,Refuse Collection,20037,Cleaning and Domestic Supplies,5012,"Chorley Council Buildings, Trade Waste (01/04/21 to 31/03/22). Town Hall, MIXED RECYCLING  1 x 1100L bin once per week.",10/11/2021,0161858,22.01,Revenue,SUEZ R&R UK LTD,17615,,
Chorley Borough Council,http://statistics.data.gov.uk/id/local-authority/30UE,Central Support Services,1009,Customer & Digital,Refuse Collection,20037,Cleaning and Domestic Supplies,5012,"Chorley Council Buildings, Trade Waste (01/04/21 to 31/03/22). Civic Offices GENERAL WASTE 2 x 1100L bin 3 times per week.",10/11/2021,0161858,226.03,Revenue,SUEZ R&R UK LTD,17615,,
Chorley Borough Council,http://statistics.data.gov.uk/id/local-authority/30UE,Culture & Heritage,1036,Customer & Digital,Refuse Collection,20037,Cleaning and Domestic Supplies,5012,"Chorley Council Buildings, Trade Waste (01/04/21 to 31/03/22). Astley Hall GENERAL WASTE 1 x 1100L bin once per week.",10/11/2021,0161858,37.67,Revenue,SUEZ R&R UK LTD,17615,,
Chorley Borough Council,http://statistics.data.gov.uk/id/local-authority/30UE,Community Development,1097,Customer & Digital,Refuse Collection,20037,Cleaning and Domestic Supplies,5012,CHORLEY COUNCIL BUILDINGS TRADE WASTE (FY 2021:2022) MP's Constituency Office1 X1100 L bin emptied once /week,10/11/2021,0161858,37.67,Revenue,SUEZ R&R UK LTD,17615,,
Chorley Borough Council,http://statistics.data.gov.uk/id/local-authority/30UE,Recreation & Sport,1037,Customer & Digital,Refuse Collection,20037,Cleaning and Domestic Supplies,5012,"CHORLEY COUNCIL BUILDINGS TRADE WASTE (04/21 - 03/22) Eaves Green Community Centre, 1 X 360 L bin emptied once",10/11/2021,0161858,20.49,Revenue,SUEZ R&R UK LTD,17615,,
Chorley Borough Council,http://statistics.data.gov.uk/id/local-authority/30UE,Recreation & Sport,1037,Customer & Digital,Refuse Collection,20037,Cleaning and Domestic Supplies,5012,CHORLEY COUNCIL BUILDINGS TRADE WASTE (04/21 - 03/22) Astley Village Community Centre 1 X 360 L bin emptied once,10/11/2021,0161858,20.49,Revenue,SUEZ R&R UK LTD,17615,,
Chorley Borough Council,http://statistics.data.gov.uk/id/local-authority/30UE,Recreation & Sport,1037,Customer & Digital,Miscellaneous Expenses,40200,Miscellaneous Expenses,5034,CHORLEY COUNCIL BUILDINGS TRADE WASTE (04/21 - 03/22) Buttermere Green Community Centre 1 X 360 L bin emptied,10/11/2021,0161858,20.49,Revenue,SUEZ R&R UK LTD,17615,,
Chorley Borough Council,http://statistics.data.gov.uk/id/local-authority/30UE,Recreation & Sport,1037,Customer & Digital,Refuse Collection,20037,Cleaning and Domestic Supplies,5012,CHORLEY COUNCIL BUILDINGS TRADE WASTE (04/21 - 03/22) Tatton Community Centre 1X 360 L bin emptied once per week,10/11/2021,0161858,20.49,Revenue,SUEZ R&R UK LTD,17615,,
Chorley Borough Council,http://statistics.data.gov.uk/id/local-authority/30UE,Recreation & Sport,1037,Customer & Digital,Refuse Collection,20037,Cleaning and Domestic Supplies,5012,"CHORLEY COUNCIL BUILDINGS TRADE WASTE (04/21 - 03/22) Clayton Brook Village Hall, Refuse Sacks -6 per week",10/11/2021,0161858,24.80,Revenue,SUEZ R&R UK LTD,17615,,
Chorley Borough Council,http://statistics.data.gov.uk/id/local-authority/30UE,Business Support,1095,Customer & Digital,Refuse Collection,20037,Cleaning and Domestic Supplies,5012,CHORLEY COUNCIL BUILDINGS TRADE WASTE (04/21 - 03/22) Strawberry Fields Digital Hub GENERAL WASTE 3 X 1100L,10/11/2021,0161858,156.31,Revenue,SUEZ R&R UK LTD,17615,,
Chorley Borough Council,http://statistics.data.gov.uk/id/local-authority/30UE,Business Support,1095,Customer & Digital,Refuse Collection,20037,Cleaning and Domestic Supplies,5012,"CHORLEY COUNCIL BUILDINGS TRADE WASTE (04/21 - 03/22) Strawberry Fields Digital Hub, MIXED RECYCLING 3 X 1100L",10/11/2021,0161858,71.09,Revenue,SUEZ R&R UK LTD,17615,,
Chorley Borough Council,http://statistics.data.gov.uk/id/local-authority/30UE,Recreation & Sport,1037,Customer & Digital,Miscellaneous Expenses,40200,Miscellaneous Expenses,5034,CHORLEY COUNCIL BUILDINGS TRADE WASTE (04/21 - 03/22) All Seasons Leisure Centre GENERAL WASTE 2 X 1100L,10/11/2021,0161858,75.34,Revenue,SUEZ R&R UK LTD,17615,,
Chorley Borough Council,http://statistics.data.gov.uk/id/local-authority/30UE,Recreation & Sport,1037,Customer & Digital,Miscellaneous Expenses,40200,Miscellaneous Expenses,5034,"CHORLEY COUNCIL BUILDINGS TRADE WASTE (April 2021 - March 2022) All Seasons Leisure Centre, MIXED RECYCLING",10/11/2021,0161858,22.01,Revenue,SUEZ R&R UK LTD,17615,,
Chorley Borough Council,http://statistics.data.gov.uk/id/local-authority/30UE,Recreation & Sport,1037,Customer & Digital,Miscellaneous Expenses,40200,Miscellaneous Expenses,5034,"CHORLEY COUNCIL BUILDINGS TRADE WASTE (April 2021 - March 2022) Clayton Green Sports Centre, GENERAL WASTE",10/11/2021,0161858,37.67,Revenue,SUEZ R&R UK LTD,17615,,
Chorley Borough Council,http://statistics.data.gov.uk/id/local-authority/30UE,Recreation & Sport,1037,Customer & Digital,Miscellaneous Expenses,40200,Miscellaneous Expenses,5034,"CHORLEY COUNCIL BUILDINGS TRADE WASTE (April 2021 - March 2022) Clayton Green Sports Centre, MIXED RECYCLING",10/11/2021,0161858,10.98,Revenue,SUEZ R&R UK LTD,17615,,
Chorley Borough Council,http://statistics.data.gov.uk/id/local-authority/30UE,Recreation & Sport,1037,Customer & Digital,Miscellaneous Expenses,40200,Miscellaneous Expenses,5034,"CHORLEY COUNCIL BUILDINGS TRADE WASTE (April 2021 - March 2022)  Brinscall Public Baths, MIXED RECYCLING",10/11/2021,0161858,10.98,Revenue,SUEZ R&R UK LTD,17615,,
Chorley Borough Council,http://statistics.data.gov.uk/id/local-authority/30UE,Recreation & Sport,1037,Customer & Digital,Miscellaneous Expenses,40200,Miscellaneous Expenses,5034,"CHORLEY COUNCIL BUILDINGS TRADE WASTE (April 2021 - March 2022)  Brinscall Public Baths, GENERAL WASTE",10/11/2021,0161858,37.67,Revenue,SUEZ R&R UK LTD,17615,,
Chorley Borough Council,http://statistics.data.gov.uk/id/local-authority/30UE,Central Support Services,1009,Customer & Digital,Refuse Collection,20037,Cleaning and Domestic Supplies,5012,West Way Sports Hub Residual waste collections (Sept 2021 - 31 March 2022),10/11/2021,0161858,37.67,Revenue,SUEZ R&R UK LTD,17615,,
Chorley Borough Council,http://statistics.data.gov.uk/id/local-authority/30UE,Central Support Services,1009,Customer & Digital,Refuse Collection,20037,Cleaning and Domestic Supplies,5012,West Way Sports Hub RECYCLING collections (Sept 2021 - 31 March 2022),10/11/2021,0161858,5.52,Revenue,SUEZ R&R UK LTD,17615,,
Chorley Borough Council,http://statistics.data.gov.uk/id/local-authority/30UE,Recreation & Sport,1037,Customer & Digital,Miscellaneous Expenses,40200,Miscellaneous Expenses,5034,"CHORLEY COUNCIL BUILDINGS TRADE WASTE (April 2021 - March 2022) Lancaster Way Community Centre, 1 X 360 L bin",10/11/2021,0161858,20.49,Revenue,SUEZ R&R UK LTD,17615,,
Chorley Borough Council,http://statistics.data.gov.uk/id/local-authority/30UE,Service Management & Support,1009,Customer & Digital,Refuse Collection,20037,Cleaning and Domestic Supplies,5012,Exchange 20 yard Street Sweeping Skip @ 80.96 to cover period  01/09/2021 - 31/03/2022,10/11/2021,0162350,"1,538.24",Revenue,SUEZ R&R UK LTD,17615,,
Chorley Borough Council,http://statistics.data.gov.uk/id/local-authority/30UE,Service Management & Support,1009,Customer & Digital,Refuse Collection,20037,Cleaning and Domestic Supplies,5012,Exchange 35 yard General Waste Skip @ 89.94 to cover period  01/09/2021 - 31/03/2022,10/11/2021,0162350,"1,169.22",Revenue,SUEZ R&R UK LTD,17615,,
Chorley Borough Council,http://statistics.data.gov.uk/id/local-authority/30UE,Service Management & Support,1009,Customer & Digital,Refuse Collection,20037,Cleaning and Domestic Supplies,5012,Exchange 35 yard Green Waste skip @ 84.26 to cover period 01/09/2021 - 31/03/2022,10/11/2021,0162350,168.52,Revenue,SUEZ R&R UK LTD,17615,,
Chorley Borough Council,http://statistics.data.gov.uk/id/local-authority/30UE,Service Management & Support,1009,Customer & Digital,Refuse Collection,20037,Cleaning and Domestic Supplies,5012,Disposal charge and processing of Green Waste @ 37.50 per tonne,10/11/2021,0162350,326.25,Revenue,SUEZ R&R UK LTD,17615,,
Chorley Borough Council,http://statistics.data.gov.uk/id/local-authority/30UE,Central Support Services,1009,Customer & Digital,Refuse Collection,20037,Cleaning and Domestic Supplies,5012,"Chorley Council Buildings, Trade Waste (1 April 21 to 31 March 22) Civic Offices MIXED RECYCLING 1 x 1100L bin once /week",10/11/2021,0162355,22.00,Revenue,SUEZ R&R UK LTD,17615,,
Chorley Borough Council,http://statistics.data.gov.uk/id/local-authority/30UE,Central Support Services,1009,Customer & Digital,Refuse Collection,20037,Cleaning and Domestic Supplies,5012,"Chorley Council Buildings, Trade Waste (1 April 21 to 31 March 22). Town Hall GENERAL WASTE 1 x 1100L bin 3 times /week",10/11/2021,0162355,113.01,Revenue,SUEZ R&R UK LTD,17615,,
Chorley Borough Council,http://statistics.data.gov.uk/id/local-authority/30UE,Central Support Services,1009,Customer & Digital,Refuse Collection,20037,Cleaning and Domestic Supplies,5012,"Chorley Council Buildings, Trade Waste (1 April 21 to 31 March 22). Town Hall MIXED RECYCLING  1 x 1100L bin once /week",10/11/2021,0162355,22.01,Revenue,SUEZ R&R UK LTD,17615,,
Chorley Borough Council,http://statistics.data.gov.uk/id/local-authority/30UE,Central Support Services,1009,Customer & Digital,Refuse Collection,20037,Cleaning and Domestic Supplies,5012,"Chorley Council Buildings, Trade Waste (1 April 21 to 31 March 22). Civic Offices GENERAL WASTE 2 x 1100L bin 3 times/week",10/11/2021,0162355,226.04,Revenue,SUEZ R&R UK LTD,17615,,
Chorley Borough Council,http://statistics.data.gov.uk/id/local-authority/30UE,Culture & Heritage,1036,Customer & Digital,Refuse Collection,20037,Cleaning and Domestic Supplies,5012,"Chorley Council Buildings, Trade Waste (1 April 21 to 31 March 22). Astley Hall, GENERAL WASTE 1 x 1100L bin once /week",10/11/2021,0162355,37.67,Revenue,SUEZ R&R UK LTD,17615,,
Chorley Borough Council,http://statistics.data.gov.uk/id/local-authority/30UE,Community Development,1097,Customer & Digital,Refuse Collection,20037,Cleaning and Domestic Supplies,5012,"CHORLEY COUNCIL BUILDINGS TRADE WASTE (FY 2021:2022) MP's Constituency Office, 1 X1100 L bin emptied once /week",10/11/2021,0162355,37.67,Revenue,SUEZ R&R UK LTD,17615,,
Chorley Borough Council,http://statistics.data.gov.uk/id/local-authority/30UE,Recreation & Sport,1037,Customer & Digital,Refuse Collection,20037,Cleaning and Domestic Supplies,5012,"CHORLEY COUNCIL BUILDINGS TRADE WASTE (April 2021 - March 2022) Eaves Green Community Centre, 1 X 360 L bin",10/11/2021,0162355,20.49,Revenue,SUEZ R&R UK LTD,17615,,
Chorley Borough Council,http://statistics.data.gov.uk/id/local-authority/30UE,Recreation & Sport,1037,Customer & Digital,Refuse Collection,20037,Cleaning and Domestic Supplies,5012,"CHORLEY COUNCIL BUILDINGS TRADE WASTE (April 2021 - March 2022) Astley Village Community Centre, 1 X 360 L bin",10/11/2021,0162355,20.49,Revenue,SUEZ R&R UK LTD,17615,,
Chorley Borough Council,http://statistics.data.gov.uk/id/local-authority/30UE,Recreation & Sport,1037,Customer & Digital,Miscellaneous Expenses,40200,Miscellaneous Expenses,5034,"CHORLEY COUNCIL BUILDINGS TRADE WASTE (April 2021 - March 2022) Buttermere Green Community Centre, 1 X 360 L bin",10/11/2021,0162355,20.49,Revenue,SUEZ R&R UK LTD,17615,,
Chorley Borough Council,http://statistics.data.gov.uk/id/local-authority/30UE,Recreation & Sport,1037,Customer & Digital,Miscellaneous Expenses,40200,Miscellaneous Expenses,5034,"CHORLEY COUNCIL BUILDINGS TRADE WASTE (April 2021 - March 2022) Lancaster Way Community Centre, 1 X 360 L bin",10/11/2021,0162355,20.49,Revenue,SUEZ R&R UK LTD,17615,,
Chorley Borough Council,http://statistics.data.gov.uk/id/local-authority/30UE,Recreation & Sport,1037,Customer & Digital,Refuse Collection,20037,Cleaning and Domestic Supplies,5012,"CHORLEY COUNCIL BUILDINGS TRADE WASTE (April 2021 - March 2022) Tatton Community Centre, 1 X 360 L bin emptied",10/11/2021,0162355,20.49,Revenue,SUEZ R&R UK LTD,17615,,
Chorley Borough Council,http://statistics.data.gov.uk/id/local-authority/30UE,Recreation & Sport,1037,Customer & Digital,Refuse Collection,20037,Cleaning and Domestic Supplies,5012,"CHORLEY COUNCIL BUILDINGS TRADE WASTE (04/2021 - 03/2022) Clayton Brook Village Hall, Refuse Sacks -6 per week",10/11/2021,0162355,24.80,Revenue,SUEZ R&R UK LTD,17615,,
Chorley Borough Council,http://statistics.data.gov.uk/id/local-authority/30UE,Business Support,1095,Customer & Digital,Refuse Collection,20037,Cleaning and Domestic Supplies,5012,"CHORLEY COUNCIL BUILDINGS TRADE WASTE (April 2021 - March 2022) Strawberry Fields Digital Hub, GENERAL WASTE",10/11/2021,0162355,113.01,Revenue,SUEZ R&R UK LTD,17615,,
Chorley Borough Council,http://statistics.data.gov.uk/id/local-authority/30UE,Business Support,1095,Customer & Digital,Refuse Collection,20037,Cleaning and Domestic Supplies,5012,"CHORLEY COUNCIL BUILDINGS TRADE WASTE (April 2021 - March 2022) Strawberry Fields Digital Hub, MIXED RECYCLING",10/11/2021,0162355,66.03,Revenue,SUEZ R&R UK LTD,17615,,
Chorley Borough Council,http://statistics.data.gov.uk/id/local-authority/30UE,Recreation & Sport,1037,Customer & Digital,Miscellaneous Expenses,40200,Miscellaneous Expenses,5034,"CHORLEY COUNCIL BUILDINGS TRADE WASTE (April 2021 - March 2022) All Seasons Leisure Centre, GENERAL WASTE",10/11/2021,0162355,75.35,Revenue,SUEZ R&R UK LTD,17615,,
Chorley Borough Council,http://statistics.data.gov.uk/id/local-authority/30UE,Recreation & Sport,1037,Customer & Digital,Miscellaneous Expenses,40200,Miscellaneous Expenses,5034,"CHORLEY COUNCIL BUILDINGS TRADE WASTE (April 2021 - March 2022) All Seasons Leisure Centre, MIXED RECYCLING",10/11/2021,0162355,22.01,Revenue,SUEZ R&R UK LTD,17615,,
Chorley Borough Council,http://statistics.data.gov.uk/id/local-authority/30UE,Recreation & Sport,1037,Customer & Digital,Miscellaneous Expenses,40200,Miscellaneous Expenses,5034,"CHORLEY COUNCIL BUILDINGS TRADE WASTE (April 2021 - March 2022) Clayton Green Sports Centre, GENERAL WASTE",10/11/2021,0162355,37.67,Revenue,SUEZ R&R UK LTD,17615,,
Chorley Borough Council,http://statistics.data.gov.uk/id/local-authority/30UE,Recreation & Sport,1037,Customer & Digital,Miscellaneous Expenses,40200,Miscellaneous Expenses,5034,"CHORLEY COUNCIL BUILDINGS TRADE WASTE (April 2021 - March 2022) Clayton Green Sports Centre, MIXED RECYCLING",10/11/2021,0162355,10.98,Revenue,SUEZ R&R UK LTD,17615,,
Chorley Borough Council,http://statistics.data.gov.uk/id/local-authority/30UE,Recreation & Sport,1037,Customer & Digital,Miscellaneous Expenses,40200,Miscellaneous Expenses,5034,"CHORLEY COUNCIL BUILDINGS TRADE WASTE (April 2021 - March 2022) Brinscall Public Baths, MIXED RECYCLING",10/11/2021,0162355,10.98,Revenue,SUEZ R&R UK LTD,17615,,
Chorley Borough Council,http://statistics.data.gov.uk/id/local-authority/30UE,Recreation & Sport,1037,Customer & Digital,Miscellaneous Expenses,40200,Miscellaneous Expenses,5034,"CHORLEY COUNCIL BUILDINGS TRADE WASTE (April 2021 - March 2022) Brinscall Public Baths, GENERAL WASTE",10/11/2021,0162355,37.67,Revenue,SUEZ R&R UK LTD,17615,,
Chorley Borough Council,http://statistics.data.gov.uk/id/local-authority/30UE,Central Support Services,1009,Customer & Digital,Refuse Collection,20037,Cleaning and Domestic Supplies,5012,West Way Sports Hub Residual waste collections (Sept 2021 - 31 March 2022),10/11/2021,0162355,37.67,Revenue,SUEZ R&R UK LTD,17615,,
Chorley Borough Council,http://statistics.data.gov.uk/id/local-authority/30UE,Central Support Services,1009,Customer & Digital,Refuse Collection,20037,Cleaning and Domestic Supplies,5012,West Way Sports Hub RECYCLING collections (Sept 2021 - 31 March 2022),10/11/2021,0162355,5.52,Revenue,SUEZ R&R UK LTD,17615,,
Chorley Borough Council,http://statistics.data.gov.uk/id/local-authority/30UE,Central Support Services,1009,Communities,Alleygate Repair,40240,"Equipment, Furniture & Materia",5023,"Requisition for outstanding works that are required on security alley gates, T B and B Anderton Engineering",03/11/2021,0162084,265.00,Revenue,T B & B Anderton,83517,,
Chorley Borough Council,http://statistics.data.gov.uk/id/local-authority/30UE,Capital,Capital,Commercial & Property,Main Contractor,03007,Capital Expenditure,Capital,"Buzz Bingo Tarmac, 50mm Binder 2000m2, 30mm SMA 2800m2, Bond Coat 800m2, Regulating 50t",17/11/2021,0162550,"45,864.48",Capital,Tarways Asphalte Co Ltd,83970,,
Chorley Borough Council,http://statistics.data.gov.uk/id/local-authority/30UE,Central Support Services,1009,Customer & Digital,CCTV Camera Maintenance,40007,"Equipment, Furniture & Materia",5023,CCTV ongoing maintenance and repair,03/11/2021,0161342,911.25,Revenue,Technology Solutions,72376,,
Chorley Borough Council,http://statistics.data.gov.uk/id/local-authority/30UE,Economic Development,1096,Commercial & Property,Fixtures & Fittings - Purchase,20027,Fixtures and Fittings,5010,Relocate the Redvision PTZ formerly on the Market front fascia onto the front corner elevation of the nearby Ramsdens Building.,17/11/2021,0162519,"2,352.08",Revenue,Technology Solutions,72376,,
Chorley Borough Council,http://statistics.data.gov.uk/id/local-authority/30UE,Planning Policy,1092,Communities,Professional Fees,40063,Services,5027,Charnock Richard growth option - feasibility study,24/11/2021,0162631,"19,756.00",Revenue,Tetra Tech Environment Planning Transport Limited,76236,,
Chorley Borough Council,http://statistics.data.gov.uk/id/local-authority/30UE,Central Support Services,1009,Policy & Governance,Exhibitions & Special Events,40158,Miscellaneous Expenses,5034,Event management and artist payments for Chorley's Big Weekend,17/11/2021,0162589,"6,830.00",Revenue,The Creative Network,61874,,
Chorley Borough Council,http://statistics.data.gov.uk/id/local-authority/30UE,Business Support,1095,Commercial & Property,Security Service,40062,Services,5027,Security cover at Strawberry Fields between October 2021 to December 2021,17/11/2021,0162526,"7,149.19",Revenue,The ExcluSec Group Ltd,78056,,
Chorley Borough Council,http://statistics.data.gov.uk/id/local-authority/30UE,Service Management & Support,1009,Customer & Digital,Supplies-Grounds Maintenance,40025,"Equipment, Furniture & Materia",5023,Quantity x 30 LP1137- 37`` Litter picker pro @13.18 each,03/11/2021,0161877,434.70,Revenue,The Helping Hand Company,17779,,
Chorley Borough Council,http://statistics.data.gov.uk/id/local-authority/30UE,Central Support Services,1009,Customer & Digital,Computer - Support Services,40111,Communication and Computing,5028,"Renewal of TNP Network Service Support - period of cover: 01/04/2021 - 31/03/2022 Annual support 24x7 SLA, 48 RMAcs",03/11/2021,0158565,975.00,Revenue,The Networking People (NorthWest) Ltd T/a TNP Ltd,73446,,
Chorley Borough Council,http://statistics.data.gov.uk/id/local-authority/30UE,Central Support Services,1009,Commercial & Property,Agency Staff,13000,Direct Employee Expenses,5001,Estate Surveyor fees for NAME REDACTED until end of 2021,03/11/2021,0162050,"2,537.72",Revenue,The Oyster Partnership Ltd,81409,,
Chorley Borough Council,http://statistics.data.gov.uk/id/local-authority/30UE,Central Support Services,1009,Commercial & Property,Agency Staff,13000,Direct Employee Expenses,5001,Estate Surveyor fees for NAME REDACTED until end of 2021,03/11/2021,0162150,"2,013.97",Revenue,The Oyster Partnership Ltd,81409,,
Chorley Borough Council,http://statistics.data.gov.uk/id/local-authority/30UE,Central Support Services,1009,Commercial & Property,Agency Staff,13000,Direct Employee Expenses,5001,Estate Surveyor fees for NAME REDACTED until end of 2021,24/11/2021,0162172,"1,700.26",Revenue,The Oyster Partnership Ltd,81409,,
Chorley Borough Council,http://statistics.data.gov.uk/id/local-authority/30UE,Central Support Services,1009,Commercial & Property,General Repairs - Reactive,20004,Repairs Maintenance & Alts,5005,Westway - Specialist repairs to identified damage. Make good 3nr large holes in IPS panels as instructed by NAME REDACTED.,24/11/2021,0162759,398.80,Revenue,The Plastic Surgeon Limited,83887,,
Chorley Borough Council,http://statistics.data.gov.uk/id/local-authority/30UE,Development Control,1091,Customer & Digital,Professional Fees,40063,Services,5027,"Development Management, Planning & Feasibility Assessment - Application at Brooke Street, Independent Viability Assessment",24/11/2021,0162597,"2,000.00",Revenue,Trebbi Continuum,77723,,
Chorley Borough Council,http://statistics.data.gov.uk/id/local-authority/30UE,Service Management & Support,1009,Customer & Digital,Grounds Maintenance Contractor,20043,Grounds Maintenance Costs,5013,Treexpert Invoice 483,17/11/2021,0162451,"1,750.00",Revenue,Treexpert Tree Care,78580,,
Chorley Borough Council,http://statistics.data.gov.uk/id/local-authority/30UE,Culture & Heritage,1036,Policy & Governance,Exhibitions & Special Events,40158,Miscellaneous Expenses,5034,Performance for Apple Day,24/11/2021,0162599,650.00,Revenue,Two Hats Blues Band,78137,,
Chorley Borough Council,http://statistics.data.gov.uk/id/local-authority/30UE,Central Support Services,1009,Policy & Governance,Exhibitions & Special Events,40158,Miscellaneous Expenses,5034,"Supply 24Sqm LED Truck mounted screen, Multiple PTZ cameras/vision mix Inc all associated cables, 2 x crew, vision mix",17/11/2021,0162582,"2,695.00",Revenue,UK Media and Events Limited,71221,,
Chorley Borough Council,http://statistics.data.gov.uk/id/local-authority/30UE,Central Support Services,1009,Policy & Governance,Publicity - Advertising,40157,Miscellaneous Expenses,5034,"Renewal of the hosting/server space for the WordPress websites (e.g. Chorley Flower Show, Check out Chorley, Astley Hall, etc)",24/11/2021,0161853,264.65,Revenue,UKFast.Net Limited,74638,,
Chorley Borough Council,http://statistics.data.gov.uk/id/local-authority/30UE,Central Support Services,1009,Policy & Governance,Publicity - Advertising,40157,Miscellaneous Expenses,5034,"Renewal of the hosting/server space for the WordPress websites (e.g. Chorley Flower Show, Check out Chorley, Astley Hall, etc)",24/11/2021,0162510,264.65,Revenue,UKFast.Net Limited,74638,,
Chorley Borough Council,http://statistics.data.gov.uk/id/local-authority/30UE,Central Support Services,1009,Customer & Digital,Service Fees,40056,Services,5027,Daily Hybrid Mail & Annual Billing for Account No. H360363,24/11/2021,0162085,616.39,Revenue,UKMAIL Ltd (Mail),57758,,
Chorley Borough Council,http://statistics.data.gov.uk/id/local-authority/30UE,Central Support Services,1009,Customer & Digital,Service Fees,40056,Services,5027,Daily Hybrid Mail & Annual Billing for Account No. H360363,17/11/2021,0162428,"2,222.42",Revenue,UKMAIL Ltd (Mail),57758,,
Chorley Borough Council,http://statistics.data.gov.uk/id/local-authority/30UE,Central Support Services,1009,Customer & Digital,Service Fees,40056,Services,5027,Daily Hybrid Mail & Annual Billing for Account No. H360363,24/11/2021,0162576,976.45,Revenue,UKMAIL Ltd (Mail),57758,,
Chorley Borough Council,http://statistics.data.gov.uk/id/local-authority/30UE,Central Support Services,1009,Customer & Digital,Service Fees,40056,Services,5027,Daily Hybrid Mail & Annual Billing for Account No. H360363,24/11/2021,0162696,933.41,Revenue,UKMAIL Ltd (Mail),57758,,
Chorley Borough Council,http://statistics.data.gov.uk/id/local-authority/30UE,Central Support Services,1009,Customer & Digital,Service Fees,40056,Services,5027,Daily Hybrid Mail & Annual Billing for Account No. H360363,24/11/2021,0162711,572.37,Revenue,UKMAIL Ltd (Mail),57758,,
Chorley Borough Council,http://statistics.data.gov.uk/id/local-authority/30UE,Central Support Services,1009,Customer & Digital,Service Fees,40056,Services,5027,Daily Hybrid Mail & Annual Billing for Account No. H360363,24/11/2021,0162715,976.45,Revenue,UKMAIL Ltd (Mail),57758,,
Chorley Borough Council,http://statistics.data.gov.uk/id/local-authority/30UE,Central Support Services,1009,Customer & Digital,Service Fees,40056,Services,5027,Daily Hybrid Mail & Annual Billing for Account No. H360363,24/11/2021,0162766,"2,222.42",Revenue,UKMAIL Ltd (Mail),57758,,
Chorley Borough Council,http://statistics.data.gov.uk/id/local-authority/30UE,Control Accounts,Control,Policy & Governance,General Balances,00100,Balance Sheet,Balance,Monthly Deductions from Payroll,24/11/2021,0162774,"1,661.70",Revenue,Unify Credit Union Ltd,55509,,
Chorley Borough Council,http://statistics.data.gov.uk/id/local-authority/30UE,Culture & Heritage,1036,Policy & Governance,Exhibitions & Special Events,40158,Miscellaneous Expenses,5034,Filming and editing for G7 and flower planting videos. Price includes travel and music for both videos. 1270+ VAT,10/11/2021,0162382,"1,270.00",Revenue,Urubu Ltd,77584,,
Chorley Borough Council,http://statistics.data.gov.uk/id/local-authority/30UE,Service Management & Support,1009,Customer & Digital,Hire Of Vehicles and Plant,30028,Contrct Hire & Operating Lease,5018,Hire of weed spraying Quad bike @275 per week- 4 week hire Delivery 150 and Collection 150 Delivery to Chorley Council,17/11/2021,0162527,"1,675.00",Revenue,Vale Engineering Ltd,66000,,
Chorley Borough Council,http://statistics.data.gov.uk/id/local-authority/30UE,Central Support Services,1009,Communities,Agency Staff,13000,Direct Employee Expenses,5001,Env Health Contractors,10/11/2021,0162046,605.54,Revenue,Vivid Resourcing Ltd,76938,,
Chorley Borough Council,http://statistics.data.gov.uk/id/local-authority/30UE,Central Support Services,1009,Communities,Agency Staff,13000,Direct Employee Expenses,5001,Env Health Contractors,24/11/2021,0162396,745.28,Revenue,Vivid Resourcing Ltd,76938,,
Chorley Borough Council,http://statistics.data.gov.uk/id/local-authority/30UE,Central Support Services,1009,Communities,Agency Staff,13000,Direct Employee Expenses,5001,Env Health Contractors,24/11/2021,0162506,931.60,Revenue,Vivid Resourcing Ltd,76938,,
Chorley Borough Council,http://statistics.data.gov.uk/id/local-authority/30UE,Central Support Services,1009,Communities,Agency Staff,13000,Direct Employee Expenses,5001,Env Health Contractors,24/11/2021,0162595,652.12,Revenue,Vivid Resourcing Ltd,76938,,
Chorley Borough Council,http://statistics.data.gov.uk/id/local-authority/30UE,Central Support Services,1009,Customer & Digital,Telephones - Other,40085,Communication and Computing,5028,"Microsoft Teams Room System: All-in-One USB Video Bar, Quad-Core i5 Mini PC, 8� Touch Panel, Wireless Presentation Pod",03/11/2021,0161169,"2,917.00",Revenue,VP-AV Ltd,81653,,
Chorley Borough Council,http://statistics.data.gov.uk/id/local-authority/30UE,Capital,Capital,Communities,Main Contractor,03007,Capital Expenditure,Capital,Soft Landscaping at West Way in accordance with quotation dated 9th August 2021.,03/11/2021,0161472,"4,860.70",Capital,W J Wilkinson & Sons (Landscaping) Ltd,78193,,
Chorley Borough Council,http://statistics.data.gov.uk/id/local-authority/30UE,Capital,Capital,Commercial & Property,Main Contractor,03007,Capital Expenditure,Capital,To provide & install knee rails and closed boarded fence at Buzz Bingo site,24/11/2021,0162782,"6,181.78",Capital,Wallbank Fencing Limited,80942,,
Chorley Borough Council,http://statistics.data.gov.uk/id/local-authority/30UE,Recreation & Sport,1037,Commercial & Property,Water - Metered Supplies,20022,Water Services,5009,10/9 to 9/10/21,17/11/2021,0162238,930.58,Revenue,Water-plus,17926,,
Chorley Borough Council,http://statistics.data.gov.uk/id/local-authority/30UE,Economic Development,1096,Commercial & Property,Sewerage/Environment Svcs,20024,Water Services,5009,1/7 to 30/9/20,17/11/2021,0162239,893.72,Revenue,Water-plus,17926,,
Chorley Borough Council,http://statistics.data.gov.uk/id/local-authority/30UE,Central Support Services,1009,Commercial & Property,Water - Metered Supplies,20022,Water Services,5009,1/8 to 11/10/21,24/11/2021,0162667,"1,395.01",Revenue,Water-plus,17926,,
Chorley Borough Council,http://statistics.data.gov.uk/id/local-authority/30UE,Economic Development,1096,Commercial & Property,Water - Metered Supplies,20022,Water Services,5009,23/6 to 19/9/21,24/11/2021,0162668,"4,426.39",Revenue,Water-plus,17926,,
Chorley Borough Council,http://statistics.data.gov.uk/id/local-authority/30UE,Recreation & Sport,1037,Commercial & Property,Water - Metered Supplies,20022,Water Services,5009,15/7 to 14/8/21,24/11/2021,0162670,157.51,Revenue,Water-plus,17926,,
Chorley Borough Council,http://statistics.data.gov.uk/id/local-authority/30UE,Recreation & Sport,1037,Commercial & Property,Water - Metered Supplies,20022,Water Services,5009,waste,24/11/2021,0162670,819.55,Revenue,Water-plus,17926,,
Chorley Borough Council,http://statistics.data.gov.uk/id/local-authority/30UE,Central Support Services,1009,Customer & Digital,Internet Charges,40104,Communication and Computing,5028,wifi for g7,10/11/2021,0160925,"4,353.00",Revenue,Wave Internet,82095,,
Chorley Borough Council,http://statistics.data.gov.uk/id/local-authority/30UE,Central Support Services,1009,Customer & Digital,Tools & Equipment - Maintenance,40005,"Equipment, Furniture & Materia",5023,"Bamber Bridge Methodist Church internet & wifi provision: Install new connection, 20/30mbps download, upload of 5-10mbps",03/11/2021,0162135,"1,433.00",Revenue,Wave Internet,82095,,
Chorley Borough Council,http://statistics.data.gov.uk/id/local-authority/30UE,Capital,Capital,Commercial & Property,Other Capital Related Fees,03024,Capital Expenditure,Capital,"32 x 10 unisex 7 bay toilet 01-Oct-2021 - 04-Oct-2021, 9 x 9 disabled toileUshower, EXTCOL Collection 04-Oct-2021",24/11/2021,0162620,"2,979.00",Capital,Wernick Hire Limited,84044,,
Chorley Borough Council,http://statistics.data.gov.uk/id/local-authority/30UE,Capital,Capital,Communities,Main Contractor,03007,Capital Expenditure,Capital,"Carr Brook Natural Flood Management Scheme, Meet arboriculturist on site, follow-up meeting to understand resident's concerns",03/11/2021,0162193,570.50,Capital,Wetland Engineering,80769,,
Chorley Borough Council,http://statistics.data.gov.uk/id/local-authority/30UE,Recognised Cap Grants & Conts,,Customer & Digital,Contributions Parish Councils,40144,Grants and Subscriptions,5031,cil rec 2021,03/11/2021,0161942,"3,212.56",Revenue,Wheelton Parish Council,16189,,
Chorley Borough Council,http://statistics.data.gov.uk/id/local-authority/30UE,Central Support Services,1009,Policy & Governance,Postages,40082,Communication and Computing,5028,Postal collection for Town Hall and Uni,10/11/2021,0162175,249.89,Revenue,Whistl North Limited,67256,,
Chorley Borough Council,http://statistics.data.gov.uk/id/local-authority/30UE,Central Support Services,1009,Policy & Governance,Postages,40082,Communication and Computing,5028,zero rate,10/11/2021,0162175,12.80,Revenue,Whistl North Limited,67256,,
Chorley Borough Council,http://statistics.data.gov.uk/id/local-authority/30UE,Recognised Cap Grants & Conts,,Customer & Digital,Contributions Parish Councils,40144,Grants and Subscriptions,5031,cil rec 2021,03/11/2021,0161940,"54,385.36",Revenue,Whittle-le-Woods Parish Council,18602,,
Chorley Borough Council,http://statistics.data.gov.uk/id/local-authority/30UE,Service Management & Support,1009,Customer & Digital,Supplies-Grounds Maintenance,40025,"Equipment, Furniture & Materia",5023,"12 x N key padlocks, 12x H key padlocks, 1x Squire combi padlock",03/11/2021,0162115,314.18,Revenue,Wilcock & Sons,18008,,
Chorley Borough Council,http://statistics.data.gov.uk/id/local-authority/30UE,Business Support,1095,Commercial & Property,Grants To Other Organisations,40127,Grants and Subscriptions,5031,GRANT,24/11/2021,0162673,"3,309.28",Revenue,Windance Ltd T/A That`s Mine,82244,,
Chorley Borough Council,http://statistics.data.gov.uk/id/local-authority/30UE,Recognised Cap Grants & Conts,,Customer & Digital,Contributions Parish Councils,40144,Grants and Subscriptions,5031,cil rec2021,03/11/2021,0161941,"4,910.02",Revenue,Withnell Parish Council,16211,,
Chorley Borough Council,http://statistics.data.gov.uk/id/local-authority/30UE,Central Support Services,1009,Customer & Digital,IT Software - Annual Licences,40101,Communication and Computing,5028,"Alloy SaaS Hosted Solution 1 x 9,800.00, Year 1 of 5 1st April 2021 - 31st March 2022 Alloy Capital Contribution 1 x 29,200.00",03/11/2021,0159971,"39,000.00",Revenue,Yotta Ltd,77916,,
